Workbook

Sheet ID_Carreteras
A1: ID | B1: PAIS | C1: TRAMO | D1: CARRETERA
A2: 1 | B2: Ecuador | C2: Via al Emblase Compensador | D2: Via al Emblase Compensador. Coca Codo Sinclair
A3: 2 | B3: Ecuador | C3: Coca - La Belleza | D3: Coca - La Belleza
A4: 3 | B4: Ecuador | C4: Sucua - Bella Unión | D4: Cuenca -Macas
A5: 4 | B5: Ecuador | C5: Cangaime - Taisha | D5: Macuma - Taisha
A6: 5 | B6: Ecuador | C6: Loreto - Murialdo | D6: Sucumbios - Orellana
A7: 6 | B7: Ecuador | C7: Sardina - Lumbaqui | D7: Lumbaqui - Maderos - Sardina - Puccuna
A8: 7 | B8: Ecuador | C8: Chuchumbletza - Ingreso Proyecto Mirador | D8: Vía Acceso: Puerto Mirador
A9: 8 | B9: Ecuador | C9: Sushufindi - Pto. Providencia | D9: Sushufindi - Pto. Providencia
A10: 9 | B10: Ecuador | C10: Sacha - Unión Milagreña | D10: Sacha - Unión Milagreña
A11: 10 | B11: Ecuador | C11: Macuma - Cangaime | D11: Macuma - Taisha
A12: 11 | B12: Colombia | C12: Variante San Francisco - Mocoa | D12: Pasto - Mocoa
A13: 12 | B13: Colombia | C13: Nuquí - El Afirmado | D13: Nuquí - Las Ánimas
A14: 13 | B14: Colombia | C14: El Dorado - La Uribe | D14: Transversal de la Macarena
A15: 14 | B15: Colombia | C15: Palo de Letras - Cacarica - Lomas Aisladas | D15: Transversal de las Américas
A16: 15 | B16: Colombia | C16: Tobiagrande/Villeta - El Korán | D16: Ruta del Sol , Sector 1
A17: 16 | B17: Colombia | C17: Puerto Salgar - San Roque | D17: Ruta del Sol, Sector 2
A18: 17.1 | B18: Colombia | C18: San Roque - Ye de Ciénaga | D18: Ruta del Sol, Sector 3
A19: 17.2 | B19: Colombia | C19: Carmen de Bolivar - Valledupar | D19: Ruta del Sol, Sector 3
A20: 18 | B20: Brasil | C20: KM 555 a KM 767 | D20: BR-156
A21: 19 | B21: Brasil | C21: Km 0 a Km 651 | D21: BR-163
A22: 20 | B22: Brasil | C22: KM 152 a KM 984 | D22: BR-230
A23: 21 | B23: Brasil | C23: Km 119 a 165 | D23: BR-432
A24: 22 | B24: Brasil | C24: Km 203 a 318 | D24: BR-308
A25: 23 | B25: Brasil | C25: Km 0 a 61,30 | D25: BR-422
A26: 24 | B26: Brasil | C26: KM 250 a KM 655 | D26: BR-319
A27: 25 | B27: Bolivia | C27: Isinuta - Monte Grande | D27: Villa Tunari - San Ignacio de Moxos
A28: 26 | B28: Bolivia | C28: Porvenir - El Chorro | D28: Porvenir - El Chorro
A29: 27 | B29: Bolivia | C29: Pumasani - Pelechuco | D29: Pumasani - Pelechuco
A30: 28 | B30: Bolivia | C30: Apolo - Ixiamas | D30: Apolo - Ixiamas
A31: 29 | B31: Bolivia | C31: Rio Yata - El Chorro | D31: Rio Yata - El Chorro
A32: 30 | B32: Bolivia | C32: Chiata - Lurasani | D32: Chiata - Lurasani
A33: 31 | B33: PERÚ | C33: SANTA MARÍA DE NIEVA-SARAMERIZA | D33: REPOSO SARAMIRIZA
A34: 32 | B34: PERÚ | C34: PUCALLPA-FRONTERA CON BRASIL | D34: INTERCONEXIÓN VIAL PUCALLPA-CRUZEIRO DO SUL
A35: 33 | B35: PERU | C35: TRAMO 2 | D35: IIRSA SUR
A36: 34 | B36: PERÚ | C36: SANTA TERESA-MACHU PICCHU | D36: SANTA MARÍA-SANTA TERESA-MACHU PICCHU
A37: 35 | B37: PERÚ | C37: PURUS-IÑAPARI | D37: PURUS-IÑAPARI
A38: 36 | B38: PERÚ | C38: IBERIA- ITAHUANIA-LD CUSCO | D38: IBERIA- ITAHUANIA-LD CUSCO

Sheet CostInv-Tipo (hidden)
A1: ID | B1: Nombre carretera: | C1: Región/Estado: | D1: País: | E1: Nombre del tramo carretero que será evaluado: | F1: Monto | G1: Moneda | H1: Monto | I1: Moneda | J1: Año estimación | K1: 1998 | L1: 1999 | M1: 2000 | N1: 2001 | O1: 2002 | P1: 2003 | Q1: 2004 | R1: 2005 | S1: 2006 | T1: 2007 | U1: 2008 | V1: 2009 | W1: Costos de inversión en $us al 2010 | X1: Calificacion | Y1: Distancia en Km: | Z1: Costo/km | AA1: Calificación (costo/km) | AB1: Categories | AC1: Frequencia | AD1: Tipo de inversión | AE1: Calificacion
A2: 1 | B2: Via al Emblase Compensador. Coca Codo Sinclair | C2: Amazonia | D2: Ecuador | E2: Via al Emblase Compensador. | F2: 45000000 | G2: USD | H2: =F2 -> 45000000 | I2: $us | J2: 2009 | V2: =H2 -> 45000000 | W2: =V2*D43 -> 45990000 | X2: =IF(W2>1000000000,5,IF(W2>500000000,4,IF(W2>100000000,3,IF(W2>50000000,2,1)))) -> 1 | Y2: 30 | Z2: =W2/Y2 -> 1533000 | AA2: =IF(Z2<$AB$2,1,IF(Z2<$AB$3,2,IF(Z2<$AB$4,3,IF(Z2<$AB$5,4,5)))) -> 3 | AB2: 500000 | AC2: =FREQUENCY(Z2:Z37,AB2:AB6) -> 8 | AD2: Carretera nueva | AE2: 5
A3: 2 | B3: Coca - La Belleza | C3: Amazonia | D3: Ecuador | E3: Coca - La Belleza | F3: 11310000 | G3: USD | H3: 11310000 | I3: $us | J3: 2007 | T3: =H3 -> 11310000 | U3: =T3*$D$43 -> 11558820 | V3: 11813114.04 | W3: 12073002.55 | X3: =IF(W3>1000000000,5,IF(W3>500000000,4,IF(W3>100000000,3,IF(W3>50000000,2,1)))) -> 1 | Y3: 26 | Z3: =W3/Y3 -> 464346.2519 | AA3: =IF(Z3<$AB$2,1,IF(Z3<$AB$3,2,IF(Z3<$AB$4,3,IF(Z3<$AB$5,4,5)))) -> 1 | AB3: 1000000 | AC3: 13 | AD3: Mejoramiento de carretera | AE3: 1
A4: 3 | B4: Cuenca -Macas | C4: Amazonia | D4: Ecuador | E4: Sucua - Bella Unión | F4: 12940201 | G4: USD | H4: 12940201 | I4: $us | J4: 2001 | N4: =H4 -> 12940201 | O4: =N4*$D$43 -> 13224885.42 | P4: 13515832.9 | Q4: 13813181.23 | R4: 14117071.21 | S4: 14427646.78 | T4: 14745055.01 | U4: 15069446.22 | V4: 15400974.03 | W4: 15739795.46 | X4: 1 | Y4: 45 | Z4: 349773.2325 | AA4: 1 | AB4: 2000000 | AC4: 9 | AD4: Mejoramiento de carretera | AE4: 1
A5: 4 | B5: Macuma - Taisha | C5: Amazonia | D5: Ecuador | E5: Cangaime - Taisha | F5: 6584681 | G5: USD | H5: 6584681 | I5: $us | J5: 1998 | K5: =H5 -> 6584681 | L5: =K5*$D$43 -> 6729543.982 | M5: =L5*$D$43 -> 6877593.95 | N5: =M5*$D$43 -> 7028901.016 | O5: 7183536.839 | P5: 7341574.649 | Q5: 7503089.292 | R5: 7668157.256 | S5: 7836856.716 | T5: 8009267.563 | U5: 8185471.45 | V5: 8365551.822 | W5: 8549593.962 | X5: 1 | Y5: 25.33 | Z5: 337528.3838 | AA5: 1 | AB5: 5000000 | AC5: 3 | AD5: Carretera nueva | AE5: 5
A6: 5 | B6: Sucumbios - Orellana | C6: Amazonia | D6: Ecuador | E6: Loreto - Murialdo | F6: 5000000 | G6: USD | H6: 5000000 | I6: $us | J6: 2010 | W6: =H6 -> 5000000 | X6: 1 | Y6: 10 | Z6: 500000 | AA6: 2 | AB6: more | AC6: 3 | AD6: Mejoramiento de carretera | AE6: 1
A7: 6 | B7: Lumbaqui - Maderos - Sardina - Puccuna | C7: Amazonia | D7: Ecuador | E7: Sardina - Lumbaqui | F7: 23375651.77 | G7: USD | H7: 23375651.77 | I7: $us | J7: 2007 | T7: =H7 -> 23375651.77 | U7: =T7*$D$43 -> 23889916.11 | V7: =U7*$D$43 -> 24415494.26 | W7: =V7*$D$43 -> 24952635.14 | X7: 1 | Y7: 73 | Z7: 341816.9197 | AA7: 1 | AD7: Carretera nueva | AE7: 5
A8: 7 | B8: Vía Acceso: Puerto Mirador | C8: Amazonia | D8: Ecuador | E8: Chuchumbletza - Ingreso Proyecto Mirador | F8: Entre 14.000.000 y 16.000.000 | G8: USD | H8: 15000000 | I8: $us | J8: 2010 | W8: =H8 -> 15000000 | X8: 1 | Y8: 14 | Z8: 1071428.571 | AA8: 3 | AD8: Mejoramiento de carretera | AE8: 1
A9: 8 | B9: =[1]Entrada!M5 -> Ecuador | C9: Amazonia | D9: Ecuador | E9: Sushufindi - Pto. Providencia | F9: 30281057.52 | G9: USD | H9: =F9 -> 30281057.52 | I9: $us | J9: 2010 | W9: =H9 -> 30281057.52 | X9: 1 | Y9: 46 | Z9: 658283.8591 | AA9: 2 | AD9: Mejoramiento de carretera | AE9: 1
A10: 9 | B10: Sacha - Unión Milagreña | C10: Amazonia | D10: Ecuador | E10: Sacha - Unión Milagreña | F10: 62500000 | G10: USD | H10: =F10 -> 62500000 | I10: $us | J10: 2010 | W10: 62500000 | X10: 2 | Y10: 12.5 | Z10: 5000000 | AA10: 5 | AD10: Mejoramiento de carretera | AE10: 1
A11: 10 | B11: Macuma - Taisha | C11: Amazonia | D11: Ecuador | E11: Macuma - Cangaime | F11: 16374927.3 | G11: USD | H11: =F11 -> 16374927.3 | I11: $us | J11: 2010 | W11: 16374927.3 | X11: 1 | Y11: 42.55 | Z11: 384839.6545 | AA11: 1 | AD11: Carretera nueva | AE11: 5
A12: 11 | B12: Pasto - Mocoa | C12: Amazonía | D12: Colombia | E12: Variante San Francisco - Mocoa | F12: 450,000,000,000 | G12: Pesos | H12: =F12/$D$40 -> 250000000 | I12: $us | J12: 2009 | V12: =H12 -> 250000000 | W12: =V12*$D$43 -> 255500000 | X12: 3 | Y12: 45.6 | Z12: 5603070.175 | AA12: 5 | AD12: Carretera nueva | AE12: 5
A13: 12 | B13: Nuquí - Las Ánimas | C13: Chocó | D13: Colombia | E13: Nuquí - El Afirmado | F13: 100,228,065,354.60 | G13: Pesos | H13: 55682258.53 | I13: $us | J13: 2008 | U13: =H13 -> 55682258.53 | V13: =U13*$D$43 -> 56907268.22 | W13: =V13*$D$43 -> 58159228.12 | X13: 2 | Y13: 57 | Z13: 1020337.335 | AA13: 3 | AD13: Carretera nueva | AE13: 5
A14: 13 | B14: Transversal de la Macarena (Baraya , Huila - San Juan de Arama, Meta) | C14: Meta y Huila | D14: Colombia | E14: El Dorado - La Uribe | F14: 169930000000 | G14: Pesos | H14: 94405555.56 | I14: $us | J14: 2009 | V14: =H14 -> 94405555.56 | W14: =V14+$D$43 -> 94405556.58 | X14: 2 | Y14: 66.6 | Z14: 1417500.85 | AA14: 3 | AD14: Carretera nueva | AE14: 5
A15: 14 | B15: Transversal de las Américas , Sector 1 Corredor Vial del Caribe | C15: Caribe | D15: Colombia | E15: Palo de Letras - Cacarica - Lomas Aisladas | F15: 1,158,081,139,000 | G15: Pesos | H15: 643378410.6 | I15: $us | J15: 2008 | U15: =H15 -> 643378410.6 | V15: =U15*$D$43 -> 657532735.6 | W15: 671998455.8 | X15: 4 | Y15: 62 | Z15: 10838684.77 | AA15: 5 | AD15: Carretera nueva | AE15: 5
A16: 15 | B16: Ruta del Sol , Sector 1 | C16: Caribe - Andina | D16: Colombia | E16: Tobiagrande/Villeta - El Korán | F16: 962,075,973,782 | G16: Pesos | H16: 534486652.1 | I16: $us | J16: 2008 | U16: 534486652.1 | V16: 546245358.4 | W16: 558262756.3 | X16: 4 | Y16: 77.9 | Z16: 7166402.52 | AA16: 5 | AD16: Carretera nueva | AE16: 5
A17: 16 | B17: Ruta del Sol, Sector 2 | C17: Dto. Cundinamarca - Dto del Cesar - Valle del Río Magdalena | D17: Colombia | E17: Puerto Salgar - San Roque (Etapa 1: Tramo 1, 5 y 6) | F17: 2,094,286,000,000 | G17: Pesos | H17: 1163492222 | I17: $us | J17: 2008 | U17: 1163492222 | V17: 1189089051 | W17: 1215249010 | X17: 5 | Y17: 528 | Z17: 2301607.974 | AA17: 4 | AD17: Carretera nueva | AE17: 5
A18: 17 | B18: Ruta del Sol, Sector 3 | C18: Caribe | D18: Colombia | E18: San Roque - Ye de Ciénaga / Carmen de Bolivar - Valledupar | F18: 2,079,953,197,851 | G18: Pesos | H18: 1155529554 | I18: $us | J18: 2008 | U18: 1155529554 | V18: 1180951205 | W18: 1206932131 | X18: 5 | Y18: 465 | Z18: 2595552.97 | AA18: 4 | AD18: Carretera nueva | AE18: 5
A19: 18 | B19: BR-156 | C19: Amapa | D19: Brasil | E19: KM 555 a KM 767 | F19: 432783094 | G19: Real | H19: =F19/$D$41 -> 272190625.2 | I19: $us | J19: 2010 | W19: =H19 -> 272190625.2 | X19: 3 | Y19: 152 | Z19: 1790727.797 | AA19: 3 | AD19: Mejoramiento de carretera | AE19: 1
A20: 19 | B20: BR-163 | C20: Para | D20: Brasil | E20: Km 0 a Km 651 | F20: 1400000000 | G20: Real | H20: 880503144.7 | I20: $us | J20: 2010 | W20: =H20 -> 880503144.7 | X20: 4 | Y20: 651 | Z20: 1352539.393 | AA20: 3 | AD20: Mejoramiento de carretera | AE20: 1
A21: 20 | B21: BR-230 | C21: Para | D21: Brasil | E21: KM 152 a KM 984 | F21: 1200000000 | G21: Real | H21: 754716981.1 | I21: $us | J21: 2010 | W21: 754716981.1 | X21: 4 | Y21: 832 | Z21: 907111.7562 | AA21: 2 | AD21: Mejoramiento de carretera | AE21: 1
A22: 21 | B22: BR-432 | C22: Roraima | D22: Brasil | E22: Km 119 a 165 | F22: 66274971.92 | G22: Real | H22: 41682372.28 | I22: $us | J22: 2009 | V22: =H22 -> 41682372.28 | W22: =V22*$D$43 -> 42599384.47 | X22: 1 | Y22: 46.24 | Z22: 921266.9651 | AA22: 2 | AD22: Carretera nueva | AE22: 5
A23: 22 | B23: BR-308 | C23: Para | D23: Brasil | E23: Km 203 a 318 | F23: 146748641 | G23: Real | H23: 92294742.77 | I23: $us | J23: 2010 | W23: =H23 -> 92294742.77 | X23: 2 | Y23: 163 | Z23: 566225.4158 | AA23: 2 | AD23: Mejoramiento de carretera | AE23: 1
A24: 23 | B24: BR-422 | C24: Para | D24: Brasil | E24: Km 0 a 61,30 | F24: 93000000 | G24: Real | H24: 58490566.04 | I24: $us | J24: 2009 | V24: =H24 -> 58490566.04 | W24: =V24*D43 -> 59777358.49 | X24: 2 | Y24: 61.3 | Z24: 975160.8237 | AA24: 2 | AD24: Carretera nueva | AE24: 5
A25: 24 | B25: BR-319 | C25: Amazonas | D25: Brasil | E25: KM 250 a KM 655 | F25: 487831257 | G25: Real | H25: 306812111.3 | I25: $us | J25: 2010 | W25: =H25 -> 306812111.3 | X25: 3 | Y25: 405 | Z25: 757560.7687 | AA25: 2 | AD25: Carretera nueva | AE25: 5
A26: 25 | B26: Villa Tunari - San Ignacio de Moxos | C26: El Beni y Cochabamba | D26: Bolivia | E26: Isinuta - Monte Grande | F26: 219753000 | G26: $us | H26: =F26 -> 219753000 | I26: $us | J26: 2010 | W26: =H26 -> 219753000 | X26: 3 | Y26: 145 | Z26: 1515537.931 | AA26: 3 | AD26: Carretera nueva | AE26: 5
A27: 26 | B27: Porvenir - El Chorro | C27: Pando | D27: Bolivia | E27: Porvenir - El Chorro | F27: 201000000 | G27: $us | H27: 201000000 | I27: $us | J27: 2010 | W27: =H27 -> 201000000 | X27: 3 | Y27: 337 | Z27: 596439.1691 | AA27: 2 | AD27: Mejoramiento de carretera | AE27: 1
A28: 27 | B28: Pumasani - Pelechuco | C28: La Paz | D28: Bolivia | E28: Pumasani - Pelechuco | F28: 33864954 | G28: $us | H28: 33864954 | I28: $us | J28: 2008 | U28: =H28 -> 33864954 | V28: =U28*$D$43 -> 34609982.99 | W28: =V28*$D$43 -> 35371402.61 | X28: 1 | Y28: 91 | Z28: 388696.732 | AA28: 1 | AD28: Mejoramiento de carretera | AE28: 1
A29: 28 | B29: Apolo - Ixiamas | C29: La Paz | D29: Bolivia | E29: Apolo - Ixiamas | F29: 99999999 | G29: $us | H29: 99999999 | I29: $us | J29: 1999 | L29: =H29 -> 99999999 | M29: =L29*$D$43 -> 102199999 | N29: 104448399 | O29: 106746263.7 | P29: 109094681.5 | Q29: 111494764.5 | R29: 113947649.3 | S29: 116454497.6 | T29: 119016496.6 | U29: 121634859.5 | V29: =U29*$D$43 -> 124310826.4 | W29: =V29*$D$43 -> 127045664.6 | X29: 3 | Y29: 202 | Z29: 628938.9336 | AA29: 2 | AD29: Carretera nueva | AE29: 5
A30: 29 | B30: Rio Yata - El Chorro | C30: El Beni | D30: Bolivia | E30: Rio Yata - El Chorro | F30: 316800000 | G30: $us | H30: 316800000 | I30: $us | J30: 2010 | W30: =H30 -> 316800000 | X30: 3 | Y30: 264 | Z30: 1200000 | AA30: 3 | AD30: Mejoramiento de carretera | AE30: 1
A31: 30 | B31: Chiata - Lurasani | C31: La Paz | D31: Bolivia | E31: Chiata - Lurasani | F31: 250000 | G31: $us | H31: 250000 | I31: $us | J31: 2010 | W31: =H31 -> 250000 | X31: 1 | Y31: 25 | Z31: 10000 | AA31: 1 | AD31: Carretera nueva | AE31: 5
A32: 31 | B32: MEJORAMIENTO Y CONSTRUCCIÓN DE LA CARRETERA REPOSO SARAMIRIZA, SECTOR: REPOSO DURAN DEL EJE VIAL N° 4 DE INTERCONEXIÓN VIAL PERÚ ECUADOR. | C32: AMAZONAS-LORETO | D32: PERÚ | E32: SANTA MARÍA DE NIEVA-SARAMERIZA | F32: 38725272 | G32: US$ | H32: 38725272 | I32: $us | J32: 2004 | Q32: =H32 -> 38725272 | R32: =Q32*$D$43 -> 39577227.98 | S32: 40447927 | T32: 41337781.39 | U32: 42247212.58 | V32: 43176651.26 | W32: 44126537.59 | X32: 1 | Y32: 69.4 | Z32: 635829.0719 | AA32: 2 | AD32: Carretera nueva | AE32: 5
A33: 32 | B33: INTERCONEXIÓN VIAL PUCALLPA-CRUZEIRO DO SUL | C33: UCAYALI | D33: PERÚ | E33: PUCALLPA-FRONTERA CON BRASIL (HITO Nº67) | F33: 78441042.8 | G33: US$ | H33: 78441042.8 | I33: $us | J33: 2010 | W33: =H33 -> 78441042.8 | X33: 2 | Y33: 95.6 | Z33: 820513 | AA33: 2 | AD33: Carretera nueva | AE33: 5
A34: 33 | B34: IIRSA SUR | C34: CUSCO | D34: PERU | E34: TRAMO 2 (NUEVO TRAZO) | F34: 70136400 | G34: US$ | H34: 70136400 | I34: $us | J34: 2010 | W34: =H34 -> 70136400 | X34: 2 | Y34: 63.3 | Z34: 1108000 | AA34: 3 | AD34: Carretera nueva | AE34: 5
A35: 34 | B35: SANTA MARÍA-SANTA TERESA-MACHU PICCHU | C35: CUSCO | D35: PERÚ | E35: SANTA TERESA-MACHU PICCHU | F35: 10392000 | G35: US$ | H35: 10392000 | I35: $us | J35: 2004 | Q35: =F35 -> 10392000 | R35: =Q35*$D$43 -> 10620624 | S35: 10854277.73 | T35: 11093071.84 | U35: 11337119.42 | V35: 11586536.05 | W35: 11841439.84 | X35: 1 | Y35: 12 | Z35: 986786.6532 | AA35: 2 | AD35: Carretera nueva | AE35: 5
A36: 35 | B36: CARRETERA PURUS-IÑAPARI, RUTA MD-104 Y UC-104 | C36: MADRE DE DIOS-UCAYALI | D36: PERÚ | E36: CARRETERA PURUS-IÑAPARI, RUTA MD-104 Y UC-104 | F36: 93690000 | G36: US$ | H36: 93690000 | I36: $us | J36: 2004 | Q36: =F36 -> 93690000 | R36: 95751180 | S36: 97857705.96 | T36: 100010575.5 | U36: 102210808.2 | V36: 104459445.9 | W36: 106757553.7 | X36: 3 | Y36: 180 | Z36: 593097.5208 | AA36: 2 | AD36: Carretera nueva | AE36: 5
A37: 36 | B37: CARRETERA IBERIA- ITAHUANIA-LD CUSCO (PUENTE CARBON CU-113 A PAUCARTAMBO). RUTA MD-103 | C37: MADRE DE DIOS | D37: PERÚ | E37: CARRETERA IBERIA- ITAHUANIA-LD CUSCO (PUENTE CARBON CU-113 A PAUCARTAMBO). RUTA MD-103 Y CU-113 | F37: 187380000 | G37: US$ | H37: 187380000 | I37: $us | J37: 2004 | Q37: 187380000 | R37: 191502360 | S37: 195715411.9 | T37: 200021151 | U37: 204421616.3 | V37: 208918891.9 | W37: 213515107.5 | X37: 3 | Y37: 360 | Z37: 593097.5208 | AA37: 2 | AD37: Carretera nueva | AE37: 5
Z39: =MIN(Z2:Z37) -> 10000
B40: Tipos de cambio | C40: Colombia | D40: =1800 -> 1800 | Z40: =MAX(Z2:Z37) -> 10838684.77
C41: Brasil | D41: =1.59 -> 1.59 | Z41: =AVERAGE(Z2:Z37) -> 1609213.97
C42: Perú | D42: 2.72 | Z42: =MEDIAN(Z2:Z37) -> 914189.3606
B43: Inflación anual | D43: 1.022

Sheet Longitud-PIB regional (hidden)
A2: ID | B2: Nombre carretera: | C2: Región/Estado: | D2: País: | E2: Nombre del tramo carretero que será evaluado: | F2: PIB regional | H2: Año estimación | I2: Distancia en Km: | J2: Calificacion | K2: Categorias | L2: Frequencia | M2: PIB regional / distancia | N2: Participacion porcentual en el PIB agregado de las carreteras de cada pais | P2: Calificacion | Q2: Categorias | R2: Frequencia
A3: 1 | B3: Via al Emblase Compensador. Coca Codo Sinclair | C3: Amazonia | D3: Ecuador | E3: Via al Emblase Compensador. | F3: 7557700 | G3: USD | H3: 2007 | I3: 30 | J3: =IF(I3<50,1,IF(I3<100,2,IF(I3<200,3,IF(I3<400,4,5)))) -> 1 | K3: 50 | L3: 13 | M3: =F3/I3 -> 251923.3333 | N3: Ecuador | O3: =M3/$N$4 -> 0.001639136644 | P3: =J3 -> 1 | Q3: 0.25 | R3: =FREQUENCY(O3:O38,Q3:Q7) -> 6
A4: 2 | B4: Coca - La Belleza | C4: Amazonia | D4: Ecuador | E4: Coca - La Belleza | F4: 2508375 | G4: USD | H4: 2007 | I4: 26 | J4: =IF(I4<50,1,IF(I4<100,2,IF(I4<200,3,IF(I4<400,4,5)))) -> 1 | K4: 100 | L4: 9 | M4: 96475.96154 | N4: =SUM(M3:M12) -> 153692698.1 | O4: =M4/$N$4 -> 0.0006277198771 | P4: =IF(O4>25%,1,IF(O4>15%,2,IF(O4>10%,3,IF(O4>5%,4,5)))) -> 5 | Q4: 0.15 | R4: =FREQUENCY(O4:O39,Q4:Q8) -> 4
A5: 3 | B5: Cuenca -Macas | C5: Amazonia | D5: Ecuador | E5: Sucua - Bella Unión | F5: 176526 | G5: USD | H5: 2007 | I5: 45 | J5: 1 | K5: 200 | L5: 4 | M5: 3922.8 | O5: 2.552365889e-05 | P5: 5 | Q5: 0.1 | R5: =FREQUENCY(O5:O40,Q5:Q9) -> 4
A6: 4 | B6: Macuma - Taisha | C6: Amazonia | D6: Ecuador | E6: Cangaime - Taisha | F6: 2331160000 | G6: USD | H6: 2007 | I6: 25.33 | J6: 1 | K6: 400 | L6: 5 | M6: 92031583.1 | O6: 0.5988025733 | P6: 1 | Q6: 0.05 | R6: =FREQUENCY(O6:O41,Q6:Q10) -> 13
A7: 5 | B7: Sucumbios - Orellana | C7: Amazonia | D7: Ecuador | E7: Loreto - Murialdo | F7: 233116000 | G7: USD | H7: 2007 | I7: 10 | J7: 1 | K7: more | L7: 5 | M7: 23311600 | O7: 0.1516766918 | P7: 2 | Q7: less | R7: =36-R6-R5-R4-R3 -> 9
A8: 6 | B8: Lumbaqui - Maderos - Sardina - Puccuna | C8: Amazonia | D8: Ecuador | E8: Sardina - Lumbaqui | F8: 2158830 | G8: USD | H8: 2007 | I8: 73 | J8: 2 | M8: 29573.0137 | O8: 0.0001924165173 | P8: 5
A9: 7 | B9: Vía Acceso: Puerto Mirador | C9: Amazonia | D9: Ecuador | E9: Chuchumbletza - Ingreso Proyecto Mirador | F9: 141427000 | G9: USD | H9: 2007 | I9: 14 | J9: 1 | M9: 10101928.57 | O9: 0.06572809703 | P9: 4
A10: 8 | B10: =[1]Entrada!M5 -> Ecuador | C10: Amazonia | D10: Ecuador | E10: Sushufindi - Pto. Providencia | F10: 233116000 | G10: USD | H10: 2007 | I10: 46 | J10: 1 | M10: 5067739.13 | O10: 0.03297319388 | P10: 5
A11: 9 | B11: Sacha - Unión Milagreña | C11: Amazonia | D11: Ecuador | E11: Sacha - Unión Milagreña | F11: 233116000 | G11: USD | H11: 2007 | I11: 12.5 | J11: 1 | M11: 18649280 | O11: 0.1213413535 | P11: 3
A12: 10 | B12: Macuma - Taisha | C12: Amazonia | D12: Ecuador | E12: Macuma - Cangaime | F12: 176526000 | G12: USD | H12: 2007 | I12: 42.55 | J12: 1 | M12: 4148672.15 | O12: 0.02699329378 | P12: 5
A13: 11 | B13: Pasto - Mocoa | C13: Amazonía | D13: Colombia | E13: Variante San Francisco - Mocoa | F13: 1.67246802e+11 | G13: pesos col | H13: 0 | I13: 45.6 | J13: 1 | M13: 3667693025 | N13: Colombia | O13: =M13/$N$14 -> 0.05311270202 | P13: 4
A14: 12 | B14: Nuquí - Las Ánimas | C14: Chocó | D14: Colombia | E14: Nuquí - El Afirmado | F14: 1.277890837e+11 | G14: pesos col | H14: 0 | I14: 57 | J14: 2 | M14: 2241913750 | N14: =SUM(M13:M19) -> 6.905491315e+10 | O14: =M14/$N$14 -> 0.03246566605 | P14: 5
A15: 13 | B15: Transversal de la Macarena (Baraya , Huila - San Juan de Arama, Meta) | C15: Meta y Huila | D15: Colombia | E15: El Dorado - La Uribe | F15: 2.280678148e+11 | G15: pesos col | H15: 0 | I15: 66.6 | J15: 2 | M15: 3424441664 | O15: 0.0495901234 | P15: 5
A16: 14 | B16: Transversal de las Américas , Sector 1 Corredor Vial del Caribe | C16: Caribe | D16: Colombia | E16: Palo de Letras - Cacarica - Lomas Aisladas | F16: 2.224523436e+12 | G16: pesos col | H16: 0 | I16: 62 | J16: 2 | M16: 3.587941026e+10 | O16: 0.5195779507 | P16: 1
A17: 15 | B17: Ruta del Sol , Sector 1 | C17: Caribe - Andina | D17: Colombia | E17: Tobiagrande/Villeta - El Korán | F17: 8.450562114e+11 | G17: pesos col | H17: 0 | I17: 77.9 | J17: 2 | M17: 1.084796164e+10 | O17: 0.1570918149 | P17: 2
A18: 16 | B18: Ruta del Sol, Sector 2 | C18: Dto. Cundinamarca - Dto del Cesar - Valle del Río Magdalena | D18: Colombia | E18: Puerto Salgar - San Roque (Etapa 1: Tramo 1, 5 y 6) | F18: 8.924029943e+11 | G18: pesos col | H18: 0 | I18: 528 | J18: 5 | M18: 1690157186 | O18: 0.02447555299 | P18: 5
A19: 17 | B19: Ruta del Sol, Sector 3 | C19: Caribe | D19: Colombia | E19: San Roque - Ye de Ciénaga / Carmen de Bolivar - Valledupar | F19: 5.256051066e+12 | G19: pesos col | H19: 0 | I19: 465 | J19: 5 | M19: 1.130333563e+10 | O19: 0.1636861899 | P19: 2
A20: 18 | B20: BR-156 | C20: Amapa | D20: Brasil | E20: KM 555 a KM 767 | F20: 279190341 | G20: Real | H20: 2007 | I20: 152 | J20: 3 | M20: 1836778.559 | N20: Brasil | O20: =M20/$N$21 -> 0.008814232739 | P20: 5
A21: 19 | B21: BR-163 | C21: Para | D21: Brasil | E21: Km 0 a Km 651 | F21: 899970384 | G21: Real | H21: 2007 | I21: 651 | J21: 5 | M21: 1382442.986 | N21: =SUM(M20:M26) -> 208387798.9 | O21: =M21/$N$21 -> 0.006633991979 | P21: 5
A22: 20 | B22: BR-230 | C22: Para | D22: Brasil | E22: KM 152 a KM 984 | F22: 1636167441 | G22: Real | H22: 2007 | I22: 832 | J22: 5 | M22: 1966547.405 | O22: 0.009436960397 | P22: 5
A23: 21 | B23: BR-432 | C23: Roraima | D23: Brasil | E23: Km 119 a 165 | F23: 3132330332 | G23: Real | H23: 2007 | I23: 46.24 | J23: 1 | M23: 67740707.87 | O23: 0.3250704132 | P23: 1
A24: 22 | B24: BR-308 | C24: Para | D24: Brasil | E24: Km 203 a 318 | F24: 444537578 | G24: Real | H24: 2007 | I24: 163 | J24: 3 | M24: 2727224.405 | O24: 0.01308725568 | P24: 5
A25: 23 | B25: BR-422 | C25: Para | D25: Brasil | E25: Km 0 a 61,30 | F25: 2887908771 | G25: Real | H25: 2007 | I25: 61.3 | J25: 2 | M25: 47111072.94 | O25: 0.2260740465 | P25: 2
A26: 24 | B26: BR-319 | C26: Amazonas | D26: Brasil | E26: KM 250 a KM 655 | F26: 34677325003 | G26: Real | H26: 2007 | I26: 405 | J26: 5 | M26: 85623024.7 | O26: 0.4108830995 | P26: 1
A27: 25 | B27: Villa Tunari - San Ignacio de Moxos | C27: El Beni y Cochabamba | D27: Bolivia | E27: Isinuta - Monte Grande | F27: 89842646.8 | G27: $US | H27: 1996 | I27: 145 | J27: 3 | M27: 619604.4607 | N27: Bolivia | O27: =M27/$N$28 -> 0.3335290843 | P27: 1
A28: 26 | B28: Porvenir - El Chorro | C28: Pando | D28: Bolivia | E28: Porvenir - El Chorro | F28: 90783881.3 | G28: $US | H28: 1996 | I28: 337 | J28: 4 | M28: 269388.3718 | N28: =SUM(M27:M32) -> 1857722.429 | O28: =M28/$N$28 -> 0.1450100228 | P28: 3
A29: 27 | B29: Pumasani - Pelechuco | C29: La Paz | D29: Bolivia | E29: Pumasani - Pelechuco | F29: 9592138.6 | G29: $US | H29: 1996 | I29: 91 | J29: 2 | M29: 105408.1165 | O29: 0.05674050914 | P29: 4
A30: 28 | B30: Apolo - Ixiamas | C30: La Paz | D30: Bolivia | E30: Apolo - Ixiamas | F30: 24756760.6 | G30: $US | H30: 1996 | I30: 202 | J30: 4 | M30: 122558.2208 | O30: 0.06597229966 | P30: 4
A31: 29 | B31: Rio Yata - El Chorro | C31: El Beni | D31: Bolivia | E31: Rio Yata - El Chorro | F31: 94268516.9 | G31: $US | H31: 1996 | I31: 264 | J31: 4 | M31: 357077.7155 | O31: 0.1922126309 | P31: 2
A32: 30 | B32: Chiata - Lurasani | C32: La Paz | D32: Bolivia | E32: Chiata - Lurasani | F32: 9592138.6 | G32: $US | H32: 1996 | I32: 25 | J32: 1 | M32: 383685.544 | O32: 0.2065354533 | P32: 2
A33: 31 | B33: MEJORAMIENTO Y CONSTRUCCIÓN DE LA CARRETERA REPOSO SARAMIRIZA, SECTOR: REPOSO DURAN DEL EJE VIAL N° 4 DE INTERCONEXIÓN VIAL PERÚ ECUADOR. | C33: AMAZONAS-LORETO | D33: PERÚ | E33: SANTA MARÍA DE NIEVA-SARAMERIZA | F33: 4464545 | G33: NUEVOS SOLES | H33: 2009 | I33: 69.4 | J33: 2 | M33: 64330.6196 | N33: Peru | O33: =M33/$N$34 -> 0.1145063267 | P33: 3
A34: 32 | B34: INTERCONEXIÓN VIAL PUCALLPA-CRUZEIRO DO SUL | C34: UCAYALI | D34: PERÚ | E34: PUCALLPA-FRONTERA CON BRASIL (HITO Nº67) | F34: 1850376 | G34: NUEVOS SOLES | H34: 2009 | I34: 95.6 | J34: 2 | M34: 19355.39749 | N34: =SUM(M33:M38) -> 561808.4297 | O34: =M34/$N$34 -> 0.03445195278 | P34: 5
A35: 33 | B35: IIRSA SUR | C35: CUSCO | D35: PERU | E35: TRAMO 2 (NUEVO TRAZO) | F35: 4664246 | G35: NUEVOS SOLES | H35: 2009 | I35: 63.3 | J35: 2 | M35: 73684.77093 | O35: 0.1311563997 | P35: 3
A36: 34 | B36: SANTA MARÍA-SANTA TERESA-MACHU PICCHU | C36: CUSCO | D36: PERÚ | E36: SANTA TERESA-MACHU PICCHU | F36: 4664246 | G36: NUEVOS SOLES | H36: 2009 | I36: 12 | J36: 1 | M36: 388687.1667 | O36: 0.6918500082 | P36: 1
A37: 35 | B37: CARRETERA PURUS-IÑAPARI, RUTA MD-104 Y UC-104 | C37: MADRE DE DIOS-UCAYALI | D37: PERÚ | E37: CARRETERA PURUS-IÑAPARI, RUTA MD-104 Y UC-104 | F37: 2506849 | G37: NUEVOS SOLES | H37: 2009 | I37: 180 | J37: 3 | M37: 13926.93889 | O37: 0.0247894801 | P37: 5
A38: 36 | B38: CARRETERA IBERIA- ITAHUANIA-LD CUSCO (PUENTE CARBON CU-113 A PAUCARTAMBO). RUTA MD-103 | C38: MADRE DE DIOS | D38: PERÚ | E38: CARRETERA IBERIA- ITAHUANIA-LD CUSCO (PUENTE CARBON CU-113 A PAUCARTAMBO). RUTA MD-103 Y CU-113 | F38: 656473 | G38: NUEVOS SOLES | H38: 2009 | I38: 360 | J38: 4 | M38: 1823.536111 | O38: 0.003245832591 | P38: 5
B41: Tipos de cambio | C41: Colombia | D41: =1800 -> 1800
C42: Brasil | D42: =1.59 -> 1.59
C43: Perú | D43: 2.72
B45: Inflación anual | D45: 1.022

Sheet variables soc-leg (hidden)
A2: ID | B2: Nombre carretera: | C2: Región/Estado: | D2: País: | E2: Nombre del tramo carretero que será evaluado: | F2: Pueblos en aislamiento | G2: Calificacion | H2: Posibilidad de danos arqueologicos | I2: Calificacion | J2: Grado de rechazo de la población local afectada | K2: Calificacion | L2: Vulneraria la construccion de la carretera algun tipo de norma | M2: Calificacion | N2: Existencia de presion externa | O2: Calificacion
A3: 1 | B3: Via al Emblase Compensador. Coca Codo Sinclair | C3: Amazonia | D3: Ecuador | E3: Via al Emblase Compensador. | F3: No Existen | G3: 1 | H3: Si Existen | I3: 5 | J3: medio | K3: =IF(J3="muy bajo",1,IF(J3="bajo",2,IF(J3="medio",3,IF(J3="alto",4,5)))) -> 3 | L3: No | M3: =IF(L3="No",1,5) -> 1 | N3: medio | O3: =IF(N3="muy bajo",1,IF(N3="bajo",2,IF(N3="medio",3,IF(N3="alto",4,5)))) -> 3
A4: 2 | B4: Coca - La Belleza | C4: Amazonia | D4: Ecuador | E4: Coca - La Belleza | F4: No Existen | G4: 1 | H4: No Existen | I4: 1 | J4: bajo | K4: =IF(J4="muy bajo",1,IF(J4="bajo",2,IF(J4="medio",3,IF(J4="alto",4,5)))) -> 2 | L4: No | M4: =IF(L4="No",1,5) -> 1 | N4: bajo | O4: =IF(N4="muy bajo",1,IF(N4="bajo",2,IF(N4="medio",3,IF(N4="alto",4,5)))) -> 2
A5: 3 | B5: Cuenca -Macas | C5: Amazonia | D5: Ecuador | E5: Sucua - Bella Unión | F5: No Existen | G5: 1 | H5: No Existen | I5: 1 | J5: muy bajo | K5: 1 | L5: No | M5: 1 | N5: medio | O5: 3
A6: 4 | B6: Macuma - Taisha | C6: Amazonia | D6: Ecuador | E6: Cangaime - Taisha | F6: No Existen | G6: 1 | H6: No Existen | I6: 1 | J6: muy bajo | K6: 1 | L6: No | M6: 1 | N6: bajo | O6: 2
A7: 5 | B7: Sucumbios - Orellana | C7: Amazonia | D7: Ecuador | E7: Loreto - Murialdo | F7: No Existen | G7: 1 | H7: No Existen | I7: 1 | J7: muy bajo | K7: 1 | L7: No | M7: 1 | N7: bajo | O7: 2
A8: 6 | B8: Lumbaqui - Maderos - Sardina - Puccuna | C8: Amazonia | D8: Ecuador | E8: Sardina - Lumbaqui | F8: No Existen | G8: 1 | H8: No Existen | I8: 1 | J8: muy bajo | K8: 1 | L8: No | M8: 1 | N8: medio | O8: 3
A9: 7 | B9: Vía Acceso: Puerto Mirador | C9: Amazonia | D9: Ecuador | E9: Chuchumbletza - Ingreso Proyecto Mirador | F9: No Existen | G9: 1 | H9: No Existen | I9: 1 | J9: medio | K9: 3 | L9: No | M9: 1 | N9: bajo | O9: 2
A10: 8 | B10: =[1]Entrada!M5 -> Ecuador | C10: Amazonia | D10: Ecuador | E10: Sushufindi - Pto. Providencia | F10: No Existen | G10: 1 | H10: No Existen | I10: 1 | J10: bajo | K10: 2 | L10: No | M10: 1 | N10: medio | O10: 3
A11: 9 | B11: Sacha - Unión Milagreña | C11: Amazonia | D11: Ecuador | E11: Sacha - Unión Milagreña | F11: No Existen | G11: 1 | H11: No Existen | I11: 1 | J11: bajo | K11: 2 | L11: No | M11: 1 | N11: medio | O11: 3
A12: 10 | B12: Macuma - Taisha | C12: Amazonia | D12: Ecuador | E12: Macuma - Cangaime | F12: No Existen | G12: 1 | H12: No Existen | I12: 1 | J12: bajo | K12: 2 | L12: No | M12: 1 | N12: medio | O12: 3
A13: 11 | B13: Pasto - Mocoa | C13: Amazonía | D13: Colombia | E13: Variante San Francisco - Mocoa | F13: No Existen | G13: 1 | H13: Existen | I13: 5 | J13: medio | K13: 3 | L13: No | M13: 1 | N13: alto | O13: 4
A14: 12 | B14: Nuquí - Las Ánimas | C14: Chocó | D14: Colombia | E14: Nuquí - El Afirmado | F14: No Existen | G14: 1 | H14: No Existen | I14: 1 | J14: medio | K14: 3 | L14: Si | M14: 5 | N14: bajo | O14: 2
A15: 13 | B15: Transversal de la Macarena (Baraya , Huila - San Juan de Arama, Meta) | C15: Meta y Huila | D15: Colombia | E15: El Dorado - La Uribe | F15: No Existen | G15: 1 | H15: No Existen | I15: 1 | J15: bajo | K15: 2 | L15: No | M15: 1 | N15: bajo | O15: 2
A16: 14 | B16: Transversal de las Américas , Sector 1 Corredor Vial del Caribe | C16: Caribe | D16: Colombia | E16: Palo de Letras - Cacarica - Lomas Aisladas | F16: No Existen | G16: 1 | H16: No Existen | I16: 1 | J16: muy alto | K16: 5 | L16: Si | M16: 5 | N16: muy alto | O16: 5
A17: 15 | B17: Ruta del Sol , Sector 1 | C17: Caribe - Andina | D17: Colombia | E17: Tobiagrande/Villeta - El Korán | F17: No Existen | G17: 1 | H17: Existen | I17: 5 | J17: bajo | K17: 2 | L17: No | M17: 1 | N17: bajo | O17: 2
A18: 16 | B18: Ruta del Sol, Sector 2 | C18: Dto. Cundinamarca - Dto del Cesar - Valle del Río Magdalena | D18: Colombia | E18: Puerto Salgar - San Roque (Etapa 1: Tramo 1, 5 y 6) | F18: No Existen | G18: 1 | H18: No Existen | I18: 1 | J18: bajo | K18: 2 | L18: No | M18: 1 | N18: bajo | O18: 2
A19: 17 | B19: Ruta del Sol, Sector 3 | C19: Caribe | D19: Colombia | E19: San Roque - Ye de Ciénaga / Carmen de Bolivar - Valledupar | F19: No Existen | G19: 1 | H19: No Existen | I19: 1 | J19: bajo | K19: 2 | L19: No | M19: 1 | N19: bajo | O19: 2
A20: 18 | B20: BR-156 | C20: Amapa | D20: Brasil | E20: KM 555 a KM 767 | F20: No Existen | G20: 1 | H20: No Existen | I20: 1 | J20: medio | K20: 3 | L20: No | M20: 1 | N20: bajo | O20: 2
A21: 19 | B21: BR-163 | C21: Para | D21: Brasil | E21: Km 0 a Km 651 | F21: No Existen | G21: 1 | H21: No Existen | I21: 1 | J21: bajo | K21: 2 | L21: No | M21: 1 | N21: muy alto | O21: 5
A22: 20 | B22: BR-230 | C22: Para | D22: Brasil | E22: KM 152 a KM 984 | F22: No Existen | G22: 1 | H22: No Existen | I22: 1 | J22: muy bajo | K22: 1 | L22: No | M22: 1 | N22: muy bajo | O22: 1
A23: 21 | B23: BR-432 | C23: Roraima | D23: Brasil | E23: Km 119 a 165 | F23: No Existen | G23: 1 | H23: No Existen | I23: 1 | J23: muy bajo | K23: 1 | L23: No | M23: 1 | N23: muy bajo | O23: 1
A24: 22 | B24: BR-308 | C24: Para | D24: Brasil | E24: Km 203 a 318 | F24: No Existen | G24: 1 | H24: No Existen | I24: 1 | J24: muy bajo | K24: 1 | L24: Si | M24: 5 | N24: muy bajo | O24: 1
A25: 23 | B25: BR-422 | C25: Para | D25: Brasil | E25: Km 0 a 61,30 | F25: No Existen | G25: 1 | H25: No Existen | I25: 1 | J25: muy bajo | K25: 1 | L25: No | M25: 1 | N25: medio | O25: 3
A26: 24 | B26: BR-319 | C26: Amazonas | D26: Brasil | E26: KM 250 a KM 655 | F26: No Existen | G26: 1 | H26: No Existen | I26: 1 | J26: muy bajo | K26: 1 | L26: No | M26: 1 | N26: medio | O26: 3
A27: 25 | B27: Villa Tunari - San Ignacio de Moxos | C27: El Beni y Cochabamba | D27: Bolivia | E27: Isinuta - Monte Grande | F27: No Existen | G27: 1 | H27: No Existen | I27: 1 | J27: muy alto | K27: 5 | L27: Si | M27: 5 | N27: alto | O27: 4
A28: 26 | B28: Porvenir - El Chorro | C28: Pando | D28: Bolivia | E28: Porvenir - El Chorro | F28: Existen | G28: 5 | H28: No Existen | I28: 1 | J28: medio | K28: 3 | L28: No | M28: 1 | N28: bajo | O28: 2
A29: 27 | B29: Pumasani - Pelechuco | C29: La Paz | D29: Bolivia | E29: Pumasani - Pelechuco | F29: No Existen | G29: 1 | H29: No Existen | I29: 1 | J29: bajo | K29: 2 | L29: No | M29: 1 | N29: bajo | O29: 2
A30: 28 | B30: Apolo - Ixiamas | C30: La Paz | D30: Bolivia | E30: Apolo - Ixiamas | F30: Existen | G30: 5 | H30: No Existen | I30: 1 | J30: alto | K30: 4 | L30: Si | M30: 5 | N30: medio | O30: 3
A31: 29 | B31: Rio Yata - El Chorro | C31: El Beni | D31: Bolivia | E31: Rio Yata - El Chorro | F31: Existen | G31: 5 | H31: No Existen | I31: 1 | J31: medio | K31: 3 | L31: No | M31: 1 | N31: bajo | O31: 2
A32: 30 | B32: Chiata - Lurasani | C32: La Paz | D32: Bolivia | E32: Chiata - Lurasani | F32: No Existen | G32: 1 | H32: No Existen | I32: 1 | J32: bajo | K32: 2 | L32: Si | M32: 5 | N32: medio | O32: 3
A33: 31 | B33: MEJORAMIENTO Y CONSTRUCCIÓN DE LA CARRETERA REPOSO SARAMIRIZA, SECTOR: REPOSO DURAN DEL EJE VIAL N° 4 DE INTERCONEXIÓN VIAL PERÚ ECUADOR. | C33: AMAZONAS-LORETO | D33: PERÚ | E33: SANTA MARÍA DE NIEVA-SARAMERIZA | F33: Existen | G33: 5 | H33: No Existen | I33: 1 | J33: bajo | K33: 2 | L33: No | M33: 1 | N33: medio | O33: 3
A34: 32 | B34: INTERCONEXIÓN VIAL PUCALLPA-CRUZEIRO DO SUL | C34: UCAYALI | D34: PERÚ | E34: PUCALLPA-FRONTERA CON BRASIL (HITO Nº67) | F34: Existen | G34: 5 | H34: No Existen | I34: 1 | J34: muy alto | K34: 5 | L34: Si | M34: 5 | N34: alto | O34: 4
A35: 33 | B35: IIRSA SUR | C35: CUSCO | D35: PERU | E35: TRAMO 2 (NUEVO TRAZO) | F35: Existen | G35: 5 | H35: No Existen | I35: 1 | J35: medio | K35: 3 | L35: Si | M35: 5 | N35: alto | O35: 4
A36: 34 | B36: SANTA MARÍA-SANTA TERESA-MACHU PICCHU | C36: CUSCO | D36: PERÚ | E36: SANTA TERESA-MACHU PICCHU | F36: No Existen | G36: 1 | H36: Existen | I36: 5 | J36: bajo | K36: 2 | L36: Si | M36: 5 | N36: muy bajo | O36: 1
A37: 35 | B37: CARRETERA PURUS-IÑAPARI, RUTA MD-104 Y UC-104 | C37: MADRE DE DIOS-UCAYALI | D37: PERÚ | E37: CARRETERA PURUS-IÑAPARI, RUTA MD-104 Y UC-104 | F37: Existen | G37: 5 | H37: No Existen | I37: 1 | J37: muy alto | K37: 5 | L37: Si | M37: 5 | N37: muy bajo | O37: 1
A38: 36 | B38: CARRETERA IBERIA- ITAHUANIA-LD CUSCO (PUENTE CARBON CU-113 A PAUCARTAMBO). RUTA MD-103 | C38: MADRE DE DIOS | D38: PERÚ | E38: CARRETERA IBERIA- ITAHUANIA-LD CUSCO (PUENTE CARBON CU-113 A PAUCARTAMBO). RUTA MD-103 Y CU-113 | F38: Existen | G38: 5 | H38: No Existen | I38: 1 | J38: bajo | K38: 2 | L38: Si | M38: 5 | N38: muy bajo | O38: 1
B41: Tipos de cambio | C41: Colombia | D41: =1800 -> 1800
C42: Brasil | D42: =1.59 -> 1.59
B44: Inflación anual | D44: 1.022

Sheet Valores_GEO_Areas (hidden)
A1: Area según rango asignado por carretera (ha)
A3: A.3. Nombre carretera: | B3: A.2. Región/Estado: | C3: A.1. País: | D3: Carretera | E3: Cobertura de arboles (Rangos) | J3: Humedales (Rangos) | L3: Balance hidrico promedio (Rangos) | Q3: Intervencion Humana (Rangos) | V3: Prox areas de conservacion/terr indígenas (Rangos) | AA3: Ingreso bruto por agricultura (Rangos) | AF3: Pendiente (Rangos) | AK3: Densidad poblacional (Rangos)
E4: 1 | F4: 2 | G4: 3 | H4: 4 | I4: 5 | J4: 1 | K4: 5 | L4: 1 | M4: 2 | N4: 3 | O4: 4 | P4: 5 | Q4: 1 | R4: 2 | S4: 3 | T4: 4 | U4: 5 | V4: 1 | W4: 2 | X4: 3 | Y4: 4 | Z4: 5 | AA4: 5 | AB4: 4 | AC4: 3 | AD4: 2 | AE4: 1 | AF4: 1 | AG4: 2 | AH4: 3 | AI4: 4 | AJ4: 5 | AK4: 5 | AL4: 4 | AM4: 3 | AN4: 2 | AO4: 1
A5: Via al Emblase Compensador. Coca Codo Sinclair | B5: Amazonia | C5: Ecuador | D5: 1 | E5: 4692 | F5: 13489 | G5: 34816 | H5: 134813 | I5: 13393 | J5: 194729 | K5: 11840 | L5: 0 | M5: 0 | N5: 0 | O5: 181504 | P5: 25065 | Q5: 100 | R5: 5745 | S5: 79575 | T5: 77778 | U5: 43371 | V5: 0 | W5: 0 | X5: 0 | Y5: 0 | Z5: 206569 | AA5: 9284 | AB5: 95478 | AC5: 45643 | AD5: 56164 | AE5: 0 | AF5: 3636 | AG5: 68218 | AH5: 77647 | AI5: 57068 | AJ5: 0 | AK5: 0 | AL5: 0 | AM5: 206569 | AN5: 0 | AO5: 0
A6: Coca - La Belleza | B6: Amazonia | C6: Ecuador | D6: 2 | E6: 700 | F6: 2141 | G6: 6860 | H6: 75459 | I6: 15823 | J6: 100966 | K6: 1687 | L6: 0 | M6: 0 | N6: 0 | O6: 95728 | P6: 6925 | Q6: 0 | R6: 14992 | S6: 59211 | T6: 28450 | U6: 0 | V6: 0 | W6: 0 | X6: 50016 | Y6: 52637 | Z6: 0 | AA6: 60827 | AB6: 41526 | AC6: 0 | AD6: 0 | AE6: 0 | AF6: 99622 | AG6: 3031 | AH6: 0 | AI6: 0 | AJ6: 0 | AK6: 0 | AL6: 0 | AM6: 102653 | AN6: 0 | AO6: 0
A7: Cuenca -Macas | B7: Amazonia | C7: Ecuador | D7: 3 | E7: 18561 | F7: 44260 | G7: 63206 | H7: 127094 | I7: 13621 | J7: 280650 | K7: 0 | L7: 0 | M7: 26600 | N7: 0 | O7: 254050 | P7: 0 | Q7: 0 | R7: 89444 | S7: 172376 | T7: 18830 | U7: 0 | V7: 0 | W7: 0 | X7: 8133 | Y7: 168274 | Z7: 104243 | AA7: 17600 | AB7: 127084 | AC7: 126289 | AD7: 8189 | AE7: 1488 | AF7: 7511 | AG7: 75258 | AH7: 113893 | AI7: 83888 | AJ7: 100 | AK7: 0 | AL7: 0 | AM7: 198919 | AN7: 81731 | AO7: 0
A8: Macuma - Taisha | B8: Amazonia | C8: Ecuador | D8: 4 | E8: 0 | F8: 393 | G8: 1690 | H8: 52203 | I8: 19614 | J8: 73900 | K8: 0 | L8: 0 | M8: 0 | N8: 0 | O8: 73900 | P8: 0 | Q8: 0 | R8: 0 | S8: 2994 | T8: 51656 | U8: 19250 | V8: 0 | W8: 68110 | X8: 5790 | Y8: 0 | Z8: 0 | AA8: 53021 | AB8: 14720 | AC8: 6159 | AD8: 0 | AE8: 0 | AF8: 58222 | AG8: 15395 | AH8: 122 | AI8: 161 | AJ8: 0 | AK8: 0 | AL8: 0 | AM8: 73900 | AN8: 0 | AO8: 0
A9: Sucumbios - Orellana | B9: Amazonia | C9: Ecuador | D9: 5 | E9: 2300 | F9: 4926 | G9: 10037 | H9: 112288 | I9: 19549 | J9: 150116 | K9: 4190 | L9: 0 | M9: 0 | N9: 0 | O9: 40810 | P9: 113496 | Q9: 0 | R9: 9639 | S9: 109038 | T9: 34119 | U9: 1510 | V9: 0 | W9: 0 | X9: 39149 | Y9: 87689 | Z9: 27468 | AA9: 79267 | AB9: 26790 | AC9: 39649 | AD9: 0 | AE9: 0 | AF9: 96757 | AG9: 54118 | AH9: 2974 | AI9: 457 | AJ9: 0 | AK9: 0 | AL9: 0 | AM9: 142357 | AN9: 11949 | AO9: 0
A10: Lumbaqui - Maderos - Sardina - Puccuna | B10: Amazonia | C10: Ecuador | D10: 6 | E10: 8522 | F10: 21892 | G10: 24869 | H10: 210745 | I10: 23358 | J10: 209000 | K10: 93950 | L10: 0 | M10: 0 | N10: 20047 | O10: 109491 | P10: 173412 | Q10: 800 | R10: 97272 | S10: 184200 | T10: 15756 | U10: 4922 | V10: 0 | W10: 0 | X10: 33668 | Y10: 137392 | Z10: 131890 | AA10: 302195 | AB10: 755 | AC10: 0 | AD10: 0 | AE10: 0 | AF10: 193052 | AG10: 82222 | AH10: 26308 | AI10: 1368 | AJ10: 0 | AK10: 0 | AL10: 0 | AM10: 256825 | AN10: 46125 | AO10: 0
A11: Vía Acceso: Puerto Mirador | B11: Amazonia | C11: Ecuador | D11: 7 | E11: 4210 | F11: 14043 | G11: 22440 | H11: 100803 | I11: 21074 | J11: 124082 | K11: 40185 | L11: 0 | M11: 0 | N11: 20134 | O11: 144133 | P11: 0 | Q11: 0 | R11: 35766 | S11: 105376 | T11: 23125 | U11: 0 | V11: 0 | W11: 0 | X11: 930 | Y11: 79325 | Z11: 83734 | AA11: 495 | AB11: 75752 | AC11: 86146 | AD11: 1874 | AE11: 0 | AF11: 5636 | AG11: 51433 | AH11: 64038 | AI11: 43160 | AJ11: 0 | AK11: 0 | AL11: 0 | AM11: 92464 | AN11: 71545 | AO11: 0
A12: =[2]Entrada!M6 -> Amazonia | B12: =[2]Entrada!M5 -> Ecuador | C12: Ecuador | D12: 8 | E12: 10926 | F12: 25238 | G12: 23651 | H12: 128340 | I12: 24111 | J12: 208081 | K12: 16267 | L12: 0 | M12: 0 | N12: 0 | O12: 175297 | P12: 49051 | Q12: 11961 | R12: 54496 | S12: 70826 | T12: 51718 | U12: 35347 | V12: 0 | W12: 0 | X12: 5499 | Y12: 100509 | Z12: 118340 | AA12: 224348 | AB12: 0 | AC12: 0 | AD12: 0 | AE12: 0 | AF12: 218265 | AG12: 6083 | AH12: 0 | AI12: 0 | AJ12: 0 | AK12: 0 | AL12: 0 | AM12: 74862 | AN12: 149486 | AO12: 0
A13: Sacha - Unión Milagreña | B13: Amazonia | C13: Ecuador | D13: 9 | E13: 17085 | F13: 39782 | G13: 33515 | H13: 65195 | I13: 9886 | J13: 163393 | K13: 9727 | L13: 0 | M13: 0 | N13: 0 | O13: 172578 | P13: 542 | Q13: 4679 | R13: 112098 | S13: 45180 | T13: 4316 | U13: 6847 | V13: 0 | W13: 0 | X13: 59391 | Y13: 86996 | Z13: 26733 | AA13: 173120 | AB13: 0 | AC13: 0 | AD13: 0 | AE13: 0 | AF13: 168794 | AG13: 4326 | AH13: 0 | AI13: 0 | AJ13: 0 | AK13: 0 | AL13: 0 | AM13: 31724 | AN13: 141396 | AO13: 0
A14: Macuma - Taisha | B14: Amazonia | C14: Ecuador | D14: 10 | E14: 1129 | F14: 2945 | G14: 16678 | H14: 150279 | I14: 37669 | J14: 198692 | K14: 15898 | L14: 0 | M14: 0 | N14: 0 | O14: 175509 | P14: 39081 | Q14: 0 | R14: 3271 | S14: 105636 | T14: 101807 | U14: 3876 | V14: 0 | W14: 147471 | X14: 67119 | Y14: 0 | Z14: 0 | AA14: 21262 | AB14: 102137 | AC14: 74042 | AD14: 13457 | AE14: 0 | AF14: 53773 | AG14: 114243 | AH14: 30231 | AI14: 16343 | AJ14: 0 | AK14: 0 | AL14: 0 | AM14: 214375 | AN14: 215 | AO14: 0
A15: Pasto - Mocoa | B15: Amazonía | C15: Colombia | D15: 11 | E15: 17545 | F15: 41757 | G15: 49259 | H15: 113167 | I15: 13929 | J15: 247568 | K15: 1329 | L15: 0 | M15: 0 | N15: 0 | O15: 123450 | P15: 125447 | Q15: 4200 | R15: 94609 | S15: 144031 | T15: 6057 | U15: 0 | V15: 0 | W15: 0 | X15: 0 | Y15: 25115 | Z15: 223782 | AA15: 20796 | AB15: 172359 | AC15: 55742 | AD15: 0 | AE15: 0 | AF15: 13550 | AG15: 52647 | AH15: 79306 | AI15: 103394 | AJ15: 0 | AK15: 0 | AL15: 0 | AM15: 23058 | AN15: 216339 | AO15: 9500
A16: Nuquí - Las Ánimas | B16: Chocó | C16: Colombia | D16: 12 | E16: 21116 | F16: 38078 | G16: 141408 | H16: 207238 | I16: 25659 | J16: 505537 | K16: 9700 | L16: 0 | M16: 0 | N16: 0 | O16: 0 | P16: 470370 | Q16: 100 | R16: 105651 | S16: 319598 | T16: 35219 | U16: 10300 | V16: 0 | W16: 0 | X16: 0 | Y16: 0 | Z16: 471271 | AA16: 188180 | AB16: 216552 | AC16: 58808 | AD16: 0 | AE16: 0 | AF16: 271777 | AG16: 209066 | AH16: 31187 | AI16: 3207 | AJ16: 0 | AK16: 0 | AL16: 0 | AM16: 67965 | AN16: 403066 | AO16: 0
A17: Transversal de la Macarena (Baraya , Huila - San Juan de Arama, Meta) | B17: Meta y Huila | C17: Colombia | D17: 13 | E17: 49442 | F17: 98608 | G17: 55682 | H17: 171664 | I17: 20016 | J17: 435132 | K17: 0 | L17: 0 | M17: 12301 | N17: 197588 | O17: 225243 | P17: 0 | Q17: 398 | R17: 81733 | S17: 230729 | T17: 119584 | U17: 2688 | V17: 0 | W17: 0 | X17: 460 | Y17: 272473 | Z17: 162199 | AA17: 23616 | AB17: 132475 | AC17: 113354 | AD17: 160807 | AE17: 0 | AF17: 44001 | AG17: 130935 | AH17: 142802 | AI17: 117394 | AJ17: 0 | AK17: 0 | AL17: 0 | AM17: 294623 | AN17: 140505 | AO17: 4
A18: Transversal de las Américas , Sector 1 Corredor Vial del Caribe | B18: Caribe | C18: Colombia | D18: 14 | E18: 60215 | F18: 89518 | G18: 83960 | H18: 147134 | I18: 54608 | J18: 296288 | K18: 191501 | L18: 0 | M18: 0 | N18: 0 | O18: 487789 | P18: 0 | Q18: 3400 | R18: 133241 | S18: 149226 | T18: 131327 | U18: 21537 | V18: 0 | W18: 0 | X18: 0 | Y18: 24676 | Z18: 418718 | AA18: 179266 | AB18: 179564 | AC18: 105008 | AD18: 23951 | AE18: 0 | AF18: 355801 | AG18: 105900 | AH18: 18471 | AI18: 7617 | AJ18: 0 | AK18: 0 | AL18: 0 | AM18: 208888 | AN18: 229826 | AO18: 4241
A19: Ruta del Sol , Sector 1 | B19: Caribe - Andina | C19: Colombia | D19: 15 | E19: 37995 | F19: 97616 | G19: 61566 | H19: 65533 | I19: 1587 | J19: 269397 | K19: 4137 | L19: 0 | M19: 1764 | N19: 182022 | O19: 89748 | P19: 0 | Q19: 7572 | R19: 176398 | S19: 89564 | T19: 0 | U19: 0 | V19: 0 | W19: 253065 | X19: 20469 | Y19: 0 | Z19: 0 | AA19: 1004 | AB19: 13207 | AC19: 106782 | AD19: 144643 | AE19: 7898 | AF19: 11085 | AG19: 83093 | AH19: 115689 | AI19: 63667 | AJ19: 0 | AK19: 0 | AL19: 0 | AM19: 0 | AN19: 250131 | AO19: 23403
A20: Ruta del Sol, Sector 2 | B20: Dto. Cundinamarca - Dto del Cesar - Valle del Río Magdalena | C20: Colombia | D20: 16 | E20: 461217 | F20: 916992 | G20: 278741 | H20: 304341 | I20: 88343 | J20: 2140215 | K20: 75451 | L20: 0 | M20: 233219 | N20: 1415785 | O20: 559239 | P20: 7423 | Q20: 78097 | R20: 1538167 | S20: 597105 | T20: 2297 | U20: 0 | V20: 4404 | W20: 1092870 | X20: 874136 | Y20: 234482 | Z20: 9774 | AA20: 1164529 | AB20: 706401 | AC20: 219018 | AD20: 36289 | AE20: 9800 | AF20: 1596790 | AG20: 380403 | AH20: 154028 | AI20: 84445 | AJ20: 0 | AK20: 0 | AL20: 0 | AM20: 167139 | AN20: 1874807 | AO20: 173720
A21: Ruta del Sol, Sector 3 (Vertical) | B21: Caribe | C21: Colombia | D21: 17.1 | E21: 133721 | F21: 421878 | G21: 163491 | H21: 118794 | I21: 7787 | J21: 923509 | K21: 16194 | L21: 71981 | M21: 242631 | N21: 515118 | O21: 76830 | P21: 0 | Q21: 80366 | R21: 637660 | S21: 184275 | T21: 4184 | U21: 0 | V21: 0 | W21: 42429 | X21: 304419 | Y21: 434067 | Z21: 125725 | AA21: 139845 | AB21: 479534 | AC21: 159747 | AD21: 79393 | AE21: 18708 | AF21: 661635 | AG21: 111825 | AH21: 104968 | AI21: 61275 | AJ21: 0 | AK21: 0 | AL21: 0 | AM21: 19088 | AN21: 816012 | AO21: 71237
A22: Ruta del Sol, Sector 3 (Horizontal) | B22: Caribe | C22: Colombia | D22: 17.2 | E22: 285069 | F22: 585873 | G22: 197848 | H22: 34301 | I22: 2300 | J22: 1177674 | K22: 22480 | L22: 581962 | M22: 285545 | N22: 332647 | O22: 0 | P22: 0 | Q22: 51413 | R22: 822108 | S22: 326633 | T22: 0 | U22: 0 | V22: 0 | W22: 55070 | X22: 499456 | Y22: 526252 | Z22: 119376 | AA22: 63700 | AB22: 717249 | AC22: 274269 | AD22: 71646 | AE22: 13292 | AF22: 879059 | AG22: 211277 | AH22: 76510 | AI22: 33308 | AJ22: 0 | AK22: 0 | AL22: 0 | AM22: 0 | AN22: 1200154 | AO22: 0
A23: BR-156 | B23: Amapa | C23: Brasil | D23: 18 | E23: 52019 | F23: 85049 | G23: 88380 | H23: 266242 | I23: 108595 | J23: 461966 | K23: 322256 | L23: 0 | M23: 0 | N23: 0 | O23: 195444 | P23: 474538 | Q23: 0 | R23: 2200 | S23: 50432 | T23: 246814 | U23: 373422 | V23: 0 | W23: 253732 | X23: 237867 | Y23: 155545 | Z23: 24357 | AA23: 500008 | AB23: 132954 | AC23: 2596 | AD23: 0 | AE23: 0 | AF23: 783120 | AG23: 1102 | AH23: 0 | AI23: 0 | AJ23: 0 | AK23: 0 | AL23: 670731 | AM23: 0 | AN23: 0 | AO23: 0
A24: BR-163 | B24: Para | C24: Brasil | D24: 19 | E24: 131027 | F24: 407619 | G24: 377041 | H24: 1113654 | I24: 970151 | J24: 3002691 | K24: 52388 | L24: 0 | M24: 0 | N24: 883512 | O24: 2171567 | P24: 0 | Q24: 0 | R24: 20418 | S24: 592870 | T24: 1490888 | U24: 950903 | V24: 522906 | W24: 1209054 | X24: 632340 | Y24: 441689 | Z24: 249090 | AA24: 1358082 | AB24: 1155795 | AC24: 393626 | AD24: 120018 | AE24: 0 | AF24: 2027690 | AG24: 1015468 | AH24: 11921 | AI24: 0 | AJ24: 0 | AK24: 0 | AL24: 1397987 | AM24: 1657092 | AN24: 0 | AO24: 0
A25: BR-230 | B25: Para | C25: Brasil | D25: 20 | E25: 325366 | F25: 734026 | G25: 624188 | H25: 1109232 | I25: 203175 | J25: 3023995 | K25: 230111 | L25: 0 | M25: 0 | N25: 2286598 | O25: 967508 | P25: 0 | Q25: 9300 | R25: 275732 | S25: 1168558 | T25: 1272724 | U25: 398159 | V25: 0 | W25: 630805 | X25: 1177261 | Y25: 1010079 | Z25: 435961 | AA25: 300149 | AB25: 1019189 | AC25: 1372535 | AD25: 359731 | AE25: 0 | AF25: 2432488 | AG25: 820518 | AH25: 1100 | AI25: 0 | AJ25: 0 | AK25: 410148 | AL25: 203408 | AM25: 2370199 | AN25: 270351 | AO25: 0
A26: BR-432 | B26: Roraima | C26: Brasil | D26: 21 | E26: 6978 | F26: 21022 | G26: 27901 | H26: 102867 | I26: 190682 | J26: 349650 | K26: 0 | L26: 0 | M26: 0 | N26: 349650 | O26: 0 | P26: 0 | Q26: 0 | R26: 0 | S26: 8392 | T26: 31763 | U26: 309495 | V26: 0 | W26: 153023 | X26: 99138 | Y26: 81401 | Z26: 16088 | AA26: 329081 | AB26: 20569 | AC26: 0 | AD26: 0 | AE26: 0 | AF26: 276557 | AG26: 51011 | AH26: 18084 | AI26: 3998 | AJ26: 0 | AK26: 0 | AL26: 44355 | AM26: 305295 | AN26: 0 | AO26: 0
A27: BR-308 | B27: Para | C27: Brasil | D27: 22 | E27: 83225 | F27: 243958 | G27: 135941 | H27: 147076 | I27: 26123 | J27: 482935 | K27: 360039 | L27: 0 | M27: 0 | N27: 57046 | O27: 642688 | P27: 0 | Q27: 2400 | R27: 271671 | S27: 419382 | T27: 22330 | U27: 0 | V27: 320616 | W27: 424878 | X27: 0 | Y27: 0 | Z27: 0 | AA27: 182694 | AB27: 328621 | AC27: 40447 | AD27: 12136 | AE27: 0 | AF27: 839118 | AG27: 3856 | AH27: 0 | AI27: 0 | AJ27: 0 | AK27: 0 | AL27: 0 | AM27: 0 | AN27: 743317 | AO27: 0
A28: BR-422 | B28: Para | C28: Brasil | D28: 23 | E28: 38465 | F28: 66102 | G28: 41778 | H28: 76920 | I28: 6433 | J28: 250979 | K28: 132531 | L28: 0 | M28: 0 | N28: 0 | O28: 383510 | P28: 0 | Q28: 1500 | R28: 73531 | S28: 173888 | T28: 3499 | U28: 0 | V28: 0 | W28: 5309 | X28: 145794 | Y28: 169396 | Z28: 63011 | AA28: 9440 | AB28: 79485 | AC28: 119768 | AD28: 33833 | AE28: 0 | AF28: 327742 | AG28: 55468 | AH28: 300 | AI28: 0 | AJ28: 0 | AK28: 0 | AL28: 0 | AM28: 192069 | AN28: 191441 | AO28: 0
A29: BR-319 | B29: Amazonas | C29: Brasil | D29: 24 | E29: 26263 | F29: 60072 | G29: 65824 | H29: 369423 | I29: 2086537 | J29: 2525449 | K29: 200415 | L29: 0 | M29: 0 | N29: 1631770 | O29: 1094094 | P29: 0 | Q29: 19133 | R29: 76844 | S29: 355540 | T29: 930023 | U29: 1344324 | V29: 62162 | W29: 1796648 | X29: 596832 | Y29: 235666 | Z29: 34556 | AA29: 1194371 | AB29: 1198600 | AC29: 153699 | AD29: 11257 | AE29: 0 | AF29: 2709282 | AG29: 16582 | AH29: 0 | AI29: 0 | AJ29: 0 | AK29: 0 | AL29: 1700212 | AM29: 904854 | AN29: 49414 | AO29: 71384
A30: Villa Tunari - San Ignacio de Moxos | B30: El Beni y Cochabamba | C30: Bolivia | D30: 25 | E30: 33353 | F30: 150329 | G30: 117836 | H30: 577871 | I30: 326297 | J30: 1206413 | K30: 13755 | L30: 0 | M30: 1480 | N30: 344192 | O30: 657983 | P30: 216513 | Q30: 0 | R30: 110877 | S30: 279995 | T30: 318256 | U30: 511040 | V30: 0 | W30: 0 | X30: 1153 | Y30: 206475 | Z30: 1012540 | AA30: 1139142 | AB30: 81026 | AC30: 0 | AD30: 0 | AE30: 0 | AF30: 1048250 | AG30: 110237 | AH30: 48308 | AI30: 13373 | AJ30: 0 | AK30: 0 | AL30: 477281 | AM30: 689008 | AN30: 53879 | AO30: 0
A31: Porvenir - El Chorro | B31: Pando | C31: Bolivia | D31: 26 | E31: 21403 | F31: 56247 | G31: 45430 | H31: 447590 | I31: 597779 | J31: 1180414 | K31: 16215 | L31: 0 | M31: 643789 | N31: 552840 | O31: 0 | P31: 0 | Q31: 0 | R31: 6359 | S31: 556521 | T31: 507550 | U31: 126199 | V31: 0 | W31: 2852 | X31: 330288 | Y31: 362706 | Z31: 499383 | AA31: 1113590 | AB31: 74939 | AC31: 0 | AD31: 0 | AE31: 0 | AF31: 1140403 | AG31: 56226 | AH31: 0 | AI31: 0 | AJ31: 0 | AK31: 0 | AL31: 919352 | AM31: 267475 | AN31: 8402 | AO31: 0
A32: Pumasani - Pelechuco | B32: La Paz | C32: Bolivia | D32: 27 | E32: 23586 | F32: 5900 | G32: 800 | H32: 200 | I32: 200 | J32: 154460 | K32: 1632 | L32: 0 | M32: 156084 | N32: 8 | O32: 0 | P32: 0 | Q32: 0 | R32: 5211 | S32: 90863 | T32: 45575 | U32: 14443 | V32: 0 | W32: 0 | X32: 0 | Y32: 28193 | Z32: 127090 | AA32: 74725 | AB32: 73567 | AC32: 7800 | AD32: 0 | AE32: 0 | AF32: 33376 | AG32: 97675 | AH32: 23803 | AI32: 1238 | AJ32: 0 | AK32: 0 | AL32: 0 | AM32: 56959 | AN32: 98332 | AO32: 0
A33: Apolo - Ixiamas | B33: La Paz | C33: Bolivia | D33: 28 | E33: 47359 | F33: 77072 | G33: 39890 | H33: 265217 | I33: 166584 | J33: 609050 | K33: 464 | L33: 0 | M33: 0 | N33: 609514 | O33: 0 | P33: 0 | Q33: 0 | R33: 0 | S33: 38527 | T33: 207118 | U33: 363869 | V33: 0 | W33: 0 | X33: 0 | Y33: 35460 | Z33: 574054 | AA33: 368986 | AB33: 185623 | AC33: 54905 | AD33: 0 | AE33: 0 | AF33: 121204 | AG33: 221862 | AH33: 195811 | AI33: 70637 | AJ33: 0 | AK33: 0 | AL33: 276200 | AM33: 333314 | AN33: 0 | AO33: 0
A34: Rio Yata - El Chorro | B34: El Beni | C34: Bolivia | D34: 29 | E34: 74841 | F34: 299684 | G34: 118098 | H34: 171179 | I34: 300328 | J34: 973033 | K34: 9715 | L34: 0 | M34: 982748 | N34: 0 | O34: 0 | P34: 0 | Q34: 0 | R34: 0 | S34: 240323 | T34: 290934 | U34: 451491 | V34: 0 | W34: 0 | X34: 46397 | Y34: 321593 | Z34: 614758 | AA34: 496982 | AB34: 472837 | AC34: 12929 | AD34: 0 | AE34: 0 | AF34: 981748 | AG34: 1000 | AH34: 0 | AI34: 0 | AJ34: 0 | AK34: 0 | AL34: 759929 | AM34: 222819 | AN34: 0 | AO34: 0
A35: Chiata - Lurasani | B35: La Paz | C35: Bolivia | D35: 30 | E35: 29952 | F35: 22460 | G35: 11958 | H35: 24495 | I35: 12172 | J35: 191881 | K35: 968 | L35: 0 | M35: 48857 | N35: 143992 | O35: 0 | P35: 0 | Q35: 0 | R35: 3187 | S35: 10822 | T35: 74240 | U35: 104600 | V35: 0 | W35: 0 | X35: 0 | Y35: 0 | Z35: 192749 | AA35: 37917 | AB35: 153025 | AC35: 1907 | AD35: 0 | AE35: 0 | AF35: 949 | AG35: 29079 | AH35: 57611 | AI35: 104510 | AJ35: 700 | AK35: 0 | AL35: 0 | AM35: 192392 | AN35: 356 | AO35: 0
A36: MEJORAMIENTO Y CONSTRUCCIÓN DE LA CARRETERA REPOSO SARAMIRIZA, SECTOR: REPOSO DURAN DEL EJE VIAL N° 4 DE INTERCONEXIÓN VIAL PERÚ ECUADOR. | B36: AMAZONAS-LORETO | C36: PERÚ | D36: 31 | E36: 5244 | F36: 10825 | G36: 20730 | H36: 183998 | I36: 94601 | J36: 282499 | K36: 63860 | L36: 0 | M36: 0 | N36: 181960 | O36: 164399 | P36: 0 | Q36: 0 | R36: 0 | S36: 6983 | T36: 291520 | U36: 47856 | V36: 0 | W36: 0 | X36: 26334 | Y36: 100526 | Z36: 219499 | AA36: 260859 | AB36: 48035 | AC36: 0 | AD36: 0 | AE36: 0 | AF36: 223747 | AG36: 79321 | AH36: 32810 | AI36: 10481 | AJ36: 0 | AK36: 0 | AL36: 0 | AM36: 346359 | AN36: 0 | AO36: 0
A37: INTERCONEXIÓN VIAL PUCALLPA-CRUZEIRO DO SUL | B37: UCAYALI | C37: PERÚ | D37: 32 | E37: 22118 | F37: 35645 | G37: 24397 | H37: 297606 | I37: 292092 | J37: 606825 | K37: 112022 | L37: 0 | M37: 465961 | N37: 252886 | O37: 0 | P37: 0 | Q37: 4300 | R37: 48166 | S37: 264813 | T37: 294941 | U37: 106627 | V37: 0 | W37: 0 | X37: 9176 | Y37: 208108 | Z37: 496866 | AA37: 686047 | AB37: 8200 | AC37: 0 | AD37: 0 | AE37: 0 | AF37: 648573 | AG37: 64635 | AH37: 4839 | AI37: 800 | AJ37: 0 | AK37: 0 | AL37: 0 | AM37: 714158 | AN37: 0 | AO37: 0
A38: IIRSA SUR | B38: CUSCO | C38: PERU | D38: 33 | E38: 1800 | F38: 5670 | G38: 13548 | H38: 221420 | I38: 34863 | J38: 284780 | K38: 4260 | L38: 0 | M38: 0 | N38: 1762 | O38: 0 | P38: 287278 | Q38: 0 | R38: 2097 | S38: 70765 | T38: 100465 | U38: 115713 | V38: 0 | W38: 0 | X38: 9151 | Y38: 153686 | Z38: 126203 | AA38: 114603 | AB38: 148229 | AC38: 18708 | AD38: 0 | AE38: 0 | AF38: 26941 | AG38: 161927 | AH38: 67303 | AI38: 32869 | AJ38: 0 | AK38: 0 | AL38: 45245 | AM38: 65559 | AN38: 178236 | AO38: 0
A39: SANTA MARÍA-SANTA TERESA-MACHU PICCHU | B39: CUSCO | C39: PERÚ | D39: 34 | E39: 16182 | F39: 23921 | G39: 22019 | H39: 47637 | I39: 9430 | J39: 155195 | K39: 600 | L39: 0 | M39: 155795 | N39: 0 | O39: 0 | P39: 0 | Q39: 0 | R39: 41215 | S39: 114580 | T39: 0 | U39: 0 | V39: 0 | W39: 0 | X39: 0 | Y39: 19527 | Z39: 136268 | AA39: 2010 | AB39: 130160 | AC39: 23625 | AD39: 0 | AE39: 0 | AF39: 400 | AG39: 8119 | AH39: 23498 | AI39: 121160 | AJ39: 2618 | AK39: 0 | AL39: 0 | AM39: 108425 | AN39: 47370 | AO39: 0
A40: CARRETERA PURUS-IÑAPARI, RUTA MD-104 Y UC-104 | B40: MADRE DE DIOS-UCAYALI | C40: PERÚ | D40: 35 | E40: 4852 | F40: 17997 | G40: 25015 | H40: 517898 | I40: 595411 | J40: 1162173 | K40: 0 | L40: 0 | M40: 0 | N40: 1162173 | O40: 0 | P40: 0 | Q40: 0 | R40: 1760 | S40: 56584 | T40: 143150 | U40: 960679 | V40: 0 | W40: 0 | X40: 0 | Y40: 74674 | Z40: 1085220 | AA40: 1158106 | AB40: 4067 | AC40: 0 | AD40: 0 | AE40: 0 | AF40: 1137103 | AG40: 25070 | AH40: 0 | AI40: 0 | AJ40: 0 | AK40: 0 | AL40: 880263 | AM40: 279588 | AN40: 0 | AO40: 0
A41: CARRETERA IBERIA- ITAHUANIA-LD CUSCO (PUENTE CARBON CU-113 A PAUCARTAMBO). RUTA MD-103 | B41: MADRE DE DIOS | C41: PERÚ | D41: 36 | E41: 6100 | F41: 17827 | G41: 35698 | H41: 660100 | I41: 530584 | J41: 1200633 | K41: 74421 | L41: 0 | M41: 0 | N41: 431534 | O41: 843520 | P41: 0 | Q41: 0 | R41: 400 | S41: 44036 | T41: 483203 | U41: 747415 | V41: 0 | W41: 34006 | X41: 191780 | Y41: 172346 | Z41: 876922 | AA41: 1178638 | AB41: 82762 | AC41: 1391 | AD41: 0 | AE41: 0 | AF41: 986211 | AG41: 213719 | AH41: 46199 | AI41: 28925 | AJ41: 0 | AK41: 0 | AL41: 882043 | AM41: 393011 | AN41: 0 | AO41: 0
D43: Calculo para Promedios ponderados
D45: 1 | E45: =(E5/SUM($E5:$I5))*E$4 -> 0.02331973181 | F45: 0.1340834878 | G45: 0.5191175082 | H45: 2.680138964 | I45: 0.3328230692 | J45: =(J5/SUM($J5:$K5))*J$4 -> 0.9426825903 | K45: =(K5/SUM($J5:$K5))*K$4 -> 0.2865870484 | L45: =(L5/SUM($L5:$P5))*L$4 -> 0 | M45: =(M5/SUM($L5:$P5))*M$4 -> 0 | N45: 0 | O45: 3.514641597 | P45: 0.6066980041 | Q45: =(Q5/SUM($Q5:$U5))*Q$4 -> 0.0004840997439 | R45: =(R5/SUM($Q5:$U5))*R$4 -> 0.05562306058 | S45: 1.155667114 | T45: 1.506092395 | U45: 1.0497945 | V45: =(V5/SUM($V5:$Z5))*V$4 -> 0 | W45: =(W5/SUM($V5:$Z5))*W$4 -> 0 | X45: 0 | Y45: 0 | Z45: 5 | AA45: =(AA5/SUM($AA5:$AE5))*AA$4 -> 0.2247191011 | AB45: =(AB5/SUM($AA5:$AE5))*AB$4 -> 1.848835014 | AC45: 0.6628729383 | AD45: 0.5437795603 | AE45: 0 | AF45: =(AF5/SUM($AF5:$AJ5))*AF$4 -> 0.01760186669 | AG45: =(AG5/SUM($AF5:$AJ5))*AG$4 -> 0.6604863266 | AH45: 1.127666784 | AI45: 1.105064167 | AJ45: 0 | AK45: =(AK5/SUM($AK5:$AO5))*AK$4 -> 0 | AL45: =(AL5/SUM($AK5:$AO5))*AL$4 -> 0 | AM45: 3 | AN45: 0 | AO45: 0
D46: 2 | E46: 0.006931859818 | F46: 0.04240317677 | G46: 0.2037966786 | H46: 2.988978343 | I46: 0.7834486993 | J46: =(J6/SUM($J6:$K6))*J$4 -> 0.9835659942 | K46: 0.08217002913 | L46: =(L6/SUM($L6:$P6))*L$4 -> 0 | M46: 0 | N46: 0 | O46: 3.730158885 | P46: 0.337301394 | Q46: =(Q6/SUM($Q6:$U6))*Q$4 -> 0 | R46: 0.2920908303 | S46: 1.730421907 | T46: 1.10858913 | U46: 0 | V46: =(V6/SUM($V6:$Z6))*V$4 -> 0 | W46: 0 | X46: 1.461701071 | Y46: 2.051065239 | Z46: 0 | AA46: =(AA6/SUM($AA6:$AE6))*AA$4 -> 2.9714322 | AB46: 1.62285424 | AC46: 0 | AD46: 0 | AE46: 0 | AF46: =(AF6/SUM($AF6:$AJ6))*AF$4 -> 0.9704733422 | AG46: 0.05905331554 | AH46: 0 | AI46: 0 | AJ46: 0 | AK46: =(AK6/SUM($AK6:$AO6))*AK$4 -> 0 | AL46: 0 | AM46: 3 | AN46: 0 | AO46: 0
D47: 3 | E47: 0.06958409249 | F47: 0.3318562506 | G47: 0.7108666802 | H47: 1.905871591 | I47: 0.2553216216 | J47: 1 | K47: 0 | L47: 0 | M47: 0.1895599501 | N47: 0 | O47: 3.6208801 | P47: 0 | Q47: 0 | R47: 0.6374060217 | S47: 1.842608231 | T47: 0.268376982 | U47: 0 | V47: 0 | W47: 0 | X47: 0.0869374666 | Y47: 2.398346695 | Z47: 1.857170853 | AA47: 0.3135578122 | AB47: 1.811280955 | AC47: 1.349962587 | AD47: 0.05835738464 | AE47: 0.005301977552 | AF47: 0.0267628719 | AG47: 0.5363121325 | AH47: 1.217455906 | AI47: 1.195624443 | AJ47: 0.001781578479 | AK47: 0 | AL47: 0 | AM47: 2.126338856 | AN47: 0.5824407625 | AO47: 0
D48: 4 | E48: 0 | F48: 0.01063599459 | G48: 0.06860622463 | H48: 2.825602165 | I48: 1.327063599 | J48: 1 | K48: 0 | L48: 0 | M48: 0 | N48: 0 | O48: 4 | P48: 0 | Q48: 0 | R48: 0 | S48: 0.1215426252 | T48: 2.795994587 | U48: 1.302435724 | V48: 0 | W48: 1.843301759 | X48: 0.2350473613 | Y48: 0 | Z48: 0 | AA48: 3.587347767 | AB48: 0.7967523681 | AC48: 0.2500270636 | AD48: 0 | AE48: 0 | AF48: 0.7878484438 | AG48: 0.4166441137 | AH48: 0.004952638701 | AI48: 0.008714479026 | AJ48: 0 | AK48: 0 | AL48: 0 | AM48: 3 | AN48: 0 | AO48: 0
D49: 5 | E49: 0.01542588867 | F49: 0.06607645875 | G49: 0.2019517103 | H49: 3.012421194 | I49: 0.6555667337 | J49: 0.9728461628 | K49: 0.1357691859 | L49: 0 | M49: 0 | N49: 0 | O49: 1.057897943 | P49: 3.677627571 | Q49: 0 | R49: 0.1249335735 | S49: 2.119904605 | T49: 0.8844503778 | U49: 0.04892875196 | V49: 0 | W49: 0 | X49: 0.761130481 | Y49: 2.273119645 | Z49: 0.8900496416 | AA49: 2.720100751 | AB49: 0.7354535846 | AC49: 0.816349361 | AD49: 0 | AE49: 0 | AF49: 0.6270462587 | AG49: 0.7014374036 | AH49: 0.0578201755 | AI49: 0.01184659054 | AJ49: 0 | AK49: 0 | AL49: 0 | AM49: 2.767688878 | AN49: 0.1548740814 | AO49: 0
D50: 6 | E50: 0.0294485566 | F50: 0.1512996482 | G50: 0.2578113661 | H50: 2.9129951 | I50: 0.4035786113 | J50: 0.6898828189 | K50: 1.550585905 | L50: 0 | M50: 0 | N50: 0.1985179072 | O50: 1.445664301 | P50: 2.862056445 | Q50: 0.002640699785 | R50: 0.6421653738 | S50: 1.824063377 | T50: 0.2080343291 | U50: 0.08123452715 | V50: 0 | W50: 0 | X50: 0.3334015514 | Y50: 1.814055125 | Z50: 2.176761842 | AA50: 4.987539198 | AB50: 0.00996864169 | AC50: 0 | AD50: 0 | AE50: 0 | AF50: 0.6372404687 | AG50: 0.5428090444 | AH50: 0.2605182373 | AI50: 0.01806238653 | AJ50: 0 | AK50: 0 | AL50: 0 | AM50: 2.543241459 | AN50: 0.304505694 | AO50: 0
D51: 7 | E51: 0.02589653688 | F51: 0.1727625023 | G51: 0.4140985422 | H51: 2.480236206 | I51: 0.6481515655 | J51: 0.7553677854 | K51: 1.223161073 | L51: 0 | M51: 0 | N51: 0.3677062344 | O51: 3.509725021 | P51: 0 | Q51: 0 | R51: 0.4354617787 | S51: 1.924476614 | T51: 0.5631076236 | U51: 0 | V51: 0 | W51: 0 | X51: 0.01701333626 | Y51: 1.934885876 | Z51: 2.553037094 | AA51: 0.01506693371 | AB51: 1.844606646 | AC51: 1.573280087 | AD51: 0.02281651214 | AE51: 0 | AF51: 0.03430999531 | AG51: 0.6262122033 | AH51: 1.169522789 | AI51: 1.050971893 | AJ51: 0 | AK51: 0 | AL51: 0 | AM51: 1.691321818 | AN51: 0.8724521215 | AO51: 0
D52: 8 | E52: 0.05147315161 | F52: 0.237795973 | G52: 0.3342645549 | H52: 2.418474932 | I52: 0.5679430526 | J52: 0.9274921105 | K52: 0.3625394476 | L52: 0 | M52: 0 | N52: 0 | O52: 3.125447965 | P52: 1.093190044 | Q52: 0.05331449355 | R52: 0.4858166777 | S52: 0.9470911263 | T52: 0.9221031612 | U52: 0.7877716761 | V52: 0 | W52: 0 | X52: 0.07353308253 | Y52: 1.792019541 | Z52: 2.637420436 | AA52: 5 | AB52: 0 | AC52: 0 | AD52: 0 | AE52: 0 | AF52: 0.9728858737 | AG52: 0.05422825254 | AH52: 0 | AI52: 0 | AJ52: 0 | AK52: 0 | AL52: 0 | AM52: 1.001060852 | AN52: 1.332626099 | AO52: 0
D53: 9 | E53: 0.1032557128 | F53: 0.4808567474 | G53: 0.6076585098 | H53: 1.576062322 | I53: 0.2987374821 | J53: 0.9438135397 | K53: 0.2809323013 | L53: 0 | M53: 0 | N53: 0 | O53: 3.987476895 | P53: 0.0156538817 | Q53: 0.02702749538 | R53: 1.295032348 | S53: 0.7829251386 | T53: 0.09972273567 | U53: 0.1977530037 | V53: 0 | W53: 0 | X53: 1.029187847 | Y53: 2.010073937 | Z53: 0.7720945009 | AA53: 5 | AB53: 0 | AC53: 0 | AD53: 0 | AE53: 0 | AF53: 0.9750115527 | AG53: 0.04997689464 | AH53: 0 | AI53: 0 | AJ53: 0 | AK53: 0 | AL53: 0 | AM53: 0.549745841 | AN53: 1.633502773 | AO53: 0
D54: 10 | E54: 0.005409678965 | F54: 0.0282223287 | G54: 0.2397412554 | H54: 2.880287494 | I54: 0.9024676569 | J54: 0.9259145347 | K54: 0.3704273265 | L54: 0 | M54: 0 | N54: 0 | O54: 3.271522438 | P54: 0.9105969523 | Q54: 0 | R54: 0.03048604315 | S54: 1.476806934 | T54: 1.897702596 | U54: 0.0903117573 | V54: 0 | W54: 1.374444289 | X54: 0.9383335663 | Y54: 0 | Z54: 0 | AA54: 0.5040825423 | AB54: 1.937182904 | AC54: 1.053239007 | AD54: 0.1276161936 | AE54: 0 | AF54: 0.2505848362 | AG54: 1.064756046 | AH54: 0.4226338599 | AI54: 0.3046367491 | AJ54: 0 | AK54: 0 | AL54: 0 | AM54: 2.996994268 | AN54: 0.002003821241 | AO54: 0
D55: 11 | E55: 0.07445142729 | F55: 0.3543879452 | G55: 0.627085128 | H55: 1.920876528 | I55: 0.2955354604 | J55: 0.9946604419 | K55: 0.02669779065 | L55: 0 | M55: 0 | N55: 0 | O55: 1.983953202 | P55: 2.520058498 | Q55: 0.01687445007 | R55: 0.7602261176 | S55: 1.73603137 | T55: 0.09734147057 | U55: 0 | V55: 0 | W55: 0 | X55: 0 | Y55: 0.4036207749 | Z55: 4.495474031 | AA55: 0.4177631711 | AB55: 2.769965086 | AC55: 0.6718682829 | AD55: 0 | AE55: 0 | AF55: 0.05444019012 | AG55: 0.4230424633 | AH55: 0.955889384 | AI55: 1.661635134 | AJ55: 0 | AK55: 0 | AL55: 0 | AM55: 0.2779221927 | AN55: 1.73838174 | AO55: 0.03816839898
D56: 12 | E56: 0.04871060833 | F56: 0.1756774525 | G56: 0.9786043336 | H56: 1.912235092 | I56: 0.2959522398 | J56: 0.9811737123 | K56: 0.09413143854 | L56: 0 | M56: 0 | N56: 0 | O56: 0 | P56: 5 | Q56: 0.0002123737438 | R56: 0.4487499681 | S56: 2.036226713 | T56: 0.2991836353 | U56: 0.1093724781 | V56: 0 | W56: 0 | X56: 0 | Y56: 0 | Z56: 5 | AA56: 2.02981404 | AB56: 1.868680157 | AC56: 0.3806014583 | AD56: 0 | AE56: 0 | AF56: 0.5274795871 | AG56: 0.8115333332 | AH56: 0.1815882788 | AI56: 0.02489728028 | AJ56: 0 | AK56: 0 | AL56: 0 | AM56: 0.4328695988 | AN56: 1.711420267 | AO56: 0
D57: 13 | E57: 0.1250391996 | F57: 0.4987607862 | G57: 0.4224606233 | H57: 1.736558324 | I57: 0.2531030925 | J57: 1 | K57: 0 | L57: 0 | M57: 0.05653916513 | N57: 1.362262486 | O57: 2.070571689 | P57: 0 | Q57: 0.0009146649752 | R57: 0.3756699117 | S57: 1.590751772 | T57: 1.099289411 | U57: 0.03088717906 | V57: 0 | W57: 0 | X57: 0.003171451422 | Y57: 2.504738792 | Z57: 1.863790758 | AA57: 0.2744438143 | AB57: 1.231603804 | AC57: 0.7903786618 | AD57: 0.7475014643 | AE57: 0 | AF57: 0.1011210391 | AG57: 0.6018173796 | AH57: 0.9845426215 | AI57: 1.079157589 | AJ57: 0 | AK57: 0 | AL57: 0 | AM57: 2.031266374 | AN57: 0.6458040319 | AO57: 9.192612816e-06
D58: 14 | E58: 0.1382870004 | F58: 0.4111658456 | G58: 0.5784560267 | H58: 1.351604717 | I58: 0.6270511098 | J58: 0.6074101712 | K58: 1.962949144 | L58: 0 | M58: 0 | N58: 0 | O58: 4 | P58: 0 | Q58: 0.007749623346 | R58: 0.6073926848 | S58: 1.020392906 | T58: 1.197335041 | U58: 0.2454465265 | V58: 0 | W58: 0 | X58: 0 | Y58: 0.2226101391 | Z58: 4.721737326 | AA58: 1.837536312 | AB58: 1.472472729 | AC58: 0.6458202214 | AD58: 0.09820229648 | AE58: 0 | AF58: 0.7294157925 | AG58: 0.4342041333 | AH58: 0.1136003477 | AI58: 0.06246143312 | AJ58: 0 | AK58: 0 | AL58: 0 | AM58: 1.414735131 | AN58: 1.037694574 | AO58: 0.009574335993
D59: 15 | E59: 0.143758726 | F59: 0.7386841319 | G59: 0.6988274555 | H59: 0.9918084579 | I59: 0.03002304226 | J59: 0.9848757376 | K59: 0.07562131216 | L59: 0 | M59: 0.01289784817 | N59: 1.996336836 | O59: 1.312421856 | P59: 0 | Q59: 0.0276821163 | R59: 1.289770193 | S59: 0.9822983614 | T59: 0 | U59: 0 | V59: 0 | W59: 1.850336704 | X59: 0.224494944 | Y59: 0 | Z59: 0 | AA59: 0.01835238033 | AB59: 0.193131384 | AC59: 1.171137774 | AD59: 1.057586991 | AE59: 0.02887392427 | AF59: 0.04052512668 | AG59: 0.6075515292 | AH59: 1.268825813 | AI59: 0.9310286838 | AJ59: 0 | AK59: 0 | AL59: 0 | AM59: 0 | AN59: 1.828884161 | AO59: 0.08555791967
D60: 16 | E60: 0.2250240775 | F60: 0.8947860935 | G60: 0.4079864991 | H60: 0.593942138 | I60: 0.215509208 | J60: 0.9659465822 | K60: 0.170267089 | L60: 0 | M60: 0.2105181918 | N60: 1.916965373 | O60: 1.009608849 | P60: 0.01675117098 | Q60: 0.03524764112 | R60: 1.388446634 | S60: 0.8084769997 | T60: 0.004146834406 | U60: 0 | V60: 0.001987664206 | W60: 0.9864934516 | X60: 1.183575503 | Y60: 0.4233165107 | Z60: 0.02205657351 | AA60: 2.725910179 | AB60: 1.3228254 | AC60: 0.3076042222 | AD60: 0.03397787585 | AE60: 0.004587935509 | AF60: 0.7206817273 | AG60: 0.3433757615 | AH60: 0.2085530942 | AI60: 0.1524507755 | AJ60: 0 | AK60: 0 | AL60: 0 | AM60: 0.2263053186 | AN60: 1.692319149 | AO60: 0.07840531921
D61: 17.1 | E61: =(E21/SUM($E21:$I21))*E$4 -> 0.1581241405 | F61: 0.997735526 | G61: 0.5799808673 | H61: 0.5618922725 | I61: 0.04604036321 | J61: 0.9827668955 | K61: 0.08616552251 | L61: 0.07940015002 | M61: 0.5352784151 | N61: 1.704635104 | O61: 0.3389957642 | P61: 0 | Q61: 0.08865673453 | R61: 1.406884835 | S61: 0.6098556512 | T61: 0.01846252282 | U61: 0 | V61: 0 | W61: 0.09359613518 | X61: 1.007298376 | Y61: 1.915057796 | Z61: 0.6933567899 | AA61: 0.797085589 | AB61: 2.186590244 | AC61: 0.546313554 | AD61: 0.1810090205 | AE61: 0.02132629297 | AF61: 0.7040894836 | AG61: 0.23800073 | AH61: 0.3351101359 | AI61: 0.2608270911 | AJ61: 0 | AK61: 0 | AL61: 0 | AM61: 0.06318179662 | AN61: 1.800681204 | AO61: 0.07859879934
D62: 17.2 | E62: 0.2578897422 | F62: 1.060028533 | G62: 0.5369538923 | H62: 0.1241225955 | I62: 0.01040355856 | J62: =(J22/SUM($J22:$K22))*J$4 -> 0.9812690705 | K62: 0.09365464765 | L62: =(L22/SUM($L22:$P22))*L$4 -> 0.4849061037 | M62: 0.4758472663 | N62: 0.8315107894 | O62: 0 | P62: 0 | Q62: =(Q22/SUM($Q22:$U22))*Q$4 -> 0.04283866904 | R62: 1.370004183 | S62: 0.8164777187 | T62: 0 | U62: 0 | V62: =(V22/SUM($V22:$Z22))*V$4 -> 0 | W62: 0.09177155598 | X62: 1.248479778 | Y62: 1.753948243 | Z62: 0.4973361752 | AA62: =(AA22/SUM($AA22:$AE22))*AA$4 -> 0.2793477384 | AB62: 2.51631882 | AC62: 0.7216617726 | AD62: 0.1256775389 | AE62: 0.01165805381 | AF62: =(AF22/SUM($AF22:$AJ22))*AF$4 -> 0.7324551683 | AG62: 0.3520831493 | AH62: 0.1912504562 | AI62: 0.1110124201 | AJ62: 0 | AK62: =(AK22/SUM($AK22:$AO22))*AK$4 -> 0 | AL62: 0 | AM62: 0 | AN62: 2 | AO62: 0
D63: 18 | E63: 0.08665717118 | F63: 0.2833620697 | G63: 0.4416901972 | H63: 1.774103967 | I63: 0.9045286822 | J63: 0.5890755424 | K63: 2.054622288 | L63: 0 | M63: 0 | N63: 0 | O63: 1.166861199 | P63: 3.541423501 | Q63: 0 | R63: 0.006539172616 | S63: 0.2248524228 | T63: 1.467235773 | U63: 2.774853314 | V63: 0 | W63: 0.755715926 | X63: 1.062695365 | Y63: 0.9265511146 | Z63: 0.1813623509 | AA63: 3.933614241 | AB63: 0.8367702082 | AC63: 0.01225379902 | AD63: 0 | AE63: 0 | AF63: 0.9985947857 | AG63: 0.00281042868 | AH63: 0 | AI63: 0 | AJ63: 0 | AK63: 0 | AL63: 4 | AM63: 0 | AN63: 0 | AO63: 0
D64: 19 | E64: 0.04368306367 | F64: 0.2717920234 | G64: 0.3771048564 | H64: 1.485123481 | I64: 1.617192178 | J64: 0.9828521619 | K64: 0.08573919038 | L64: 0 | M64: 0 | N64: 0.8675834569 | O64: 2.843222057 | P64: 0 | Q64: 0 | R64: 0.01336659379 | S64: 0.5821813446 | T64: 1.95201237 | U64: 1.556265812 | V64: 0.1711595674 | W64: 0.7915042459 | X64: 0.6209397531 | Y64: 0.5783012485 | Z64: 0.4076653992 | AA64: 2.242894434 | AB64: 1.52705134 | AC64: 0.3900478312 | AD64: 0.07928466888 | AE64: 0 | AF64: 0.6637111512 | AG64: 0.6647736442 | AH64: 0.01170608027 | AI64: 0 | AJ64: 0 | AK64: 0 | AL64: 1.830377545 | AM64: 1.627216841 | AN64: 0 | AO64: 0
D65: 20 | E65: 0.1086006047 | F65: 0.4900061315 | G65: 0.6250240739 | H65: 1.480957027 | I65: 0.3390785741 | J65: 0.9292859544 | K65: 0.3535702279 | L65: 0 | M65: 0 | N65: 2.108042578 | O65: 1.189276563 | P65: 0 | Q65: 0.002976501957 | R65: 0.1764982447 | S65: 1.122004895 | T65: 1.629361496 | U65: 0.637161851 | V65: 0 | W65: 0.3876978808 | X65: 1.085331271 | Y65: 1.241605529 | Z65: 0.6698629362 | AA65: 0.4917889084 | AB65: 1.335938739 | AC65: 1.349324814 | AD65: 0.235765191 | AE65: 0 | AF65: 0.7475134492 | AG65: 0.5042970327 | AH65: 0.001014103413 | AI65: 0 | AJ65: 0 | AK65: 0.6302007372 | AL65: 0.2500324206 | AM65: 2.185115359 | AN65: 0.1661599223 | AO65: 0
D66: 21 | E66: 0.01996852196 | F66: 0.1203147804 | G66: 0.2395278294 | H66: 1.177473172 | I66: 2.728315925 | J66: 1 | K66: 0 | L66: 0 | M66: 0 | N66: 3 | O66: 0 | P66: 0 | Q66: 0 | R66: 0 | S66: 0.072003432 | T66: 0.3633690834 | U66: 4.425782926 | V66: 0 | W66: 0.8752924353 | X66: 0.8506048906 | Y66: 0.9312283712 | Z66: 0.2300586301 | AA66: 4.705863006 | AB66: 0.2353095953 | AC66: 0 | AD66: 0 | AE66: 0 | AF66: 0.790953811 | AG66: 0.2917832118 | AH66: 0.1551608752 | AI66: 0.04573716574 | AJ66: 0 | AK66: 0 | AL66: 0.5074217074 | AM66: 2.619433719 | AN66: 0 | AO66: 0
D67: 22 | E67: 0.1307904948 | F67: 0.7667741069 | G67: 0.6409056407 | H67: 0.9245367526 | I67: 0.2052652505 | J67: 0.5728943004 | K67: 2.135528498 | L67: 0 | M67: 0 | N67: 0.2445757959 | O67: 3.673898939 | P67: 0 | Q67: 0.003352971501 | R67: 0.7590876006 | S67: 1.757719868 | T67: 0.1247864227 | U67: 0 | V67: 0.4300718718 | W67: 1.139856256 | X67: 0 | Y67: 0 | Z67: 0 | AA67: 1.619920624 | AB67: 2.331066966 | AC67: 0.215182533 | AD67: 0.04304324541 | AE67: 0 | AF67: 0.9954257189 | AG67: 0.009148562115 | AH67: 0 | AI67: 0 | AJ67: 0 | AK67: 0 | AL67: 0 | AM67: 0 | AN67: 2 | AO67: 0
D68: 23 | E68: 0.1674590114 | F68: 0.5755557297 | G68: 0.5456468929 | H68: 1.339497949 | I68: 0.1400316938 | J68: 0.654426221 | K68: 1.727868895 | L68: 0 | M68: 0 | N68: 0 | O68: 4 | P68: 0 | Q68: 0.005942523909 | R68: 0.5826129674 | S68: 2.066667195 | T68: 0.05544770975 | U68: 0 | V68: 0 | W68: 0.02768637063 | X68: 1.140470913 | Y68: 1.766796172 | Z68: 0.8215040025 | AA68: 0.194618309 | AB68: 1.310952228 | AC68: 1.481507137 | AD68: 0.2790051376 | AE68: 0 | AF68: 0.8545852781 | AG68: 0.2892649475 | AH68: 0.002346744544 | AI68: 0 | AJ68: 0 | AK68: 0 | AL68: 0 | AM68: 1.502456259 | AN68: 0.9983624938 | AO68: 0
D69: 24 | E69: 0.01006970924 | F69: 0.04606538275 | G69: 0.07571433665 | H69: 0.5665738411 | I69: 4.000080134 | J69: 0.9264765227 | K69: 0.3676173866 | L69: 0 | M69: 0 | N69: 1.795874629 | O69: 1.605500495 | P69: 0 | Q69: 0.007019058911 | R69: 0.05638138953 | S69: 0.3912961175 | T69: 1.364738666 | U69: 2.465867703 | V69: 0.02280451262 | W69: 1.318222773 | X69: 0.6568544872 | Y69: 0.3458220953 | Z69: 0.06338540734 | AA69: 2.334646376 | AB69: 1.874330268 | AC69: 0.1802619856 | AD69: 0.008801658531 | AE69: 0 | AF69: 0.9939167912 | AG69: 0.01216641769 | AH69: 0 | AI69: 0 | AJ69: 0 | AK69: 0 | AL69: 2.494932983 | AM69: 0.9958537917 | AN69: 0.03625566059 | AO69: 0.02618766013
D70: 25 | E70: 0.02766308973 | F70: 0.2493667505 | G70: 0.2932007173 | H70: 1.917152559 | I70: 1.353159114 | J70: 0.9887269622 | K70: 0.05636518906 | L70: 0 | M70: 0.00242589545 | N70: 0.8462572367 | O70: 2.157024279 | P70: 0.8872261852 | Q70: 0 | R70: 0.1817405472 | S70: 0.6884174966 | T70: 1.043318625 | U70: 2.094137856 | V70: 0 | W70: 0 | X70: 0.002834855528 | Y70: 0.6768740042 | Z70: 4.149182735 | AA70: 4.667971951 | AB70: 0.2656224389 | AC70: 0 | AD70: 0 | AE70: 0 | AF70: 0.8591030088 | AG70: 0.1806915113 | AH70: 0.1187738082 | AI70: 0.04383986467 | AJ70: 0 | AK70: 0 | AL70: 1.564640279 | AM70: 1.694048688 | AN70: 0.08831406823 | AO70: 0
D71: 26 | E71: 0.01831744475 | F71: 0.09627634582 | G71: 0.1166418046 | H71: 1.53225344 | I71: 2.558002104 | J71: 0.9864494342 | K71: 0.06775282899 | L71: 0 | M71: 1.076004342 | N71: 1.385993487 | O71: 0 | P71: 0 | Q71: 0 | R71: 0.01062818969 | S71: 1.395221911 | T71: 1.696599364 | U71: 0.5273104697 | V71: 0 | W71: 0.004772307232 | X71: 0.8290160296 | Y71: 1.21384605 | Z71: 2.089068287 | AA71: 4.684740549 | AB71: 0.2522075608 | AC71: 0 | AD71: 0 | AE71: 0 | AF71: 0.9530130057 | AG71: 0.0939739886 | AH71: 0 | AI71: 0 | AJ71: 0 | AK71: 0 | AL71: 3.076739269 | AM71: 0.6713567024 | AN71: 0.01405923049 | AO71: 0
D72: 27 | E72: 0.7686241283 | F72: 0.3845401812 | G72: 0.07821156228 | H72: 0.02607052076 | I72: 0.03258815095 | J72: 0.9895446275 | K72: 0.05227686236 | L72: 0 | M72: 1.999897496 | N72: 0.0001537554775 | O72: 0 | P72: 0 | Q72: 0 | R72: 0.06676831612 | S72: 1.746335494 | T72: 1.167900981 | U72: 0.4626438254 | V72: 0 | W72: 0 | X72: 0 | Y72: 0.7262353252 | Z72: 4.092205844 | AA72: 2.393620429 | AB72: 1.885221536 | AC72: 0.1499115906 | AD72: 0 | AE72: 0 | AF72: 0.2138226174 | AG72: 1.251505522 | AH72: 0.457480204 | AI72: 0.0317248802 | AJ72: 0 | AK72: 0 | AL72: 0 | AM72: 1.100366409 | AN72: 1.266422394 | AO72: 0
D73: 28 | E73: 0.07944514713 | F73: 0.2585779421 | G73: 0.200747498 | H73: 1.779615582 | I73: 1.397230768 | J73: 0.9992387377 | K73: 0.003806311258 | L73: 0 | M73: 0 | N73: 3 | O73: 0 | P73: 0 | Q73: 0 | R73: 0 | S73: 0.18962813 | T73: 1.35923375 | U73: 2.984910929 | V73: 0 | W73: 0 | X73: 0 | Y73: 0.2327099952 | Z73: 4.709112506 | AA73: 3.026886995 | AB73: 1.218170542 | AC73: 0.270239896 | AD73: 0 | AE73: 0 | AF73: 0.1988535128 | AG73: 0.7279964037 | AH73: 0.9637727763 | AI73: 0.463562773 | AJ73: 0 | AK73: 0 | AL73: 1.812591671 | AM73: 1.640556246 | AN73: 0 | AO73: 0
D74: 29 | E74: 0.07762542396 | F74: 0.6216672026 | G74: 0.3674753405 | H74: 0.7101905345 | I74: 1.557507805 | J74: 0.9901144546 | K74: 0.04942772715 | L74: 0 | M74: 2 | N74: 0 | O74: 0 | P74: 0 | Q74: 0 | R74: 0 | S74: 0.7336255073 | T74: 1.184165218 | U74: 2.297084298 | V74: 0 | W74: 0 | X74: 0.141634478 | Y74: 1.308954076 | Z74: 3.127749942 | AA74: 2.528532238 | AB74: 1.924550343 | AC74: 0.03946790021 | AD74: 0 | AE74: 0 | AF74: 0.9989824451 | AG74: 0.002035109713 | AH74: 0 | AI74: 0 | AJ74: 0 | AK74: 0 | AL74: 3.093077778 | AM74: 0.6801916666 | AN74: 0 | AO74: 0
D75: 30 | E75: 0.2964458565 | F75: 0.4445896058 | G75: 0.355058048 | H75: 0.9697437572 | I75: 0.6023535932 | J75: 0.9949805288 | K75: 0.02509735596 | L75: 0 | M75: 0.5066865786 | N75: 2.239970132 | O75: 0 | P75: 0 | Q75: 0 | R75: 0.03305176589 | S75: 0.1683493303 | T75: 1.539857609 | U75: 2.711966357 | V75: 0 | W75: 0 | X75: 0 | Y75: 0 | Z75: 5 | AA75: 0.9830748409 | AB75: 3.173985865 | AC75: 0.029665697 | AD75: 0 | AE75: 0 | AF75: 0.004920948514 | AG75: 0.3015727331 | AH75: 0.896208951 | AI75: 2.16770634 | AJ75: 0.01814891444 | AK75: 0 | AL75: 0 | AM75: 2.994459086 | AN75: 0.00369394235 | AO75: 0
D76: 31 | E76: 0.01662661146 | F76: 0.0686434283 | G76: 0.1971794368 | H76: 2.333534138 | I76: 1.499708305 | J76: 0.8156248286 | K76: 0.9218758571 | L76: 0 | M76: 0 | N76: 1.576052593 | O76: 1.898596543 | P76: 0 | Q76: 0 | R76: 0 | S76: 0.06048348679 | T76: 3.366680236 | U76: 0.6908438932 | V76: 0 | W76: 0 | X76: 0.228092817 | Y76: 1.160945724 | Z76: 3.16866315 | AA76: 4.222467902 | AB76: 0.6220256787 | AC76: 0 | AD76: 0 | AE76: 0 | AF76: 0.6459973611 | AG76: 0.4580276534 | AH76: 0.2841849064 | AI76: 0.1210420402 | AJ76: 0 | AK76: 0 | AL76: 0 | AM76: 3 | AN76: 0 | AO76: 0
D77: 32 | E77: =(E37/SUM($E37:$I37))*E$4 -> 0.03292064692 | F77: 0.1061087313 | G77: 0.1089381983 | H77: 1.771838692 | I77: 2.173762908 | J77: 0.8441643354 | K77: 0.7791783231 | L77: 0 | M77: 1.296412171 | N77: 1.055381743 | O77: 0 | P77: 0 | Q77: 0.005981801413 | R77: 0.134009045 | S77: 1.105157287 | T77: 1.641189293 | U77: 0.7416529526 | V77: 0 | W77: 0 | X77: 0.03854652384 | Y77: 1.165626269 | Z77: 3.478722957 | AA77: 4.940943209 | AB77: 0.04724543282 | AC77: 0 | AD77: 0 | AE77: 0 | AF77: 0.9022406715 | AG77: 0.1798296439 | AH77: 0.02019483979 | AI77: 0.004451573144 | AJ77: 0 | AK77: 0 | AL77: 0 | AM77: 3 | AN77: 0 | AO77: 0
D78: 33 | E78: 0.006491141395 | F78: 0.04089419079 | G78: 0.1465699727 | H78: 3.193930062 | I78: 0.6286129513 | J78: =(J38/SUM($J38:$K38))*J$4 -> 0.9852615555 | K78: 0.07369222253 | L78: =(L38/SUM($L38:$P38))*L$4 -> 0 | M78: 0 | N78: 0.01828812621 | O78: 0 | P78: 4.96951979 | Q78: =(Q38/SUM($Q38:$U38))*Q$4 -> 0 | R78: 0.01451010241 | S78: 0.7344831165 | T78: 1.390326598 | U78: 2.001677968 | V78: =(V38/SUM($V38:$Z38))*V$4 -> 0 | W78: 0 | X78: 0.09497993357 | Y78: 2.126847495 | Z78: 2.183140742 | AA78: =(AA38/SUM($AA38:$AE38))*AA$4 -> 2.035288059 | AB78: 2.105974284 | AC78: 0.1993464517 | AD78: 0 | AE78: 0 | AF78: =(AF38/SUM($AF38:$AJ38))*AF$4 -> 0.09320855245 | AG78: 1.120446997 | AH78: 0.6985503737 | AI78: 0.4548712981 | AJ78: 0 | AK78: =(AK38/SUM($AK38:$AO38))*AK$4 -> 0 | AL78: 0.6261417105 | AM78: 0.6804490728 | AN78: 1.23329643 | AO78: 0
D79: 34 | E79: 0.1357675624 | F79: 0.401396102 | G79: 0.5542206076 | H79: 1.598704578 | I79: 0.3955901971 | J79: 0.9961487853 | K79: 0.01925607369 | L79: 0 | M79: 2 | N79: 0 | O79: 0 | P79: 0 | Q79: 0 | R79: 0.529092718 | S79: 2.206360923 | T79: 0 | U79: 0 | V79: 0 | W79: 0 | X79: 0 | Y79: 0.5013511345 | Z79: 4.373311082 | AA79: 0.06450784685 | AB79: 3.341827401 | AC79: 0.4549247408 | AD79: 0 | AE79: 0 | AF79: 0.002567476492 | AG79: 0.1042267082 | AH79: 0.4524792195 | AI79: 3.110754517 | AJ79: 0.08402066819 | AK79: 0 | AL79: 0 | AM79: 2.087839789 | AN79: 0.608106807 | AO79: 0
D80: 35 | E80: 0.004178533259 | F80: 0.03099796499 | G80: 0.06462861262 | H80: 1.784051128 | I80: 2.563834157 | J80: 1 | K80: 0 | L80: 0 | M80: 0 | N80: 3 | O80: 0 | P80: 0 | Q80: 0 | R80: 0.003028808964 | S80: 0.1460643123 | T80: 0.4926977309 | U80: 4.133115294 | V80: 0 | W80: 0 | X80: 0 | Y80: 0.2575200837 | Z80: 4.678099895 | AA80: 4.982502605 | AB80: 0.01399791597 | AC80: 0 | AD80: 0 | AE80: 0 | AF80: 0.9784283407 | AG80: 0.04314331859 | AH80: 0 | AI80: 0 | AJ80: 0 | AK80: 0 | AL80: 3.035779596 | AM80: 0.7231653031 | AN80: 0 | AO80: 0
D81: 36 | E81: 0.004878793962 | F81: 0.02851615081 | G81: 0.08565402632 | H81: 2.111797964 | I81: 2.121811488 | J81: 0.9416330602 | K81: 0.2918346988 | L81: 0 | M81: 0 | N81: 1.015331115 | O81: 2.646225179 | P81: 0 | Q81: 0 | R81: 0.0006274244071 | S81: 0.1036097295 | T81: 1.515866779 | U81: 2.930915083 | V81: 0 | W81: 0.05334048597 | X81: 0.451227948 | Y81: 0.5406704344 | Z81: 3.438764162 | AA81: 4.666797594 | AB81: 0.262155812 | AC81: 0.003304584844 | AD81: 0 | AE81: 0 | AF81: 0.773466065 | AG81: 0.3352312922 | AH81: 0.1086989257 | AI81: 0.09074125488 | AJ81: 0 | AK81: 0 | AL81: 2.767076532 | AM81: 0.9246926013 | AN81: 0 | AO81: 0

Sheet Valores Filtro Var GEO (hidden)
A1: Carretera | B1: Cobertura de arboles (Rangos) | C1: Humedales (Rangos)* | D1: Balance hidrico promedio (Rangos) | E1: Intervencion Humana (Rangos) | F1: Proximidad a areas de conservacion / territorios indígenas(Rangos) | G1: Ingreso maximo por agricultura (Rangos) | H1: Pendiente (Rangos) | I1: Densidad poblacional (Rangos)
A2: 1 | B2: =SUM(Valores_GEO_Areas!E45:I45) -> 3.689482761 | C2: =SUM(Valores_GEO_Areas!J45:K45) -> 1.229269639 | D2: =SUM(Valores_GEO_Areas!L45:P45) -> 4.121339601 | E2: =SUM(Valores_GEO_Areas!Q45:U45) -> 3.767661169 | F2: =SUM(Valores_GEO_Areas!V45:Z45) -> 5 | G2: =SUM(Valores_GEO_Areas!AA45:AE45) -> 3.280206614 | H2: =SUM(Valores_GEO_Areas!AF45:AJ45) -> 2.910819145 | I2: =SUM(Valores_GEO_Areas!AK45:AO45) -> 3
A3: 2 | B3: =SUM(Valores_GEO_Areas!E46:I46) -> 4.025558757 | C3: =SUM(Valores_GEO_Areas!J46:K46) -> 1.065736023 | D3: =SUM(Valores_GEO_Areas!L46:P46) -> 4.067460279 | E3: =SUM(Valores_GEO_Areas!Q46:U46) -> 3.131101867 | F3: =SUM(Valores_GEO_Areas!V46:Z46) -> 3.51276631 | G3: =SUM(Valores_GEO_Areas!AA46:AE46) -> 4.59428644 | H3: =SUM(Valores_GEO_Areas!AF46:AJ46) -> 1.029526658 | I3: =SUM(Valores_GEO_Areas!AK46:AO46) -> 3
A4: 3 | B4: =SUM(Valores_GEO_Areas!E47:I47) -> 3.273500236 | C4: =SUM(Valores_GEO_Areas!J47:K47) -> 1 | D4: =SUM(Valores_GEO_Areas!L47:P47) -> 3.81044005 | E4: =SUM(Valores_GEO_Areas!Q47:U47) -> 2.748391235 | F4: =SUM(Valores_GEO_Areas!V47:Z47) -> 4.342455015 | G4: =SUM(Valores_GEO_Areas!AA47:AE47) -> 3.538460716 | H4: =SUM(Valores_GEO_Areas!AF47:AJ47) -> 2.977936932 | I4: =SUM(Valores_GEO_Areas!AK47:AO47) -> 2.708779619
A5: 4 | B5: =SUM(Valores_GEO_Areas!E48:I48) -> 4.231907984 | C5: =SUM(Valores_GEO_Areas!J48:K48) -> 1 | D5: =SUM(Valores_GEO_Areas!L48:P48) -> 4 | E5: =SUM(Valores_GEO_Areas!Q48:U48) -> 4.219972936 | F5: =SUM(Valores_GEO_Areas!V48:Z48) -> 2.07834912 | G5: =SUM(Valores_GEO_Areas!AA48:AE48) -> 4.634127199 | H5: =SUM(Valores_GEO_Areas!AF48:AJ48) -> 1.218159675 | I5: =SUM(Valores_GEO_Areas!AK48:AO48) -> 3
A6: 5 | B6: =SUM(Valores_GEO_Areas!E49:I49) -> 3.951441985 | C6: =SUM(Valores_GEO_Areas!J49:K49) -> 1.108615349 | D6: =SUM(Valores_GEO_Areas!L49:P49) -> 4.735525514 | E6: =SUM(Valores_GEO_Areas!Q49:U49) -> 3.178217308 | F6: =SUM(Valores_GEO_Areas!V49:Z49) -> 3.924299768 | G6: =SUM(Valores_GEO_Areas!AA49:AE49) -> 4.271903696 | H6: =SUM(Valores_GEO_Areas!AF49:AJ49) -> 1.398150428 | I6: =SUM(Valores_GEO_Areas!AK49:AO49) -> 2.922562959
A7: 6 | B7: =SUM(Valores_GEO_Areas!E50:I50) -> 3.755133282 | C7: =SUM(Valores_GEO_Areas!J50:K50) -> 2.240468724 | D7: =SUM(Valores_GEO_Areas!L50:P50) -> 4.506238653 | E7: =SUM(Valores_GEO_Areas!Q50:U50) -> 2.758138307 | F7: =SUM(Valores_GEO_Areas!V50:Z50) -> 4.324218518 | G7: =SUM(Valores_GEO_Areas!AA50:AE50) -> 4.99750784 | H7: =SUM(Valores_GEO_Areas!AF50:AJ50) -> 1.458630137 | I7: =SUM(Valores_GEO_Areas!AK50:AO50) -> 2.847747153
A8: 7 | B8: =SUM(Valores_GEO_Areas!E51:I51) -> 3.741145353 | C8: =SUM(Valores_GEO_Areas!J51:K51) -> 1.978528859 | D8: =SUM(Valores_GEO_Areas!L51:P51) -> 3.877431255 | E8: =SUM(Valores_GEO_Areas!Q51:U51) -> 2.923046017 | F8: =SUM(Valores_GEO_Areas!V51:Z51) -> 4.504936307 | G8: =SUM(Valores_GEO_Areas!AA51:AE51) -> 3.455770179 | H8: =SUM(Valores_GEO_Areas!AF51:AJ51) -> 2.881016881 | I8: =SUM(Valores_GEO_Areas!AK51:AO51) -> 2.563773939
A9: 8 | B9: =SUM(Valores_GEO_Areas!E52:I52) -> 3.609951664 | C9: =SUM(Valores_GEO_Areas!J52:K52) -> 1.290031558 | D9: =SUM(Valores_GEO_Areas!L52:P52) -> 4.218638009 | E9: =SUM(Valores_GEO_Areas!Q52:U52) -> 3.196097135 | F9: =SUM(Valores_GEO_Areas!V52:Z52) -> 4.50297306 | G9: =SUM(Valores_GEO_Areas!AA52:AE52) -> 5 | H9: =SUM(Valores_GEO_Areas!AF52:AJ52) -> 1.027114126 | I9: =SUM(Valores_GEO_Areas!AK52:AO52) -> 2.333686951
A10: 9 | B10: =SUM(Valores_GEO_Areas!E53:I53) -> 3.066570774 | C10: =SUM(Valores_GEO_Areas!J53:K53) -> 1.224745841 | D10: =SUM(Valores_GEO_Areas!L53:P53) -> 4.003130776 | E10: =SUM(Valores_GEO_Areas!Q53:U53) -> 2.402460721 | F10: =SUM(Valores_GEO_Areas!V53:Z53) -> 3.811356285 | G10: =SUM(Valores_GEO_Areas!AA53:AE53) -> 5 | H10: =SUM(Valores_GEO_Areas!AF53:AJ53) -> 1.024988447 | I10: =SUM(Valores_GEO_Areas!AK53:AO53) -> 2.183248614
A11: 10 | B11: =SUM(Valores_GEO_Areas!E54:I54) -> 4.056128414 | C11: =SUM(Valores_GEO_Areas!J54:K54) -> 1.296341861 | D11: =SUM(Valores_GEO_Areas!L54:P54) -> 4.18211939 | E11: =SUM(Valores_GEO_Areas!Q54:U54) -> 3.49530733 | F11: =SUM(Valores_GEO_Areas!V54:Z54) -> 2.312777855 | G11: =SUM(Valores_GEO_Areas!AA54:AE54) -> 3.622120646 | H11: =SUM(Valores_GEO_Areas!AF54:AJ54) -> 2.042611492 | I11: =SUM(Valores_GEO_Areas!AK54:AO54) -> 2.998998089
A12: 11 | B12: =SUM(Valores_GEO_Areas!E55:I55) -> 3.272336489 | C12: =SUM(Valores_GEO_Areas!J55:K55) -> 1.021358233 | D12: =SUM(Valores_GEO_Areas!L55:P55) -> 4.5040117 | E12: =SUM(Valores_GEO_Areas!Q55:U55) -> 2.610473409 | F12: =SUM(Valores_GEO_Areas!V55:Z55) -> 4.899094806 | G12: =SUM(Valores_GEO_Areas!AA55:AE55) -> 3.85959654 | H12: =SUM(Valores_GEO_Areas!AF55:AJ55) -> 3.095007172 | I12: =SUM(Valores_GEO_Areas!AK55:AO55) -> 2.054472332
A13: 12 | B13: =SUM(Valores_GEO_Areas!E56:I56) -> 3.411179726 | C13: =SUM(Valores_GEO_Areas!J56:K56) -> 1.075305151 | D13: =SUM(Valores_GEO_Areas!L56:P56) -> 5 | E13: =SUM(Valores_GEO_Areas!Q56:U56) -> 2.893745168 | F13: =SUM(Valores_GEO_Areas!V56:Z56) -> 5 | G13: =SUM(Valores_GEO_Areas!AA56:AE56) -> 4.279095655 | H13: =SUM(Valores_GEO_Areas!AF56:AJ56) -> 1.545498479 | I13: =SUM(Valores_GEO_Areas!AK56:AO56) -> 2.144289866
A14: 13 | B14: =SUM(Valores_GEO_Areas!E57:I57) -> 3.035922026 | C14: =SUM(Valores_GEO_Areas!J57:K57) -> 1 | D14: =SUM(Valores_GEO_Areas!L57:P57) -> 3.48937334 | E14: =SUM(Valores_GEO_Areas!Q57:U57) -> 3.097512939 | F14: =SUM(Valores_GEO_Areas!V57:Z57) -> 4.371701001 | G14: =SUM(Valores_GEO_Areas!AA57:AE57) -> 3.043927745 | H14: =SUM(Valores_GEO_Areas!AF57:AJ57) -> 2.766638629 | I14: =SUM(Valores_GEO_Areas!AK57:AO57) -> 2.677079599
A15: 14 | B15: =SUM(Valores_GEO_Areas!E58:I58) -> 3.1065647 | C15: =SUM(Valores_GEO_Areas!J58:K58) -> 2.570359315 | D15: =SUM(Valores_GEO_Areas!L58:P58) -> 4 | E15: =SUM(Valores_GEO_Areas!Q58:U58) -> 3.078316782 | F15: =SUM(Valores_GEO_Areas!V58:Z58) -> 4.944347465 | G15: =SUM(Valores_GEO_Areas!AA58:AE58) -> 4.054031559 | H15: =SUM(Valores_GEO_Areas!AF58:AJ58) -> 1.339681707 | I15: =SUM(Valores_GEO_Areas!AK58:AO58) -> 2.462004041
A16: 15 | B16: =SUM(Valores_GEO_Areas!E59:I59) -> 2.603101813 | C16: =SUM(Valores_GEO_Areas!J59:K59) -> 1.06049705 | D16: =SUM(Valores_GEO_Areas!L59:P59) -> 3.32165654 | E16: =SUM(Valores_GEO_Areas!Q59:U59) -> 2.299750671 | F16: =SUM(Valores_GEO_Areas!V59:Z59) -> 2.074831648 | G16: =SUM(Valores_GEO_Areas!AA59:AE59) -> 2.469082454 | H16: =SUM(Valores_GEO_Areas!AF59:AJ59) -> 2.847931153 | I16: =SUM(Valores_GEO_Areas!AK59:AO59) -> 1.91444208
A17: 16 | B17: =SUM(Valores_GEO_Areas!E60:I60) -> 2.337248016 | C17: =SUM(Valores_GEO_Areas!J60:K60) -> 1.136213671 | D17: =SUM(Valores_GEO_Areas!L60:P60) -> 3.153843585 | E17: =SUM(Valores_GEO_Areas!Q60:U60) -> 2.236318109 | F17: =SUM(Valores_GEO_Areas!V60:Z60) -> 2.617429703 | G17: =SUM(Valores_GEO_Areas!AA60:AE60) -> 4.394905613 | H17: =SUM(Valores_GEO_Areas!AF60:AJ60) -> 1.425061359 | I17: =SUM(Valores_GEO_Areas!AK60:AO60) -> 1.997029787
A18: 17 | B18: =(B42+B43)/2 -> 2.166585745 | C18: =(C42+C43)/2 -> 1.071928068 | D18: 2.225286796 | E18: 2.176590157 | F18: 3.650422425 | G18: 3.693494312 | H18: 1.462414317 | I18: 1.9712309
A19: 18 | B19: =SUM(Valores_GEO_Areas!E63:I63) -> 3.490342088 | C19: =SUM(Valores_GEO_Areas!J63:K63) -> 2.64369783 | D19: =SUM(Valores_GEO_Areas!L63:P63) -> 4.7082847 | E19: =SUM(Valores_GEO_Areas!Q63:U63) -> 4.473480683 | F19: =SUM(Valores_GEO_Areas!V63:Z63) -> 2.926324756 | G19: =SUM(Valores_GEO_Areas!AA63:AE63) -> 4.782638249 | H19: =SUM(Valores_GEO_Areas!AF63:AJ63) -> 1.001405214 | I19: =SUM(Valores_GEO_Areas!AK63:AO63) -> 4
A20: 19 | B20: =SUM(Valores_GEO_Areas!E64:I64) -> 3.794895602 | C20: =SUM(Valores_GEO_Areas!J64:K64) -> 1.068591352 | D20: =SUM(Valores_GEO_Areas!L64:P64) -> 3.710805514 | E20: =SUM(Valores_GEO_Areas!Q64:U64) -> 4.10382612 | F20: =SUM(Valores_GEO_Areas!V64:Z64) -> 2.569570214 | G20: =SUM(Valores_GEO_Areas!AA64:AE64) -> 4.239278274 | H20: =SUM(Valores_GEO_Areas!AF64:AJ64) -> 1.340190876 | I20: =SUM(Valores_GEO_Areas!AK64:AO64) -> 3.457594386
A21: 20 | B21: =SUM(Valores_GEO_Areas!E65:I65) -> 3.043666411 | C21: =SUM(Valores_GEO_Areas!J65:K65) -> 1.282856182 | D21: =SUM(Valores_GEO_Areas!L65:P65) -> 3.297319141 | E21: =SUM(Valores_GEO_Areas!Q65:U65) -> 3.568002988 | F21: =SUM(Valores_GEO_Areas!V65:Z65) -> 3.384497616 | G21: =SUM(Valores_GEO_Areas!AA65:AE65) -> 3.412817653 | H21: =SUM(Valores_GEO_Areas!AF65:AJ65) -> 1.252824585 | I21: =SUM(Valores_GEO_Areas!AK65:AO65) -> 3.231508439
A22: 21 | B22: =SUM(Valores_GEO_Areas!E66:I66) -> 4.285600229 | C22: =SUM(Valores_GEO_Areas!J66:K66) -> 1 | D22: =SUM(Valores_GEO_Areas!L66:P66) -> 3 | E22: =SUM(Valores_GEO_Areas!Q66:U66) -> 4.861155441 | F22: =SUM(Valores_GEO_Areas!V66:Z66) -> 2.887184327 | G22: =SUM(Valores_GEO_Areas!AA66:AE66) -> 4.941172601 | H22: =SUM(Valores_GEO_Areas!AF66:AJ66) -> 1.283635064 | I22: =SUM(Valores_GEO_Areas!AK66:AO66) -> 3.126855427
A23: 22 | B23: =SUM(Valores_GEO_Areas!E67:I67) -> 2.668272245 | C23: =SUM(Valores_GEO_Areas!J67:K67) -> 2.708422798 | D23: =SUM(Valores_GEO_Areas!L67:P67) -> 3.918474735 | E23: =SUM(Valores_GEO_Areas!Q67:U67) -> 2.644946862 | F23: =SUM(Valores_GEO_Areas!V67:Z67) -> 1.569928128 | G23: =SUM(Valores_GEO_Areas!AA67:AE67) -> 4.209213368 | H23: =SUM(Valores_GEO_Areas!AF67:AJ67) -> 1.004574281 | I23: =SUM(Valores_GEO_Areas!AK67:AO67) -> 2
A24: 23 | B24: =SUM(Valores_GEO_Areas!E68:I68) -> 2.768191277 | C24: =SUM(Valores_GEO_Areas!J68:K68) -> 2.382295116 | D24: =SUM(Valores_GEO_Areas!L68:P68) -> 4 | E24: =SUM(Valores_GEO_Areas!Q68:U68) -> 2.710670396 | F24: =SUM(Valores_GEO_Areas!V68:Z68) -> 3.756457459 | G24: =SUM(Valores_GEO_Areas!AA68:AE68) -> 3.266082812 | H24: =SUM(Valores_GEO_Areas!AF68:AJ68) -> 1.14619697 | I24: =SUM(Valores_GEO_Areas!AK68:AO68) -> 2.500818753
A25: 24 | B25: =SUM(Valores_GEO_Areas!E69:I69) -> 4.698503404 | C25: =SUM(Valores_GEO_Areas!J69:K69) -> 1.294093909 | D25: =SUM(Valores_GEO_Areas!L69:P69) -> 3.401375124 | E25: =SUM(Valores_GEO_Areas!Q69:U69) -> 4.285302935 | F25: =SUM(Valores_GEO_Areas!V69:Z69) -> 2.407089275 | G25: =SUM(Valores_GEO_Areas!AA69:AE69) -> 4.398040288 | H25: =SUM(Valores_GEO_Areas!AF69:AJ69) -> 1.006083209 | I25: =SUM(Valores_GEO_Areas!AK69:AO69) -> 3.553230095
A26: 25 | B26: =SUM(Valores_GEO_Areas!E70:I70) -> 3.840542231 | C26: =SUM(Valores_GEO_Areas!J70:K70) -> 1.045092151 | D26: =SUM(Valores_GEO_Areas!L70:P70) -> 3.892933596 | E26: =SUM(Valores_GEO_Areas!Q70:U70) -> 4.007614525 | F26: =SUM(Valores_GEO_Areas!V70:Z70) -> 4.828891595 | G26: =SUM(Valores_GEO_Areas!AA70:AE70) -> 4.93359439 | H26: =SUM(Valores_GEO_Areas!AF70:AJ70) -> 1.202408193 | I26: =SUM(Valores_GEO_Areas!AK70:AO70) -> 3.347003036
A27: 26 | B27: =SUM(Valores_GEO_Areas!E71:I71) -> 4.321491139 | C27: =SUM(Valores_GEO_Areas!J71:K71) -> 1.054202263 | D27: =SUM(Valores_GEO_Areas!L71:P71) -> 2.461997829 | E27: =SUM(Valores_GEO_Areas!Q71:U71) -> 3.629759934 | F27: =SUM(Valores_GEO_Areas!V71:Z71) -> 4.136702674 | G27: =SUM(Valores_GEO_Areas!AA71:AE71) -> 4.93694811 | H27: =SUM(Valores_GEO_Areas!AF71:AJ71) -> 1.046986994 | I27: =SUM(Valores_GEO_Areas!AK71:AO71) -> 3.762155202
A28: 27 | B28: =SUM(Valores_GEO_Areas!E72:I72) -> 1.290034543 | C28: =SUM(Valores_GEO_Areas!J72:K72) -> 1.04182149 | D28: =SUM(Valores_GEO_Areas!L72:P72) -> 2.000051252 | E28: =SUM(Valores_GEO_Areas!Q72:U72) -> 3.443648617 | F28: =SUM(Valores_GEO_Areas!V72:Z72) -> 4.818441169 | G28: =SUM(Valores_GEO_Areas!AA72:AE72) -> 4.428753556 | H28: =SUM(Valores_GEO_Areas!AF72:AJ72) -> 1.954533224 | I28: =SUM(Valores_GEO_Areas!AK72:AO72) -> 2.366788803
A29: 28 | B29: =SUM(Valores_GEO_Areas!E73:I73) -> 3.715616937 | C29: =SUM(Valores_GEO_Areas!J73:K73) -> 1.003045049 | D29: =SUM(Valores_GEO_Areas!L73:P73) -> 3 | E29: =SUM(Valores_GEO_Areas!Q73:U73) -> 4.533772809 | F29: =SUM(Valores_GEO_Areas!V73:Z73) -> 4.941822501 | G29: =SUM(Valores_GEO_Areas!AA73:AE73) -> 4.515297434 | H29: =SUM(Valores_GEO_Areas!AF73:AJ73) -> 2.354185466 | I29: =SUM(Valores_GEO_Areas!AK73:AO73) -> 3.453147918
A30: 29 | B30: =SUM(Valores_GEO_Areas!E74:I74) -> 3.334466306 | C30: =SUM(Valores_GEO_Areas!J74:K74) -> 1.039542182 | D30: =SUM(Valores_GEO_Areas!L74:P74) -> 2 | E30: =SUM(Valores_GEO_Areas!Q74:U74) -> 4.214875024 | F30: =SUM(Valores_GEO_Areas!V74:Z74) -> 4.578338496 | G30: =SUM(Valores_GEO_Areas!AA74:AE74) -> 4.492550481 | H30: =SUM(Valores_GEO_Areas!AF74:AJ74) -> 1.001017555 | I30: =SUM(Valores_GEO_Areas!AK74:AO74) -> 3.773269444
A31: 30 | B31: =SUM(Valores_GEO_Areas!E75:I75) -> 2.668190861 | C31: =SUM(Valores_GEO_Areas!J75:K75) -> 1.020077885 | D31: =SUM(Valores_GEO_Areas!L75:P75) -> 2.746656711 | E31: =SUM(Valores_GEO_Areas!Q75:U75) -> 4.453225062 | F31: =SUM(Valores_GEO_Areas!V75:Z75) -> 5 | G31: =SUM(Valores_GEO_Areas!AA75:AE75) -> 4.186726403 | H31: =SUM(Valores_GEO_Areas!AF75:AJ75) -> 3.388557887 | I31: =SUM(Valores_GEO_Areas!AK75:AO75) -> 2.998153029
A32: 31 | B32: =SUM(Valores_GEO_Areas!E76:I76) -> 4.115691919 | C32: =SUM(Valores_GEO_Areas!J76:K76) -> 1.737500686 | D32: =SUM(Valores_GEO_Areas!L76:P76) -> 3.474649136 | E32: =SUM(Valores_GEO_Areas!Q76:U76) -> 4.118007616 | F32: =SUM(Valores_GEO_Areas!V76:Z76) -> 4.557701691 | G32: =SUM(Valores_GEO_Areas!AA76:AE76) -> 4.84449358 | H32: =SUM(Valores_GEO_Areas!AF76:AJ76) -> 1.509251961 | I32: =SUM(Valores_GEO_Areas!AK76:AO76) -> 3
A33: 32 | B33: =SUM(Valores_GEO_Areas!E77:I77) -> 4.193569177 | C33: =SUM(Valores_GEO_Areas!J77:K77) -> 1.623342658 | D33: =SUM(Valores_GEO_Areas!L77:P77) -> 2.351793914 | E33: =SUM(Valores_GEO_Areas!Q77:U77) -> 3.627990379 | F33: =SUM(Valores_GEO_Areas!V77:Z77) -> 4.68289575 | G33: =SUM(Valores_GEO_Areas!AA77:AE77) -> 4.988188642 | H33: =SUM(Valores_GEO_Areas!AF77:AJ77) -> 1.106716728 | I33: =SUM(Valores_GEO_Areas!AK77:AO77) -> 3
A34: 33 | B34: =SUM(Valores_GEO_Areas!E78:I78) -> 4.016498318 | C34: =SUM(Valores_GEO_Areas!J78:K78) -> 1.058953778 | D34: =SUM(Valores_GEO_Areas!L78:P78) -> 4.987807916 | E34: =SUM(Valores_GEO_Areas!Q78:U78) -> 4.140997786 | F34: =SUM(Valores_GEO_Areas!V78:Z78) -> 4.40496817 | G34: =SUM(Valores_GEO_Areas!AA78:AE78) -> 4.340608794 | H34: =SUM(Valores_GEO_Areas!AF78:AJ78) -> 2.367077221 | I34: =SUM(Valores_GEO_Areas!AK78:AO78) -> 2.539887213
A35: 34 | B35: =SUM(Valores_GEO_Areas!E79:I79) -> 3.085679048 | C35: =SUM(Valores_GEO_Areas!J79:K79) -> 1.015404859 | D35: =SUM(Valores_GEO_Areas!L79:P79) -> 2 | E35: =SUM(Valores_GEO_Areas!Q79:U79) -> 2.735453641 | F35: =SUM(Valores_GEO_Areas!V79:Z79) -> 4.874662216 | G35: =SUM(Valores_GEO_Areas!AA79:AE79) -> 3.861259989 | H35: =SUM(Valores_GEO_Areas!AF79:AJ79) -> 3.754048589 | I35: =SUM(Valores_GEO_Areas!AK79:AO79) -> 2.695946596
A36: 35 | B36: =SUM(Valores_GEO_Areas!E80:I80) -> 4.447690396 | C36: =SUM(Valores_GEO_Areas!J80:K80) -> 1 | D36: =SUM(Valores_GEO_Areas!L80:P80) -> 3 | E36: =SUM(Valores_GEO_Areas!Q80:U80) -> 4.774906146 | F36: =SUM(Valores_GEO_Areas!V80:Z80) -> 4.935619979 | G36: =SUM(Valores_GEO_Areas!AA80:AE80) -> 4.996500521 | H36: =SUM(Valores_GEO_Areas!AF80:AJ80) -> 1.021571659 | I36: =SUM(Valores_GEO_Areas!AK80:AO80) -> 3.758944899
A37: 36 | B37: =SUM(Valores_GEO_Areas!E81:I81) -> 4.352658423 | C37: =SUM(Valores_GEO_Areas!J81:K81) -> 1.233467759 | D37: =SUM(Valores_GEO_Areas!L81:P81) -> 3.661556295 | E37: =SUM(Valores_GEO_Areas!Q81:U81) -> 4.551019016 | F37: =SUM(Valores_GEO_Areas!V81:Z81) -> 4.48400303 | G37: =SUM(Valores_GEO_Areas!AA81:AE81) -> 4.93225799 | H37: =SUM(Valores_GEO_Areas!AF81:AJ81) -> 1.308137538 | I37: =SUM(Valores_GEO_Areas!AK81:AO81) -> 3.691769133
A39: * Para esta variable talvez se puede ver si mas del 80% del area es humedal, ya que los valores aca eran solo 1 si no habia humedal o 5 si habia humedal.
A40: Sin embargo, el promedio ponderado tambien nos da una idea de cuan importantes son los humedales en el area buffer de la carretera.
A42: 17.1 | B42: =SUM(Valores_GEO_Areas!E61:I61) -> 2.343773169 | C42: =SUM(Valores_GEO_Areas!J61:K61) -> 1.068932418 | D42: =SUM(Valores_GEO_Areas!L61:P61) -> 2.658309433 | E42: =SUM(Valores_GEO_Areas!Q61:U61) -> 2.123859744 | F42: =SUM(Valores_GEO_Areas!V61:Z61) -> 3.709309097 | G42: =SUM(Valores_GEO_Areas!AA61:AE61) -> 3.7323247 | H42: =SUM(Valores_GEO_Areas!AF61:AJ61) -> 1.538027441 | I42: =SUM(Valores_GEO_Areas!AK61:AO61) -> 1.9424618
A43: 17.2 | B43: =SUM(Valores_GEO_Areas!E62:I62) -> 1.989398321 | C43: =SUM(Valores_GEO_Areas!J62:K62) -> 1.074923718 | D43: =SUM(Valores_GEO_Areas!L62:P62) -> 1.792264159 | E43: =SUM(Valores_GEO_Areas!Q62:U62) -> 2.229320571 | F43: =SUM(Valores_GEO_Areas!V62:Z62) -> 3.591535753 | G43: =SUM(Valores_GEO_Areas!AA62:AE62) -> 3.654663923 | H43: =SUM(Valores_GEO_Areas!AF62:AJ62) -> 1.386801194 | I43: =SUM(Valores_GEO_Areas!AK62:AO62) -> 2

Sheet Valores Filtro Var NO GEO (hidden)
A1: Carretera | B1: Costo Inversión (Rangos) | C1: PIB Regional (Rangos) | D1: Afectación a pueblos en aislamiento (Rangos) | E1: Posibilidad de daños arqueológicos (Rangos) | F1: Rechazo de la poblacion local (Rangos) | G1: Vulneración de normas (Rangos) | H1: Existencia de presión externa | I1: Longitud rutas | J1: Tipo de inversión
A2: 1 | B2: ='CostInv-Tipo'!AA2 -> 3 | C2: ='Longitud-PIB regional'!P3 -> 1 | D2: ='variables soc-leg'!G3 -> 1 | E2: ='variables soc-leg'!I3 -> 5 | F2: ='variables soc-leg'!K3 -> 3 | G2: ='variables soc-leg'!M3 -> 1 | H2: ='variables soc-leg'!O3 -> 3 | I2: ='Longitud-PIB regional'!J3 -> 1 | J2: ='CostInv-Tipo'!AE2 -> 5
A3: 2 | B3: ='CostInv-Tipo'!AA3 -> 1 | C3: ='Longitud-PIB regional'!P4 -> 5 | D3: ='variables soc-leg'!G4 -> 1 | E3: ='variables soc-leg'!I4 -> 1 | F3: ='variables soc-leg'!K4 -> 2 | G3: ='variables soc-leg'!M4 -> 1 | H3: ='variables soc-leg'!O4 -> 2 | I3: ='Longitud-PIB regional'!J4 -> 1 | J3: ='CostInv-Tipo'!AE3 -> 1
A4: 3 | B4: ='CostInv-Tipo'!AA4 -> 1 | C4: ='Longitud-PIB regional'!P5 -> 5 | D4: ='variables soc-leg'!G5 -> 1 | E4: ='variables soc-leg'!I5 -> 1 | F4: ='variables soc-leg'!K5 -> 1 | G4: ='variables soc-leg'!M5 -> 1 | H4: ='variables soc-leg'!O5 -> 3 | I4: ='Longitud-PIB regional'!J5 -> 1 | J4: ='CostInv-Tipo'!AE4 -> 1
A5: 4 | B5: ='CostInv-Tipo'!AA5 -> 1 | C5: ='Longitud-PIB regional'!P6 -> 1 | D5: ='variables soc-leg'!G6 -> 1 | E5: ='variables soc-leg'!I6 -> 1 | F5: ='variables soc-leg'!K6 -> 1 | G5: ='variables soc-leg'!M6 -> 1 | H5: ='variables soc-leg'!O6 -> 2 | I5: ='Longitud-PIB regional'!J6 -> 1 | J5: ='CostInv-Tipo'!AE5 -> 5
A6: 5 | B6: ='CostInv-Tipo'!AA6 -> 2 | C6: ='Longitud-PIB regional'!P7 -> 2 | D6: ='variables soc-leg'!G7 -> 1 | E6: ='variables soc-leg'!I7 -> 1 | F6: ='variables soc-leg'!K7 -> 1 | G6: ='variables soc-leg'!M7 -> 1 | H6: ='variables soc-leg'!O7 -> 2 | I6: ='Longitud-PIB regional'!J7 -> 1 | J6: ='CostInv-Tipo'!AE6 -> 1
A7: 6 | B7: ='CostInv-Tipo'!AA7 -> 1 | C7: ='Longitud-PIB regional'!P8 -> 5 | D7: ='variables soc-leg'!G8 -> 1 | E7: ='variables soc-leg'!I8 -> 1 | F7: ='variables soc-leg'!K8 -> 1 | G7: ='variables soc-leg'!M8 -> 1 | H7: ='variables soc-leg'!O8 -> 3 | I7: ='Longitud-PIB regional'!J8 -> 2 | J7: ='CostInv-Tipo'!AE7 -> 5
A8: 7 | B8: ='CostInv-Tipo'!AA8 -> 3 | C8: ='Longitud-PIB regional'!P9 -> 4 | D8: ='variables soc-leg'!G9 -> 1 | E8: ='variables soc-leg'!I9 -> 1 | F8: ='variables soc-leg'!K9 -> 3 | G8: ='variables soc-leg'!M9 -> 1 | H8: ='variables soc-leg'!O9 -> 2 | I8: ='Longitud-PIB regional'!J9 -> 1 | J8: ='CostInv-Tipo'!AE8 -> 1
A9: 8 | B9: ='CostInv-Tipo'!AA9 -> 2 | C9: ='Longitud-PIB regional'!P10 -> 5 | D9: ='variables soc-leg'!G10 -> 1 | E9: ='variables soc-leg'!I10 -> 1 | F9: ='variables soc-leg'!K10 -> 2 | G9: ='variables soc-leg'!M10 -> 1 | H9: ='variables soc-leg'!O10 -> 3 | I9: ='Longitud-PIB regional'!J10 -> 1 | J9: ='CostInv-Tipo'!AE9 -> 1
A10: 9 | B10: ='CostInv-Tipo'!AA10 -> 5 | C10: ='Longitud-PIB regional'!P11 -> 3 | D10: ='variables soc-leg'!G11 -> 1 | E10: ='variables soc-leg'!I11 -> 1 | F10: ='variables soc-leg'!K11 -> 2 | G10: ='variables soc-leg'!M11 -> 1 | H10: ='variables soc-leg'!O11 -> 3 | I10: ='Longitud-PIB regional'!J11 -> 1 | J10: ='CostInv-Tipo'!AE10 -> 1
A11: 10 | B11: ='CostInv-Tipo'!AA11 -> 1 | C11: ='Longitud-PIB regional'!P12 -> 5 | D11: ='variables soc-leg'!G12 -> 1 | E11: ='variables soc-leg'!I12 -> 1 | F11: ='variables soc-leg'!K12 -> 2 | G11: ='variables soc-leg'!M12 -> 1 | H11: ='variables soc-leg'!O12 -> 3 | I11: ='Longitud-PIB regional'!J12 -> 1 | J11: ='CostInv-Tipo'!AE11 -> 5
A12: 11 | B12: ='CostInv-Tipo'!AA12 -> 5 | C12: ='Longitud-PIB regional'!P13 -> 4 | D12: ='variables soc-leg'!G13 -> 1 | E12: ='variables soc-leg'!I13 -> 5 | F12: ='variables soc-leg'!K13 -> 3 | G12: ='variables soc-leg'!M13 -> 1 | H12: ='variables soc-leg'!O13 -> 4 | I12: ='Longitud-PIB regional'!J13 -> 1 | J12: ='CostInv-Tipo'!AE12 -> 5
A13: 12 | B13: ='CostInv-Tipo'!AA13 -> 3 | C13: ='Longitud-PIB regional'!P14 -> 5 | D13: ='variables soc-leg'!G14 -> 1 | E13: ='variables soc-leg'!I14 -> 1 | F13: ='variables soc-leg'!K14 -> 3 | G13: ='variables soc-leg'!M14 -> 5 | H13: ='variables soc-leg'!O14 -> 2 | I13: ='Longitud-PIB regional'!J14 -> 2 | J13: ='CostInv-Tipo'!AE13 -> 5
A14: 13 | B14: ='CostInv-Tipo'!AA14 -> 3 | C14: ='Longitud-PIB regional'!P15 -> 5 | D14: ='variables soc-leg'!G15 -> 1 | E14: ='variables soc-leg'!I15 -> 1 | F14: ='variables soc-leg'!K15 -> 2 | G14: ='variables soc-leg'!M15 -> 1 | H14: ='variables soc-leg'!O15 -> 2 | I14: ='Longitud-PIB regional'!J15 -> 2 | J14: ='CostInv-Tipo'!AE14 -> 5
A15: 14 | B15: ='CostInv-Tipo'!AA15 -> 5 | C15: ='Longitud-PIB regional'!P16 -> 1 | D15: ='variables soc-leg'!G16 -> 1 | E15: ='variables soc-leg'!I16 -> 1 | F15: ='variables soc-leg'!K16 -> 5 | G15: ='variables soc-leg'!M16 -> 5 | H15: ='variables soc-leg'!O16 -> 5 | I15: ='Longitud-PIB regional'!J16 -> 2 | J15: ='CostInv-Tipo'!AE15 -> 5
A16: 15 | B16: ='CostInv-Tipo'!AA16 -> 5 | C16: ='Longitud-PIB regional'!P17 -> 2 | D16: ='variables soc-leg'!G17 -> 1 | E16: ='variables soc-leg'!I17 -> 5 | F16: ='variables soc-leg'!K17 -> 2 | G16: ='variables soc-leg'!M17 -> 1 | H16: ='variables soc-leg'!O17 -> 2 | I16: ='Longitud-PIB regional'!J17 -> 2 | J16: ='CostInv-Tipo'!AE16 -> 5
A17: 16 | B17: ='CostInv-Tipo'!AA17 -> 4 | C17: ='Longitud-PIB regional'!P18 -> 5 | D17: ='variables soc-leg'!G18 -> 1 | E17: ='variables soc-leg'!I18 -> 1 | F17: ='variables soc-leg'!K18 -> 2 | G17: ='variables soc-leg'!M18 -> 1 | H17: ='variables soc-leg'!O18 -> 2 | I17: ='Longitud-PIB regional'!J18 -> 5 | J17: ='CostInv-Tipo'!AE17 -> 5
A18: 17 | B18: ='CostInv-Tipo'!AA18 -> 4 | C18: ='Longitud-PIB regional'!P19 -> 2 | D18: ='variables soc-leg'!G19 -> 1 | E18: ='variables soc-leg'!I19 -> 1 | F18: ='variables soc-leg'!K19 -> 2 | G18: ='variables soc-leg'!M19 -> 1 | H18: ='variables soc-leg'!O19 -> 2 | I18: ='Longitud-PIB regional'!J19 -> 5 | J18: ='CostInv-Tipo'!AE18 -> 5
A19: 18 | B19: ='CostInv-Tipo'!AA19 -> 3 | C19: ='Longitud-PIB regional'!P20 -> 5 | D19: ='variables soc-leg'!G20 -> 1 | E19: ='variables soc-leg'!I20 -> 1 | F19: ='variables soc-leg'!K20 -> 3 | G19: ='variables soc-leg'!M20 -> 1 | H19: ='variables soc-leg'!O20 -> 2 | I19: ='Longitud-PIB regional'!J20 -> 3 | J19: ='CostInv-Tipo'!AE19 -> 1
A20: 19 | B20: ='CostInv-Tipo'!AA20 -> 3 | C20: ='Longitud-PIB regional'!P21 -> 5 | D20: ='variables soc-leg'!G21 -> 1 | E20: ='variables soc-leg'!I21 -> 1 | F20: ='variables soc-leg'!K21 -> 2 | G20: ='variables soc-leg'!M21 -> 1 | H20: ='variables soc-leg'!O21 -> 5 | I20: ='Longitud-PIB regional'!J21 -> 5 | J20: ='CostInv-Tipo'!AE20 -> 1
A21: 20 | B21: ='CostInv-Tipo'!AA21 -> 2 | C21: ='Longitud-PIB regional'!P22 -> 5 | D21: ='variables soc-leg'!G22 -> 1 | E21: ='variables soc-leg'!I22 -> 1 | F21: ='variables soc-leg'!K22 -> 1 | G21: ='variables soc-leg'!M22 -> 1 | H21: ='variables soc-leg'!O22 -> 1 | I21: ='Longitud-PIB regional'!J22 -> 5 | J21: ='CostInv-Tipo'!AE21 -> 1
A22: 21 | B22: ='CostInv-Tipo'!AA22 -> 2 | C22: ='Longitud-PIB regional'!P23 -> 1 | D22: ='variables soc-leg'!G23 -> 1 | E22: ='variables soc-leg'!I23 -> 1 | F22: ='variables soc-leg'!K23 -> 1 | G22: ='variables soc-leg'!M23 -> 1 | H22: ='variables soc-leg'!O23 -> 1 | I22: ='Longitud-PIB regional'!J23 -> 1 | J22: ='CostInv-Tipo'!AE22 -> 5
A23: 22 | B23: ='CostInv-Tipo'!AA23 -> 2 | C23: ='Longitud-PIB regional'!P24 -> 5 | D23: ='variables soc-leg'!G24 -> 1 | E23: ='variables soc-leg'!I24 -> 1 | F23: ='variables soc-leg'!K24 -> 1 | G23: ='variables soc-leg'!M24 -> 5 | H23: ='variables soc-leg'!O24 -> 1 | I23: ='Longitud-PIB regional'!J24 -> 3 | J23: ='CostInv-Tipo'!AE23 -> 1
A24: 23 | B24: ='CostInv-Tipo'!AA24 -> 2 | C24: ='Longitud-PIB regional'!P25 -> 2 | D24: ='variables soc-leg'!G25 -> 1 | E24: ='variables soc-leg'!I25 -> 1 | F24: ='variables soc-leg'!K25 -> 1 | G24: ='variables soc-leg'!M25 -> 1 | H24: ='variables soc-leg'!O25 -> 3 | I24: ='Longitud-PIB regional'!J25 -> 2 | J24: ='CostInv-Tipo'!AE24 -> 5
A25: 24 | B25: ='CostInv-Tipo'!AA25 -> 2 | C25: ='Longitud-PIB regional'!P26 -> 1 | D25: ='variables soc-leg'!G26 -> 1 | E25: ='variables soc-leg'!I26 -> 1 | F25: ='variables soc-leg'!K26 -> 1 | G25: ='variables soc-leg'!M26 -> 1 | H25: ='variables soc-leg'!O26 -> 3 | I25: ='Longitud-PIB regional'!J26 -> 5 | J25: ='CostInv-Tipo'!AE25 -> 5
A26: 25 | B26: ='CostInv-Tipo'!AA26 -> 3 | C26: ='Longitud-PIB regional'!P27 -> 1 | D26: ='variables soc-leg'!G27 -> 1 | E26: ='variables soc-leg'!I27 -> 1 | F26: ='variables soc-leg'!K27 -> 5 | G26: ='variables soc-leg'!M27 -> 5 | H26: ='variables soc-leg'!O27 -> 4 | I26: ='Longitud-PIB regional'!J27 -> 3 | J26: ='CostInv-Tipo'!AE26 -> 5
A27: 26 | B27: ='CostInv-Tipo'!AA27 -> 2 | C27: ='Longitud-PIB regional'!P28 -> 3 | D27: ='variables soc-leg'!G28 -> 5 | E27: ='variables soc-leg'!I28 -> 1 | F27: ='variables soc-leg'!K28 -> 3 | G27: ='variables soc-leg'!M28 -> 1 | H27: ='variables soc-leg'!O28 -> 2 | I27: ='Longitud-PIB regional'!J28 -> 4 | J27: ='CostInv-Tipo'!AE27 -> 1
A28: 27 | B28: ='CostInv-Tipo'!AA28 -> 1 | C28: ='Longitud-PIB regional'!P29 -> 4 | D28: ='variables soc-leg'!G29 -> 1 | E28: ='variables soc-leg'!I29 -> 1 | F28: ='variables soc-leg'!K29 -> 2 | G28: ='variables soc-leg'!M29 -> 1 | H28: ='variables soc-leg'!O29 -> 2 | I28: ='Longitud-PIB regional'!J29 -> 2 | J28: ='CostInv-Tipo'!AE28 -> 1
A29: 28 | B29: ='CostInv-Tipo'!AA29 -> 2 | C29: ='Longitud-PIB regional'!P30 -> 4 | D29: ='variables soc-leg'!G30 -> 5 | E29: ='variables soc-leg'!I30 -> 1 | F29: ='variables soc-leg'!K30 -> 4 | G29: ='variables soc-leg'!M30 -> 5 | H29: ='variables soc-leg'!O30 -> 3 | I29: ='Longitud-PIB regional'!J30 -> 4 | J29: ='CostInv-Tipo'!AE29 -> 5
A30: 29 | B30: ='CostInv-Tipo'!AA30 -> 3 | C30: ='Longitud-PIB regional'!P31 -> 2 | D30: ='variables soc-leg'!G31 -> 5 | E30: ='variables soc-leg'!I31 -> 1 | F30: ='variables soc-leg'!K31 -> 3 | G30: ='variables soc-leg'!M31 -> 1 | H30: ='variables soc-leg'!O31 -> 2 | I30: ='Longitud-PIB regional'!J31 -> 4 | J30: ='CostInv-Tipo'!AE30 -> 1
A31: 30 | B31: ='CostInv-Tipo'!AA31 -> 1 | C31: ='Longitud-PIB regional'!P32 -> 2 | D31: ='variables soc-leg'!G32 -> 1 | E31: ='variables soc-leg'!I32 -> 1 | F31: ='variables soc-leg'!K32 -> 2 | G31: ='variables soc-leg'!M32 -> 5 | H31: ='variables soc-leg'!O32 -> 3 | I31: ='Longitud-PIB regional'!J32 -> 1 | J31: ='CostInv-Tipo'!AE31 -> 5
A32: 31 | B32: ='CostInv-Tipo'!AA32 -> 2 | C32: ='Longitud-PIB regional'!P33 -> 3 | D32: ='variables soc-leg'!G33 -> 5 | E32: ='variables soc-leg'!I33 -> 1 | F32: ='variables soc-leg'!K33 -> 2 | G32: ='variables soc-leg'!M33 -> 1 | H32: ='variables soc-leg'!O33 -> 3 | I32: ='Longitud-PIB regional'!J33 -> 2 | J32: ='CostInv-Tipo'!AE32 -> 5
A33: 32 | B33: ='CostInv-Tipo'!AA33 -> 2 | C33: ='Longitud-PIB regional'!P34 -> 5 | D33: ='variables soc-leg'!G34 -> 5 | E33: ='variables soc-leg'!I34 -> 1 | F33: ='variables soc-leg'!K34 -> 5 | G33: ='variables soc-leg'!M34 -> 5 | H33: ='variables soc-leg'!O34 -> 4 | I33: ='Longitud-PIB regional'!J34 -> 2 | J33: ='CostInv-Tipo'!AE33 -> 5
A34: 33 | B34: ='CostInv-Tipo'!AA34 -> 3 | C34: ='Longitud-PIB regional'!P35 -> 3 | D34: ='variables soc-leg'!G35 -> 5 | E34: ='variables soc-leg'!I35 -> 1 | F34: ='variables soc-leg'!K35 -> 3 | G34: ='variables soc-leg'!M35 -> 5 | H34: ='variables soc-leg'!O35 -> 4 | I34: ='Longitud-PIB regional'!J35 -> 2 | J34: ='CostInv-Tipo'!AE34 -> 5
A35: 34 | B35: ='CostInv-Tipo'!AA35 -> 2 | C35: ='Longitud-PIB regional'!P36 -> 1 | D35: ='variables soc-leg'!G36 -> 1 | E35: ='variables soc-leg'!I36 -> 5 | F35: ='variables soc-leg'!K36 -> 2 | G35: ='variables soc-leg'!M36 -> 5 | H35: ='variables soc-leg'!O36 -> 1 | I35: ='Longitud-PIB regional'!J36 -> 1 | J35: ='CostInv-Tipo'!AE35 -> 5
A36: 35 | B36: ='CostInv-Tipo'!AA36 -> 2 | C36: ='Longitud-PIB regional'!P37 -> 5 | D36: ='variables soc-leg'!G37 -> 5 | E36: ='variables soc-leg'!I37 -> 1 | F36: ='variables soc-leg'!K37 -> 5 | G36: ='variables soc-leg'!M37 -> 5 | H36: ='variables soc-leg'!O37 -> 1 | I36: ='Longitud-PIB regional'!J37 -> 3 | J36: ='CostInv-Tipo'!AE36 -> 5
A37: 36 | B37: ='CostInv-Tipo'!AA37 -> 2 | C37: ='Longitud-PIB regional'!P38 -> 5 | D37: ='variables soc-leg'!G38 -> 5 | E37: ='variables soc-leg'!I38 -> 1 | F37: ='variables soc-leg'!K38 -> 2 | G37: ='variables soc-leg'!M38 -> 5 | H37: ='variables soc-leg'!O38 -> 1 | I37: ='Longitud-PIB regional'!J38 -> 4 | J37: ='CostInv-Tipo'!AE37 -> 5

Sheet Panel Pesos (hidden)
B1: Tabla de control - asignación de pesos
B3: ECONOMICOS | E3: Ponderación categorías | G3: Ponderación final
E4: 0.4
A5: V1 | B5: Costo de Inversión | C5: 0.4 | G5: =C5*$E$4 -> 0.16
A6: V2 | B6: Pendiente (Como aproximación del costo de mantenimiento) | C6: 0.1 | G6: =C6*$E$4 -> 0.04
A7: V3 | B7: PIB Regional (De todos los municipios atravesados por el tramo) | C7: 0.1 | G7: =C7*$E$4 -> 0.04
A8: V4 | B8: Densidad poblacional | C8: 0.2 | G8: =C8*$E$4 -> 0.08
A9: V5 | B9: Ingreso bruto por agricultura | C9: 0.2 | G9: =C9*$E$4 -> 0.08
B11: AMBIENTALES
E12: 0.45
A13: V6 | B13: Cobertura de arboles | C13: 0.2 | G13: =C13*$E$12 -> 0.09
A14: V7 | B14: Existencia de humedales | C14: 0.1 | G14: 0.045
A15: V8 | B15: Balance hidrico promedio | C15: 0.1 | G15: 0.045
A16: V9 | B16: Grado de intervencion humana | C16: 0.1 | G16: 0.045
A17: V10 | B17: Proximidad a areas de conservacion y tierras indígenas | C17: 0.2 | G17: 0.09
A18: V11 | B18: Longitud rutas | C18: 0.2 | G18: 0.09
A19: V12 | B19: Típo de inversión | C19: 0.1 | G19: 0.045
B21: DISPOSICION SOCIAL / CUMPLIMIENTO NORMATIVA
E22: 0.1
A23: V13 | B23: Grado de rechazo de la poblacion local | C23: 0.4 | G23: =$E$22*C23 -> 0.04
A24: V14 | B24: Vulneración de normas legales | C24: 0.3 | G24: =$E$22*C24 -> 0.03
A25: V15 | B25: Existencia de presión externa | C25: 0.3 | G25: =$E$22*C25 -> 0.03
B27: CULTURAL
E28: 0.05
A29: V16 | B29: Afectación a pueblos en aislamiento voluntario | C29: 0.5 | G29: =$E$28*C29 -> 0.025
A30: V17 | B30: Posibilidad de daños arqueológicos | C30: 0.5 | G30: =$E$28*C30 -> 0.025

Sheet resultados
B3: PESOS VARIABLES | E3: ID | F3: PAIS | G3: TRAMO | H3: CARRETERA | I3: ECONOMICOS | J3: AMBIENTAL | K3: SOCIAL | L3: CULTURAL | M3: TOTAL
B4: ECONOMICOS | C4: 0.4 | E4: 1 | F4: Ecuador | G4: Via al Emblase Compensador | H4: Via al Emblase Compensador. Coca Codo Sinclair | I4: =($C$5*'Valores Filtro Var NO GEO'!B8)+($C$6*'Valores Filtro Var GEO'!H8)+($C$7*'Valores Filtro Var NO GEO'!C8)+($C$8*'Valores Filtro Var GEO'!I8)+($C$9*'Valores Filtro Var GEO'!G8) -> 3.092010512 | J4: =($C$12*'Valores Filtro Var GEO'!B2)+($C$13*'Valores Filtro Var GEO'!C2)+($C$14*'Valores Filtro Var GEO'!D2)+($C$15*'Valores Filtro Var GEO'!E2)+($C$16*'Valores Filtro Var GEO'!F2)+($C$17*'Valores Filtro Var NO GEO'!I2)+($C$18*'Valores Filtro Var NO GEO'!J2) -> 3.349723593 | K4: =($C$21*'Valores Filtro Var NO GEO'!F11)+($C$22*'Valores Filtro Var NO GEO'!G11)+($C$23*'Valores Filtro Var NO GEO'!H11) -> 2 | L4: =($C$26*'Valores Filtro Var NO GEO'!D2)+($C$27*'Valores Filtro Var NO GEO'!E2) -> 3 | M4: =(I4*$C$4)+(J4*$C$11)+(K4*$C$20)+(L4*$C$25) -> 3.094179822
B5: Costo de Inversión | C5: 0.4 | E5: 2 | F5: Ecuador | G5: Coca - La Belleza | H5: Coca - La Belleza | I5: =($C$5*'Valores Filtro Var NO GEO'!B24)+($C$6*'Valores Filtro Var GEO'!H24)+($C$7*'Valores Filtro Var NO GEO'!C24)+($C$8*'Valores Filtro Var GEO'!I24)+($C$9*'Valores Filtro Var GEO'!G24) -> 2.26800001 | J5: =($C$12*'Valores Filtro Var GEO'!B3)+($C$13*'Valores Filtro Var GEO'!C3)+($C$14*'Valores Filtro Var GEO'!D3)+($C$15*'Valores Filtro Var GEO'!E3)+($C$16*'Valores Filtro Var GEO'!F3)+($C$17*'Valores Filtro Var NO GEO'!I3)+($C$18*'Valores Filtro Var NO GEO'!J3) -> 2.63409483 | K5: =($C$21*'Valores Filtro Var NO GEO'!F35)+($C$22*'Valores Filtro Var NO GEO'!G35)+($C$23*'Valores Filtro Var NO GEO'!H35) -> 2.6 | L5: =($C$26*'Valores Filtro Var NO GEO'!D3)+($C$27*'Valores Filtro Var NO GEO'!E3) -> 1 | M5: 2.402542678
B6: Pendiente (Como aproximación del costo de mantenimiento) | C6: 0.1 | E6: 3 | F6: Ecuador | G6: Sucua - Bella Unión | H6: Cuenca -Macas | I6: =($C$5*'Valores Filtro Var NO GEO'!B28)+($C$6*'Valores Filtro Var GEO'!H28)+($C$7*'Valores Filtro Var NO GEO'!C28)+($C$8*'Valores Filtro Var GEO'!I28)+($C$9*'Valores Filtro Var GEO'!G28) -> 2.354561794 | J6: =($C$12*'Valores Filtro Var GEO'!B4)+($C$13*'Valores Filtro Var GEO'!C4)+($C$14*'Valores Filtro Var GEO'!D4)+($C$15*'Valores Filtro Var GEO'!E4)+($C$16*'Valores Filtro Var GEO'!F4)+($C$17*'Valores Filtro Var NO GEO'!I4)+($C$18*'Valores Filtro Var NO GEO'!J4) -> 2.579074179 | K6: =($C$21*'Valores Filtro Var NO GEO'!F36)+($C$22*'Valores Filtro Var NO GEO'!G36)+($C$23*'Valores Filtro Var NO GEO'!H36) -> 3.8 | L6: =($C$26*'Valores Filtro Var NO GEO'!D4)+($C$27*'Valores Filtro Var NO GEO'!E4) -> 1 | M6: 2.532408098
B7: PIB Regional (De todos los municipios atravesados por el tramo) | C7: 0.1 | E7: 4 | F7: Ecuador | G7: Cangaime - Taisha | H7: Macuma - Taisha | I7: =($C$5*'Valores Filtro Var NO GEO'!B27)+($C$6*'Valores Filtro Var GEO'!H27)+($C$7*'Valores Filtro Var NO GEO'!C27)+($C$8*'Valores Filtro Var GEO'!I27)+($C$9*'Valores Filtro Var GEO'!G27) -> 2.944519362 | J7: =($C$12*'Valores Filtro Var GEO'!B5)+($C$13*'Valores Filtro Var GEO'!C5)+($C$14*'Valores Filtro Var GEO'!D5)+($C$15*'Valores Filtro Var GEO'!E5)+($C$16*'Valores Filtro Var GEO'!F5)+($C$17*'Valores Filtro Var NO GEO'!I5)+($C$18*'Valores Filtro Var NO GEO'!J5) -> 2.884048714 | K7: =($C$21*'Valores Filtro Var NO GEO'!F27)+($C$22*'Valores Filtro Var NO GEO'!G27)+($C$23*'Valores Filtro Var NO GEO'!H27) -> 2.1 | L7: =($C$26*'Valores Filtro Var NO GEO'!D5)+($C$27*'Valores Filtro Var NO GEO'!E5) -> 1 | M7: 2.735629666
B8: Densidad poblacional | C8: 0.2 | E8: 5 | F8: Ecuador | G8: Loreto - Murialdo | H8: Sucumbios - Orellana | I8: =($C$5*'Valores Filtro Var NO GEO'!B21)+($C$6*'Valores Filtro Var GEO'!H21)+($C$7*'Valores Filtro Var NO GEO'!C21)+($C$8*'Valores Filtro Var GEO'!I21)+($C$9*'Valores Filtro Var GEO'!G21) -> 2.754147677 | J8: =($C$12*'Valores Filtro Var GEO'!B6)+($C$13*'Valores Filtro Var GEO'!C6)+($C$14*'Valores Filtro Var GEO'!D6)+($C$15*'Valores Filtro Var GEO'!E6)+($C$16*'Valores Filtro Var GEO'!F6)+($C$17*'Valores Filtro Var NO GEO'!I6)+($C$18*'Valores Filtro Var NO GEO'!J6) -> 2.777384168 | K8: =($C$21*'Valores Filtro Var NO GEO'!F32)+($C$22*'Valores Filtro Var NO GEO'!G32)+($C$23*'Valores Filtro Var NO GEO'!H32) -> 2 | L8: =($C$26*'Valores Filtro Var NO GEO'!D6)+($C$27*'Valores Filtro Var NO GEO'!E6) -> 1 | M8: 2.601481946
B9: Ingreso bruto por agricultura | C9: 0.2 | E9: 6 | F9: Ecuador | G9: Sardina - Lumbaqui | H9: Lumbaqui - Maderos - Sardina - Puccuna | I9: =($C$5*'Valores Filtro Var NO GEO'!B18)+($C$6*'Valores Filtro Var GEO'!H18)+($C$7*'Valores Filtro Var NO GEO'!C18)+($C$8*'Valores Filtro Var GEO'!I18)+($C$9*'Valores Filtro Var GEO'!G18) -> 3.079186474 | J9: =($C$12*'Valores Filtro Var GEO'!B7)+($C$13*'Valores Filtro Var GEO'!C7)+($C$14*'Valores Filtro Var GEO'!D7)+($C$15*'Valores Filtro Var GEO'!E7)+($C$16*'Valores Filtro Var GEO'!F7)+($C$17*'Valores Filtro Var NO GEO'!I7)+($C$18*'Valores Filtro Var NO GEO'!J7) -> 3.466354928 | K9: =($C$21*'Valores Filtro Var NO GEO'!F14)+($C$22*'Valores Filtro Var NO GEO'!G14)+($C$23*'Valores Filtro Var NO GEO'!H14) -> 1.7 | L9: =($C$26*'Valores Filtro Var NO GEO'!D7)+($C$27*'Valores Filtro Var NO GEO'!E7) -> 1 | M9: 3.011534307
E10: 7 | F10: Ecuador | G10: Chuchumbletza - Ingreso Proyecto Mirador | H10: Vía Acceso: Puerto Mirador | I10: =($C$5*'Valores Filtro Var NO GEO'!B16)+($C$6*'Valores Filtro Var GEO'!H16)+($C$7*'Valores Filtro Var NO GEO'!C16)+($C$8*'Valores Filtro Var GEO'!I16)+($C$9*'Valores Filtro Var GEO'!G16) -> 3.361498022 | J10: =($C$12*'Valores Filtro Var GEO'!B8)+($C$13*'Valores Filtro Var GEO'!C8)+($C$14*'Valores Filtro Var GEO'!D8)+($C$15*'Valores Filtro Var GEO'!E8)+($C$16*'Valores Filtro Var GEO'!F8)+($C$17*'Valores Filtro Var NO GEO'!I8)+($C$18*'Valores Filtro Var NO GEO'!J8) -> 2.827116945 | K10: =($C$21*'Valores Filtro Var NO GEO'!F22)+($C$22*'Valores Filtro Var NO GEO'!G22)+($C$23*'Valores Filtro Var NO GEO'!H22) -> 1 | L10: =($C$26*'Valores Filtro Var NO GEO'!D8)+($C$27*'Valores Filtro Var NO GEO'!E8) -> 1 | M10: 2.766801834
B11: AMBIENTAL | C11: 0.45 | E11: 8 | F11: Ecuador | G11: Sushufindi - Pto. Providencia | H11: Sushufindi - Pto. Providencia | I11: =($C$5*'Valores Filtro Var NO GEO'!B17)+($C$6*'Valores Filtro Var GEO'!H17)+($C$7*'Valores Filtro Var NO GEO'!C17)+($C$8*'Valores Filtro Var GEO'!I17)+($C$9*'Valores Filtro Var GEO'!G17) -> 3.520893216 | J11: =($C$12*'Valores Filtro Var GEO'!B9)+($C$13*'Valores Filtro Var GEO'!C9)+($C$14*'Valores Filtro Var GEO'!D9)+($C$15*'Valores Filtro Var GEO'!E9)+($C$16*'Valores Filtro Var GEO'!F9)+($C$17*'Valores Filtro Var NO GEO'!I9)+($C$18*'Valores Filtro Var NO GEO'!J9) -> 2.793061615 | K11: =($C$21*'Valores Filtro Var NO GEO'!F19)+($C$22*'Valores Filtro Var NO GEO'!G19)+($C$23*'Valores Filtro Var NO GEO'!H19) -> 2.1 | L11: =($C$26*'Valores Filtro Var NO GEO'!D9)+($C$27*'Valores Filtro Var NO GEO'!E9) -> 1 | M11: 2.925235013
B12: Cobertura de arboles | C12: 0.2 | E12: 9 | F12: Ecuador | G12: Sacha - Unión Milagreña | H12: Sacha - Unión Milagreña | I12: =($C$5*'Valores Filtro Var NO GEO'!B33)+($C$6*'Valores Filtro Var GEO'!H33)+($C$7*'Valores Filtro Var NO GEO'!C33)+($C$8*'Valores Filtro Var GEO'!I33)+($C$9*'Valores Filtro Var GEO'!G33) -> 3.008309401 | J12: =($C$12*'Valores Filtro Var GEO'!B10)+($C$13*'Valores Filtro Var GEO'!C10)+($C$14*'Valores Filtro Var GEO'!D10)+($C$15*'Valores Filtro Var GEO'!E10)+($C$16*'Valores Filtro Var GEO'!F10)+($C$17*'Valores Filtro Var NO GEO'!I10)+($C$18*'Valores Filtro Var NO GEO'!J10) -> 2.438619146 | K12: =($C$21*'Valores Filtro Var NO GEO'!F33)+($C$22*'Valores Filtro Var NO GEO'!G33)+($C$23*'Valores Filtro Var NO GEO'!H33) -> 4.7 | L12: =($C$26*'Valores Filtro Var NO GEO'!D10)+($C$27*'Valores Filtro Var NO GEO'!E10) -> 1 | M12: 2.820702376
B13: Existencia de humedales | C13: 0.1 | E13: 10 | F13: Ecuador | G13: Macuma - Cangaime | H13: Macuma - Taisha | I13: =($C$5*'Valores Filtro Var NO GEO'!B32)+($C$6*'Valores Filtro Var GEO'!H32)+($C$7*'Valores Filtro Var NO GEO'!C32)+($C$8*'Valores Filtro Var GEO'!I32)+($C$9*'Valores Filtro Var GEO'!G32) -> 2.819823912 | J13: =($C$12*'Valores Filtro Var GEO'!B11)+($C$13*'Valores Filtro Var GEO'!C11)+($C$14*'Valores Filtro Var GEO'!D11)+($C$15*'Valores Filtro Var GEO'!E11)+($C$16*'Valores Filtro Var GEO'!F11)+($C$17*'Valores Filtro Var NO GEO'!I11)+($C$18*'Valores Filtro Var NO GEO'!J11) -> 2.871158112 | K13: =($C$21*'Valores Filtro Var NO GEO'!F31)+($C$22*'Valores Filtro Var NO GEO'!G31)+($C$23*'Valores Filtro Var NO GEO'!H31) -> 3.2 | L13: =($C$26*'Valores Filtro Var NO GEO'!D11)+($C$27*'Valores Filtro Var NO GEO'!E11) -> 1 | M13: 2.789950715
B14: Balance hidrico promedio | C14: 0.1 | E14: 11 | F14: Colombia | G14: Variante San Francisco - Mocoa | H14: Pasto - Mocoa | I14: =($C$5*'Valores Filtro Var NO GEO'!B22)+($C$6*'Valores Filtro Var GEO'!H22)+($C$7*'Valores Filtro Var NO GEO'!C22)+($C$8*'Valores Filtro Var GEO'!I22)+($C$9*'Valores Filtro Var GEO'!G22) -> 2.641969112 | J14: =($C$12*'Valores Filtro Var GEO'!B12)+($C$13*'Valores Filtro Var GEO'!C12)+($C$14*'Valores Filtro Var GEO'!D12)+($C$15*'Valores Filtro Var GEO'!E12)+($C$16*'Valores Filtro Var GEO'!F12)+($C$17*'Valores Filtro Var NO GEO'!I12)+($C$18*'Valores Filtro Var NO GEO'!J12) -> 3.147870593 | K14: =($C$21*'Valores Filtro Var NO GEO'!F23)+($C$22*'Valores Filtro Var NO GEO'!G23)+($C$23*'Valores Filtro Var NO GEO'!H23) -> 2.2 | L14: =($C$26*'Valores Filtro Var NO GEO'!D12)+($C$27*'Valores Filtro Var NO GEO'!E12) -> 3 | M14: 2.843329412
B15: Grado de intervencion humana | C15: 0.1 | E15: 12 | F15: Colombia | G15: Nuquí - El Afirmado | H15: Nuquí - Las Ánimas | I15: =($C$5*'Valores Filtro Var NO GEO'!B19)+($C$6*'Valores Filtro Var GEO'!H19)+($C$7*'Valores Filtro Var NO GEO'!C19)+($C$8*'Valores Filtro Var GEO'!I19)+($C$9*'Valores Filtro Var GEO'!G19) -> 3.556668171 | J15: =($C$12*'Valores Filtro Var GEO'!B13)+($C$13*'Valores Filtro Var GEO'!C13)+($C$14*'Valores Filtro Var GEO'!D13)+($C$15*'Valores Filtro Var GEO'!E13)+($C$16*'Valores Filtro Var GEO'!F13)+($C$17*'Valores Filtro Var NO GEO'!I13)+($C$18*'Valores Filtro Var NO GEO'!J13) -> 3.479140977 | K15: =($C$21*'Valores Filtro Var NO GEO'!F5)+($C$22*'Valores Filtro Var NO GEO'!G5)+($C$23*'Valores Filtro Var NO GEO'!H5) -> 1.3 | L15: =($C$26*'Valores Filtro Var NO GEO'!D13)+($C$27*'Valores Filtro Var NO GEO'!E13) -> 1 | M15: 3.168280708
B16: Proximidad a areas de conservacion y tierras indígenas | C16: 0.2 | E16: 13 | F16: Colombia | G16: El Dorado - La Uribe | H16: Transversal de la Macarena | I16: =($C$5*'Valores Filtro Var NO GEO'!B25)+($C$6*'Valores Filtro Var GEO'!H25)+($C$7*'Valores Filtro Var NO GEO'!C25)+($C$8*'Valores Filtro Var GEO'!I25)+($C$9*'Valores Filtro Var GEO'!G25) -> 2.590862398 | J16: =($C$12*'Valores Filtro Var GEO'!B14)+($C$13*'Valores Filtro Var GEO'!C14)+($C$14*'Valores Filtro Var GEO'!D14)+($C$15*'Valores Filtro Var GEO'!E14)+($C$16*'Valores Filtro Var GEO'!F14)+($C$17*'Valores Filtro Var NO GEO'!I14)+($C$18*'Valores Filtro Var NO GEO'!J14) -> 3.140213233 | K16: =($C$21*'Valores Filtro Var NO GEO'!F28)+($C$22*'Valores Filtro Var NO GEO'!G28)+($C$23*'Valores Filtro Var NO GEO'!H28) -> 1.7 | L16: =($C$26*'Valores Filtro Var NO GEO'!D14)+($C$27*'Valores Filtro Var NO GEO'!E14) -> 1 | M16: 2.669440914
B17: Longitud rutas | C17: 0.2 | E17: 14 | F17: Colombia | G17: Palo de Letras - Cacarica - Lomas Aisladas | H17: Transversal de las Américas | I17: =($C$5*'Valores Filtro Var NO GEO'!B12)+($C$6*'Valores Filtro Var GEO'!H12)+($C$7*'Valores Filtro Var NO GEO'!C12)+($C$8*'Valores Filtro Var GEO'!I12)+($C$9*'Valores Filtro Var GEO'!G12) -> 3.892314492 | J17: =($C$12*'Valores Filtro Var GEO'!B15)+($C$13*'Valores Filtro Var GEO'!C15)+($C$14*'Valores Filtro Var GEO'!D15)+($C$15*'Valores Filtro Var GEO'!E15)+($C$16*'Valores Filtro Var GEO'!F15)+($C$17*'Valores Filtro Var NO GEO'!I15)+($C$18*'Valores Filtro Var NO GEO'!J15) -> 3.475050043 | K17: =($C$21*'Valores Filtro Var NO GEO'!F2)+($C$22*'Valores Filtro Var NO GEO'!G2)+($C$23*'Valores Filtro Var NO GEO'!H2) -> 2.4 | L17: =($C$26*'Valores Filtro Var NO GEO'!D15)+($C$27*'Valores Filtro Var NO GEO'!E15) -> 1 | M17: 3.410698316
B18: Típo de inversión | C18: 0.1 | E18: 15 | F18: Colombia | G18: Tobiagrande/Villeta - El Korán | H18: Ruta del Sol , Sector 1 | I18: =($C$5*'Valores Filtro Var NO GEO'!B37)+($C$6*'Valores Filtro Var GEO'!H37)+($C$7*'Valores Filtro Var NO GEO'!C37)+($C$8*'Valores Filtro Var GEO'!I37)+($C$9*'Valores Filtro Var GEO'!G37) -> 3.155619178 | J18: =($C$12*'Valores Filtro Var GEO'!B16)+($C$13*'Valores Filtro Var GEO'!C16)+($C$14*'Valores Filtro Var GEO'!D16)+($C$15*'Valores Filtro Var GEO'!E16)+($C$16*'Valores Filtro Var GEO'!F16)+($C$17*'Valores Filtro Var NO GEO'!I16)+($C$18*'Valores Filtro Var NO GEO'!J16) -> 2.503777118 | K18: =($C$21*'Valores Filtro Var NO GEO'!F29)+($C$22*'Valores Filtro Var NO GEO'!G29)+($C$23*'Valores Filtro Var NO GEO'!H29) -> 4 | L18: =($C$26*'Valores Filtro Var NO GEO'!D16)+($C$27*'Valores Filtro Var NO GEO'!E16) -> 3 | M18: 2.938947375
E19: 16 | F19: Colombia | G19: Puerto Salgar - San Roque | H19: Ruta del Sol, Sector 2 | I19: =($C$5*'Valores Filtro Var NO GEO'!B36)+($C$6*'Valores Filtro Var GEO'!H36)+($C$7*'Valores Filtro Var NO GEO'!C36)+($C$8*'Valores Filtro Var GEO'!I36)+($C$9*'Valores Filtro Var GEO'!G36) -> 3.15324625 | J19: =($C$12*'Valores Filtro Var GEO'!B17)+($C$13*'Valores Filtro Var GEO'!C17)+($C$14*'Valores Filtro Var GEO'!D17)+($C$15*'Valores Filtro Var GEO'!E17)+($C$16*'Valores Filtro Var GEO'!F17)+($C$17*'Valores Filtro Var NO GEO'!I17)+($C$18*'Valores Filtro Var NO GEO'!J17) -> 3.14357308 | K19: =($C$21*'Valores Filtro Var NO GEO'!F18)+($C$22*'Valores Filtro Var NO GEO'!G18)+($C$23*'Valores Filtro Var NO GEO'!H18) -> 1.7 | L19: =($C$26*'Valores Filtro Var NO GEO'!D17)+($C$27*'Valores Filtro Var NO GEO'!E17) -> 1 | M19: 2.895906386
B20: SOCIALES | C20: 0.1 | E20: 17 | F20: Colombia | G20: San Roque - Ye de Ciénaga - Carmen de Bolivar - Valledupar | H20: Ruta del Sol, Sector 3 | I20: =($C$5*'Valores Filtro Var NO GEO'!B34)+($C$6*'Valores Filtro Var GEO'!H34)+($C$7*'Valores Filtro Var NO GEO'!C34)+($C$8*'Valores Filtro Var GEO'!I34)+($C$9*'Valores Filtro Var GEO'!G34) -> 3.112806924 | J20: =($C$12*'Valores Filtro Var GEO'!B18)+($C$13*'Valores Filtro Var GEO'!C18)+($C$14*'Valores Filtro Var GEO'!D18)+($C$15*'Valores Filtro Var GEO'!E18)+($C$16*'Valores Filtro Var GEO'!F18)+($C$17*'Valores Filtro Var NO GEO'!I18)+($C$18*'Valores Filtro Var NO GEO'!J18) -> 3.210782136 | K20: =($C$21*'Valores Filtro Var NO GEO'!F17)+($C$22*'Valores Filtro Var NO GEO'!G17)+($C$23*'Valores Filtro Var NO GEO'!H17) -> 1.7 | L20: =($C$26*'Valores Filtro Var NO GEO'!D18)+($C$27*'Valores Filtro Var NO GEO'!E18) -> 1 | M20: 2.909974731
B21: Grado de rechazo de la poblacion local | C21: 0.4 | E21: 18 | F21: Brasil | G21: KM 555 a KM 767 | H21: BR-156 | I21: =($C$5*'Valores Filtro Var NO GEO'!B15)+($C$6*'Valores Filtro Var GEO'!H15)+($C$7*'Valores Filtro Var NO GEO'!C15)+($C$8*'Valores Filtro Var GEO'!I15)+($C$9*'Valores Filtro Var GEO'!G15) -> 3.537175291 | J21: =($C$12*'Valores Filtro Var GEO'!B19)+($C$13*'Valores Filtro Var GEO'!C19)+($C$14*'Valores Filtro Var GEO'!D19)+($C$15*'Valores Filtro Var GEO'!E19)+($C$16*'Valores Filtro Var GEO'!F19)+($C$17*'Valores Filtro Var NO GEO'!I19)+($C$18*'Valores Filtro Var NO GEO'!J19) -> 3.16587969 | K21: =($C$21*'Valores Filtro Var NO GEO'!F12)+($C$22*'Valores Filtro Var NO GEO'!G12)+($C$23*'Valores Filtro Var NO GEO'!H12) -> 2.7 | L21: =($C$26*'Valores Filtro Var NO GEO'!D19)+($C$27*'Valores Filtro Var NO GEO'!E19) -> 1 | M21: 3.159515977
B22: Vulneración de normas legales | C22: 0.3 | E22: 19 | F22: Brasil | G22: Km 0 a Km 651 | H22: BR-163 | I22: =($C$5*'Valores Filtro Var NO GEO'!B26)+($C$6*'Valores Filtro Var GEO'!H26)+($C$7*'Valores Filtro Var NO GEO'!C26)+($C$8*'Valores Filtro Var GEO'!I26)+($C$9*'Valores Filtro Var GEO'!G26) -> 3.076360304 | J22: =($C$12*'Valores Filtro Var GEO'!B20)+($C$13*'Valores Filtro Var GEO'!C20)+($C$14*'Valores Filtro Var GEO'!D20)+($C$15*'Valores Filtro Var GEO'!E20)+($C$16*'Valores Filtro Var GEO'!F20)+($C$17*'Valores Filtro Var NO GEO'!I20)+($C$18*'Valores Filtro Var NO GEO'!J20) -> 3.261215462 | K22: =($C$21*'Valores Filtro Var NO GEO'!F16)+($C$22*'Valores Filtro Var NO GEO'!G16)+($C$23*'Valores Filtro Var NO GEO'!H16) -> 1.7 | L22: =($C$26*'Valores Filtro Var NO GEO'!D20)+($C$27*'Valores Filtro Var NO GEO'!E20) -> 1 | M22: 2.91809108
B23: Existencia de presión externa | C23: 0.3 | E23: 20 | F23: Brasil | G23: KM 152 a KM 984 | H23: BR-230 | I23: =($C$5*'Valores Filtro Var NO GEO'!B29)+($C$6*'Valores Filtro Var GEO'!H29)+($C$7*'Valores Filtro Var NO GEO'!C29)+($C$8*'Valores Filtro Var GEO'!I29)+($C$9*'Valores Filtro Var GEO'!G29) -> 3.029107617 | J23: =($C$12*'Valores Filtro Var GEO'!B21)+($C$13*'Valores Filtro Var GEO'!C21)+($C$14*'Valores Filtro Var GEO'!D21)+($C$15*'Valores Filtro Var GEO'!E21)+($C$16*'Valores Filtro Var GEO'!F21)+($C$17*'Valores Filtro Var NO GEO'!I21)+($C$18*'Valores Filtro Var NO GEO'!J21) -> 3.200450637 | K23: =($C$21*'Valores Filtro Var NO GEO'!F21)+($C$22*'Valores Filtro Var NO GEO'!G21)+($C$23*'Valores Filtro Var NO GEO'!H21) -> 1 | L23: =($C$26*'Valores Filtro Var NO GEO'!D21)+($C$27*'Valores Filtro Var NO GEO'!E21) -> 1 | M23: 2.801845833
E24: 21 | F24: Brasil | G24: Km 119 a 165 | H24: BR-432 | I24: =($C$5*'Valores Filtro Var NO GEO'!B14)+($C$6*'Valores Filtro Var GEO'!H14)+($C$7*'Valores Filtro Var NO GEO'!C14)+($C$8*'Valores Filtro Var GEO'!I14)+($C$9*'Valores Filtro Var GEO'!G14) -> 3.120865332 | J24: =($C$12*'Valores Filtro Var GEO'!B22)+($C$13*'Valores Filtro Var GEO'!C22)+($C$14*'Valores Filtro Var GEO'!D22)+($C$15*'Valores Filtro Var GEO'!E22)+($C$16*'Valores Filtro Var GEO'!F22)+($C$17*'Valores Filtro Var NO GEO'!I22)+($C$18*'Valores Filtro Var NO GEO'!J22) -> 3.020672455 | K24: =($C$21*'Valores Filtro Var NO GEO'!F25)+($C$22*'Valores Filtro Var NO GEO'!G25)+($C$23*'Valores Filtro Var NO GEO'!H25) -> 1.6 | L24: =($C$26*'Valores Filtro Var NO GEO'!D22)+($C$27*'Valores Filtro Var NO GEO'!E22) -> 1 | M24: 2.817648738
B25: CULTURAL | C25: 0.05 | E25: 22 | F25: Brasil | G25: Km 203 a 318 | H25: BR-308 | I25: =($C$5*'Valores Filtro Var NO GEO'!B35)+($C$6*'Valores Filtro Var GEO'!H35)+($C$7*'Valores Filtro Var NO GEO'!C35)+($C$8*'Valores Filtro Var GEO'!I35)+($C$9*'Valores Filtro Var GEO'!G35) -> 2.586846176 | J25: =($C$12*'Valores Filtro Var GEO'!B23)+($C$13*'Valores Filtro Var GEO'!C23)+($C$14*'Valores Filtro Var GEO'!D23)+($C$15*'Valores Filtro Var GEO'!E23)+($C$16*'Valores Filtro Var GEO'!F23)+($C$17*'Valores Filtro Var NO GEO'!I23)+($C$18*'Valores Filtro Var NO GEO'!J23) -> 2.474824514 | K25: =($C$21*'Valores Filtro Var NO GEO'!F34)+($C$22*'Valores Filtro Var NO GEO'!G34)+($C$23*'Valores Filtro Var NO GEO'!H34) -> 3.9 | L25: =($C$26*'Valores Filtro Var NO GEO'!D23)+($C$27*'Valores Filtro Var NO GEO'!E23) -> 1 | M25: 2.588409502
B26: Afectación a pueblos en aislamiento voluntario | C26: 0.5 | E26: 23 | F26: Brasil | G26: Km 0 a 61,30 | H26: BR-422 | I26: =($C$5*'Valores Filtro Var NO GEO'!B30)+($C$6*'Valores Filtro Var GEO'!H30)+($C$7*'Valores Filtro Var NO GEO'!C30)+($C$8*'Valores Filtro Var GEO'!I30)+($C$9*'Valores Filtro Var GEO'!G30) -> 3.153265741 | J26: =($C$12*'Valores Filtro Var GEO'!B24)+($C$13*'Valores Filtro Var GEO'!C24)+($C$14*'Valores Filtro Var GEO'!D24)+($C$15*'Valores Filtro Var GEO'!E24)+($C$16*'Valores Filtro Var GEO'!F24)+($C$17*'Valores Filtro Var NO GEO'!I24)+($C$18*'Valores Filtro Var NO GEO'!J24) -> 3.114226298 | K26: =($C$21*'Valores Filtro Var NO GEO'!F20)+($C$22*'Valores Filtro Var NO GEO'!G20)+($C$23*'Valores Filtro Var NO GEO'!H20) -> 2.6 | L26: =($C$26*'Valores Filtro Var NO GEO'!D24)+($C$27*'Valores Filtro Var NO GEO'!E24) -> 1 | M26: 2.972708131
B27: Posibilidad de daños arqueológicos | C27: 0.5 | E27: 24 | F27: Brasil | G27: KM 250 a KM 655 | H27: BR-319 | I27: =($C$5*'Valores Filtro Var NO GEO'!B20)+($C$6*'Valores Filtro Var GEO'!H20)+($C$7*'Valores Filtro Var NO GEO'!C20)+($C$8*'Valores Filtro Var GEO'!I20)+($C$9*'Valores Filtro Var GEO'!G20) -> 3.37339362 | J27: =($C$12*'Valores Filtro Var GEO'!B25)+($C$13*'Valores Filtro Var GEO'!C25)+($C$14*'Valores Filtro Var GEO'!D25)+($C$15*'Valores Filtro Var GEO'!E25)+($C$16*'Valores Filtro Var GEO'!F25)+($C$17*'Valores Filtro Var NO GEO'!I25)+($C$18*'Valores Filtro Var NO GEO'!J25) -> 3.819195733 | K27: =($C$21*'Valores Filtro Var NO GEO'!F3)+($C$22*'Valores Filtro Var NO GEO'!G3)+($C$23*'Valores Filtro Var NO GEO'!H3) -> 1.7 | L27: =($C$26*'Valores Filtro Var NO GEO'!D25)+($C$27*'Valores Filtro Var NO GEO'!E25) -> 1 | M27: 3.287995528
E28: 25 | F28: Bolivia | G28: Isinuta - Monte Grande | H28: Villa Tunari - San Ignacio de Moxos | I28: =($C$5*'Valores Filtro Var NO GEO'!B7)+($C$6*'Valores Filtro Var GEO'!H7)+($C$7*'Valores Filtro Var NO GEO'!C7)+($C$8*'Valores Filtro Var GEO'!I7)+($C$9*'Valores Filtro Var GEO'!G7) -> 2.614914012 | J28: =($C$12*'Valores Filtro Var GEO'!B26)+($C$13*'Valores Filtro Var GEO'!C26)+($C$14*'Valores Filtro Var GEO'!D26)+($C$15*'Valores Filtro Var GEO'!E26)+($C$16*'Valores Filtro Var GEO'!F26)+($C$17*'Valores Filtro Var NO GEO'!I26)+($C$18*'Valores Filtro Var NO GEO'!J26) -> 3.728450792 | K28: =($C$21*'Valores Filtro Var NO GEO'!F13)+($C$22*'Valores Filtro Var NO GEO'!G13)+($C$23*'Valores Filtro Var NO GEO'!H13) -> 3.3 | L28: =($C$26*'Valores Filtro Var NO GEO'!D26)+($C$27*'Valores Filtro Var NO GEO'!E26) -> 1 | M28: 3.103768461
B29: Devolver los valores originales | E29: 26 | F29: Bolivia | G29: Porvenir - El Chorro | H29: Porvenir - El Chorro | I29: =($C$5*'Valores Filtro Var NO GEO'!B13)+($C$6*'Valores Filtro Var GEO'!H13)+($C$7*'Valores Filtro Var NO GEO'!C13)+($C$8*'Valores Filtro Var GEO'!I13)+($C$9*'Valores Filtro Var GEO'!G13) -> 3.139226952 | J29: =($C$12*'Valores Filtro Var GEO'!B27)+($C$13*'Valores Filtro Var GEO'!C27)+($C$14*'Valores Filtro Var GEO'!D27)+($C$15*'Valores Filtro Var GEO'!E27)+($C$16*'Valores Filtro Var GEO'!F27)+($C$17*'Valores Filtro Var NO GEO'!I27)+($C$18*'Valores Filtro Var NO GEO'!J27) -> 3.306234765 | K29: =($C$21*'Valores Filtro Var NO GEO'!F10)+($C$22*'Valores Filtro Var NO GEO'!G10)+($C$23*'Valores Filtro Var NO GEO'!H10) -> 2 | L29: =($C$26*'Valores Filtro Var NO GEO'!D27)+($C$27*'Valores Filtro Var NO GEO'!E27) -> 3 | M29: 3.093496425
E30: 27 | F30: Bolivia | G30: Pumasani - Pelechuco | H30: Pumasani - Pelechuco | I30: =($C$5*'Valores Filtro Var NO GEO'!B31)+($C$6*'Valores Filtro Var GEO'!H31)+($C$7*'Valores Filtro Var NO GEO'!C31)+($C$8*'Valores Filtro Var GEO'!I31)+($C$9*'Valores Filtro Var GEO'!G31) -> 2.375831675 | J30: =($C$12*'Valores Filtro Var GEO'!B28)+($C$13*'Valores Filtro Var GEO'!C28)+($C$14*'Valores Filtro Var GEO'!D28)+($C$15*'Valores Filtro Var GEO'!E28)+($C$16*'Valores Filtro Var GEO'!F28)+($C$17*'Valores Filtro Var NO GEO'!I28)+($C$18*'Valores Filtro Var NO GEO'!J28) -> 2.370247278 | K30: =($C$21*'Valores Filtro Var NO GEO'!F37)+($C$22*'Valores Filtro Var NO GEO'!G37)+($C$23*'Valores Filtro Var NO GEO'!H37) -> 2.6 | L30: =($C$26*'Valores Filtro Var NO GEO'!D28)+($C$27*'Valores Filtro Var NO GEO'!E28) -> 1 | M30: 2.326943945
E31: 28 | F31: Bolivia | G31: Apolo - Ixiamas | H31: Apolo - Ixiamas | I31: =($C$5*'Valores Filtro Var NO GEO'!B4)+($C$6*'Valores Filtro Var GEO'!H4)+($C$7*'Valores Filtro Var NO GEO'!C4)+($C$8*'Valores Filtro Var GEO'!I4)+($C$9*'Valores Filtro Var GEO'!G4) -> 2.44724176 | J31: =($C$12*'Valores Filtro Var GEO'!B29)+($C$13*'Valores Filtro Var GEO'!C29)+($C$14*'Valores Filtro Var GEO'!D29)+($C$15*'Valores Filtro Var GEO'!E29)+($C$16*'Valores Filtro Var GEO'!F29)+($C$17*'Valores Filtro Var NO GEO'!I29)+($C$18*'Valores Filtro Var NO GEO'!J29) -> 3.885169674 | K31: =($C$21*'Valores Filtro Var NO GEO'!F8)+($C$22*'Valores Filtro Var NO GEO'!G8)+($C$23*'Valores Filtro Var NO GEO'!H8) -> 2.1 | L31: =($C$26*'Valores Filtro Var NO GEO'!D29)+($C$27*'Valores Filtro Var NO GEO'!E29) -> 3 | M31: 3.087223057
E32: 29 | F32: Bolivia | G32: Rio Yata - El Chorro | H32: Rio Yata - El Chorro | I32: =($C$5*'Valores Filtro Var NO GEO'!B11)+($C$6*'Valores Filtro Var GEO'!H11)+($C$7*'Valores Filtro Var NO GEO'!C11)+($C$8*'Valores Filtro Var GEO'!I11)+($C$9*'Valores Filtro Var GEO'!G11) -> 2.428484896 | J32: =($C$12*'Valores Filtro Var GEO'!B30)+($C$13*'Valores Filtro Var GEO'!C30)+($C$14*'Valores Filtro Var GEO'!D30)+($C$15*'Valores Filtro Var GEO'!E30)+($C$16*'Valores Filtro Var GEO'!F30)+($C$17*'Valores Filtro Var NO GEO'!I30)+($C$18*'Valores Filtro Var NO GEO'!J30) -> 3.208002681 | K32: =($C$21*'Valores Filtro Var NO GEO'!F26)+($C$22*'Valores Filtro Var NO GEO'!G26)+($C$23*'Valores Filtro Var NO GEO'!H26) -> 4.7 | L32: =($C$26*'Valores Filtro Var NO GEO'!D30)+($C$27*'Valores Filtro Var NO GEO'!E30) -> 3 | M32: 3.034995165
E33: 30 | F33: Bolivia | G33: Chiata - Lurasani | H33: Chiata - Lurasani | I33: =($C$5*'Valores Filtro Var NO GEO'!B10)+($C$6*'Valores Filtro Var GEO'!H10)+($C$7*'Valores Filtro Var NO GEO'!C10)+($C$8*'Valores Filtro Var GEO'!I10)+($C$9*'Valores Filtro Var GEO'!G10) -> 3.839148567 | J33: =($C$12*'Valores Filtro Var GEO'!B31)+($C$13*'Valores Filtro Var GEO'!C31)+($C$14*'Valores Filtro Var GEO'!D31)+($C$15*'Valores Filtro Var GEO'!E31)+($C$16*'Valores Filtro Var GEO'!F31)+($C$17*'Valores Filtro Var NO GEO'!I31)+($C$18*'Valores Filtro Var NO GEO'!J31) -> 3.055634138 | K33: =($C$21*'Valores Filtro Var NO GEO'!F7)+($C$22*'Valores Filtro Var NO GEO'!G7)+($C$23*'Valores Filtro Var NO GEO'!H7) -> 1.6 | L33: =($C$26*'Valores Filtro Var NO GEO'!D31)+($C$27*'Valores Filtro Var NO GEO'!E31) -> 1 | M33: 3.120694789
E34: 31 | F34: Perú | G34: SANTA MARÍA DE NIEVA-SARAMERIZA | H34: Reposo Saramiriza | I34: =($C$5*'Valores Filtro Var NO GEO'!B5)+($C$6*'Valores Filtro Var GEO'!H5)+($C$7*'Valores Filtro Var NO GEO'!C5)+($C$8*'Valores Filtro Var GEO'!I5)+($C$9*'Valores Filtro Var GEO'!G5) -> 2.148641407 | J34: =($C$12*'Valores Filtro Var GEO'!B32)+($C$13*'Valores Filtro Var GEO'!C32)+($C$14*'Valores Filtro Var GEO'!D32)+($C$15*'Valores Filtro Var GEO'!E32)+($C$16*'Valores Filtro Var GEO'!F32)+($C$17*'Valores Filtro Var NO GEO'!I32)+($C$18*'Valores Filtro Var NO GEO'!J32) -> 3.567694466 | K34: =($C$21*'Valores Filtro Var NO GEO'!F24)+($C$22*'Valores Filtro Var NO GEO'!G24)+($C$23*'Valores Filtro Var NO GEO'!H24) -> 1.6 | L34: =($C$26*'Valores Filtro Var NO GEO'!D32)+($C$27*'Valores Filtro Var NO GEO'!E32) -> 3 | M34: 2.774919073
E35: 32 | F35: Perú | G35: PUCALLPA-FRONTERA CON BRASIL | H35: Interconección Pukallpa - Cruzeiro do Sul | I35: =($C$5*'Valores Filtro Var NO GEO'!B6)+($C$6*'Valores Filtro Var GEO'!H6)+($C$7*'Valores Filtro Var NO GEO'!C6)+($C$8*'Valores Filtro Var GEO'!I6)+($C$9*'Valores Filtro Var GEO'!G6) -> 2.578708374 | J35: =($C$12*'Valores Filtro Var GEO'!B33)+($C$13*'Valores Filtro Var GEO'!C33)+($C$14*'Valores Filtro Var GEO'!D33)+($C$15*'Valores Filtro Var GEO'!E33)+($C$16*'Valores Filtro Var GEO'!F33)+($C$17*'Valores Filtro Var NO GEO'!I33)+($C$18*'Valores Filtro Var NO GEO'!J33) -> 3.435605681 | K35: =($C$21*'Valores Filtro Var NO GEO'!F15)+($C$22*'Valores Filtro Var NO GEO'!G15)+($C$23*'Valores Filtro Var NO GEO'!H15) -> 5 | L35: =($C$26*'Valores Filtro Var NO GEO'!D33)+($C$27*'Valores Filtro Var NO GEO'!E33) -> 3 | M35: 3.227505906
E36: 33 | F36: Perú | G36: TRAMO 2 | H36: IIRSA Sur (Tramo 2) | I36: =($C$5*'Valores Filtro Var NO GEO'!B9)+($C$6*'Valores Filtro Var GEO'!H9)+($C$7*'Valores Filtro Var NO GEO'!C9)+($C$8*'Valores Filtro Var GEO'!I9)+($C$9*'Valores Filtro Var GEO'!G9) -> 2.869448803 | J36: =($C$12*'Valores Filtro Var GEO'!B34)+($C$13*'Valores Filtro Var GEO'!C34)+($C$14*'Valores Filtro Var GEO'!D34)+($C$15*'Valores Filtro Var GEO'!E34)+($C$16*'Valores Filtro Var GEO'!F34)+($C$17*'Valores Filtro Var NO GEO'!I34)+($C$18*'Valores Filtro Var NO GEO'!J34) -> 3.603069246 | K36: =($C$21*'Valores Filtro Var NO GEO'!F6)+($C$22*'Valores Filtro Var NO GEO'!G6)+($C$23*'Valores Filtro Var NO GEO'!H6) -> 1.3 | L36: =($C$26*'Valores Filtro Var NO GEO'!D34)+($C$27*'Valores Filtro Var NO GEO'!E34) -> 3 | M36: 3.049160682
E37: 34 | F37: Perú | G37: SANTA TERESA-MACHU PICCHU | H37: Santa María - Santa Teresa - Machu Pichu | I37: =($C$5*'Valores Filtro Var NO GEO'!B23)+($C$6*'Valores Filtro Var GEO'!H23)+($C$7*'Valores Filtro Var NO GEO'!C23)+($C$8*'Valores Filtro Var GEO'!I23)+($C$9*'Valores Filtro Var GEO'!G23) -> 2.642300102 | J37: =($C$12*'Valores Filtro Var GEO'!B35)+($C$13*'Valores Filtro Var GEO'!C35)+($C$14*'Valores Filtro Var GEO'!D35)+($C$15*'Valores Filtro Var GEO'!E35)+($C$16*'Valores Filtro Var GEO'!F35)+($C$17*'Valores Filtro Var NO GEO'!I35)+($C$18*'Valores Filtro Var NO GEO'!J35) -> 2.867154103 | K37: =($C$21*'Valores Filtro Var NO GEO'!F30)+($C$22*'Valores Filtro Var NO GEO'!G30)+($C$23*'Valores Filtro Var NO GEO'!H30) -> 2.1 | L37: =($C$26*'Valores Filtro Var NO GEO'!D35)+($C$27*'Valores Filtro Var NO GEO'!E35) -> 3 | M37: 2.707139387
E38: 35 | F38: Perú | G38: PURUS-IÑAPARI | H38: Purus - Iñapari | I38: =($C$5*'Valores Filtro Var NO GEO'!B2)+($C$6*'Valores Filtro Var GEO'!H2)+($C$7*'Valores Filtro Var NO GEO'!C2)+($C$8*'Valores Filtro Var GEO'!I2)+($C$9*'Valores Filtro Var GEO'!G2) -> 2.847123237 | J38: =($C$12*'Valores Filtro Var GEO'!B36)+($C$13*'Valores Filtro Var GEO'!C36)+($C$14*'Valores Filtro Var GEO'!D36)+($C$15*'Valores Filtro Var GEO'!E36)+($C$16*'Valores Filtro Var GEO'!F36)+($C$17*'Valores Filtro Var NO GEO'!I36)+($C$18*'Valores Filtro Var NO GEO'!J36) -> 3.85415269 | K38: =($C$21*'Valores Filtro Var NO GEO'!F4)+($C$22*'Valores Filtro Var NO GEO'!G4)+($C$23*'Valores Filtro Var NO GEO'!H4) -> 1.6 | L38: =($C$26*'Valores Filtro Var NO GEO'!D36)+($C$27*'Valores Filtro Var NO GEO'!E36) -> 3 | M38: 3.183218005
E39: 36 | F39: Perú | G39: IBERIA- ITAHUANIA-LD CUSCO | H39: Iberia - Itahuania - LD Cuzco | I39: =($C$5*'Valores Filtro Var NO GEO'!B3)+($C$6*'Valores Filtro Var GEO'!H3)+($C$7*'Valores Filtro Var NO GEO'!C3)+($C$8*'Valores Filtro Var GEO'!I3)+($C$9*'Valores Filtro Var GEO'!G3) -> 2.521809954 | J39: =($C$12*'Valores Filtro Var GEO'!B37)+($C$13*'Valores Filtro Var GEO'!C37)+($C$14*'Valores Filtro Var GEO'!D37)+($C$15*'Valores Filtro Var GEO'!E37)+($C$16*'Valores Filtro Var GEO'!F37)+($C$17*'Valores Filtro Var NO GEO'!I37)+($C$18*'Valores Filtro Var NO GEO'!J37) -> 4.011936598 | K39: =($C$21*'Valores Filtro Var NO GEO'!F9)+($C$22*'Valores Filtro Var NO GEO'!G9)+($C$23*'Valores Filtro Var NO GEO'!H9) -> 2 | L39: =($C$26*'Valores Filtro Var NO GEO'!D37)+($C$27*'Valores Filtro Var NO GEO'!E37) -> 3 | M39: 3.16409545
C63: 0.1

Sheet fig2
B6: ID Proyecto/ Dimension | C6: Pais | D6: Carretera | E6: Ambiental | F6: Económica | G6: Calif Amb | H6: Calif Eco | I6: Categoria | J6: Promedio | L6: Legenda
B8: 1 | C8: Ecuador | D8: Via al Emblase Compensador. Coca Codo Sinclair | E8: 3.349723593 | F8: 3.092010512 | G8: =IF(E8>3,"X","Y") -> X | H8: =IF(F8>3,"X","Y") -> X | I8: =IF(AND(G8="X",H8="X"),"A",IF(AND(G8="X",H8="Y"),"B",IF(AND(G8="Y",H8="X"),"C","D"))) -> A | J8: =AVERAGE(E8:F8) -> 3.220867052 | L8: XX | M8: A=alto costo ambiental + altos costos de oportunidad
B9: 6 | C9: Ecuador | D9: Lumbaqui - Maderos - Sardina - Puccuna | E9: 3.466354928 | F9: 3.079186474 | G9: X | H9: X | I9: A | J9: 3.272770701 | L9: XY | M9: B=alto costo ambiental + bajos costos de oportunidad
B10: 12 | C10: Colombia | D10: Nuquí - Las Ánimas | E10: 3.479140977 | F10: 3.556668171 | G10: X | H10: X | I10: A | J10: 3.517904574 | L10: YX | M10: C=bajo costo ambiental + altos costos de oportunidad
B11: 14 | C11: Colombia | D11: Transversal de las Américas | E11: 3.475050043 | F11: 3.892314492 | G11: X | H11: X | I11: A | J11: 3.683682267 | L11: YY | M11: D=bajo costo ambiental + bajos costos de oportunidad
B12: 16 | C12: Colombia | D12: Ruta del Sol, Sector 2 | E12: 3.14357308 | F12: 3.15324625 | G12: X | H12: X | I12: A | J12: 3.148409665
B13: 17 | C13: Colombia | D13: Ruta del Sol, Sector 3 | E13: 3.210782136 | F13: 3.112806924 | G13: X | H13: X | I13: A | J13: 3.16179453
B14: 18 | C14: Brasil | D14: BR-156 | E14: 3.16587969 | F14: 3.537175291 | G14: X | H14: X | I14: A | J14: 3.35152749
B15: 19 | C15: Brasil | D15: BR-163 | E15: 3.261215462 | F15: 3.076360304 | G15: X | H15: X | I15: A | J15: 3.168787883
B16: 20 | C16: Brasil | D16: BR-230 | E16: 3.200450637 | F16: 3.029107617 | G16: X | H16: X | I16: A | J16: 3.114779127
B17: 21 | C17: Brasil | D17: BR-432 | E17: 3.020672455 | F17: 3.120865332 | G17: X | H17: X | I17: A | J17: 3.070768893
B18: 23 | C18: Brasil | D18: BR-422 | E18: 3.114226298 | F18: 3.153265741 | G18: X | H18: X | I18: A | J18: 3.133746019
B19: 24 | C19: Brasil | D19: BR-319 | E19: 3.819195733 | F19: 3.37339362 | G19: X | H19: X | I19: A | J19: 3.596294676
B20: 26 | C20: Bolivia | D20: Porvenir - El Chorro | E20: 3.306234765 | F20: 3.139226952 | G20: X | H20: X | I20: A | J20: 3.222730859
B21: 30 | C21: Bolivia | D21: Chiata - Lurasani | E21: 3.055634138 | F21: 3.839148567 | G21: X | H21: X | I21: A | J21: 3.447391353
B22: 11 | C22: Colombia | D22: Pasto - Mocoa | E22: 3.147870593 | F22: 2.641969112 | G22: X | H22: Y | I22: B | J22: 2.894919853
B23: 13 | C23: Colombia | D23: Transversal de la Macarena | E23: 3.140213233 | F23: 2.590862398 | G23: X | H23: Y | I23: B | J23: 2.865537815
B24: 25 | C24: Bolivia | D24: Villa Tunari - San Ignacio de Moxos | E24: 3.728450792 | F24: 2.614914012 | G24: X | H24: =IF(F24>3,"X","Y") -> Y | I24: =IF(AND(G24="X",H24="X"),"A",IF(AND(G24="X",H24="Y"),"B",IF(AND(G24="Y",H24="X"),"C","D"))) -> B | J24: 3.171682402
B25: 28 | C25: Bolivia | D25: Apolo - Ixiamas | E25: 3.885169674 | F25: 2.44724176 | G25: X | H25: Y | I25: B | J25: 3.166205717
B26: 29 | C26: Bolivia | D26: Rio Yata - El Chorro | E26: 3.208002681 | F26: 2.428484896 | G26: X | H26: Y | I26: B | J26: 2.818243789
B27: 31 | C27: Perú | D27: REPOSO SARAMIRIZA | E27: 3.567694466 | F27: 2.148641407 | G27: X | H27: Y | I27: B | J27: 2.858167937
B28: 32 | C28: Perú | D28: INTERCONEXIÓN VIAL PUCALLPA-CRUZEIRO DO SUL | E28: 3.435605681 | F28: 2.578708374 | G28: X | H28: Y | I28: B | J28: 3.007157027
B29: 33 | C29: Perú | D29: IIRSA SUR | E29: 3.603069246 | F29: 2.869448803 | G29: X | H29: Y | I29: B | J29: 3.236259024
B30: 35 | C30: Perú | D30: PURUS-IÑAPARI | E30: 3.85415269 | F30: 2.847123237 | G30: X | H30: Y | I30: B | J30: 3.350637963
B31: 36 | C31: Perú | D31: IBERIA- ITAHUANIA-LD CUSCO | E31: 4.011936598 | F31: 2.521809954 | G31: X | H31: Y | I31: =IF(AND(G31="X",H31="X"),"A",IF(AND(G31="X",H31="Y"),"B",IF(AND(G31="Y",H31="X"),"C","D"))) -> B | J31: 3.266873276
B32: 7 | C32: Ecuador | D32: Vía Acceso: Puerto Mirador | E32: 2.827116945 | F32: 3.361498022 | G32: Y | H32: X | I32: C | J32: 3.094307484
B33: 8 | C33: Ecuador | D33: Sushufindi - Pto. Providencia | E33: 2.793061615 | F33: 3.520893216 | G33: Y | H33: X | I33: C | J33: 3.156977415
B34: 9 | C34: Ecuador | D34: Sacha - Unión Milagreña | E34: 2.438619146 | F34: 3.008309401 | G34: Y | H34: X | I34: C | J34: 2.723464273
B35: 15 | C35: Colombia | D35: Ruta del Sol , Sector 1 | E35: 2.503777118 | F35: 3.155619178 | G35: Y | H35: X | I35: C | J35: 2.829698148
B36: 2 | C36: Ecuador | D36: Coca - La Belleza | E36: 2.63409483 | F36: 2.26800001 | G36: Y | H36: Y | I36: D | J36: 2.45104742
B37: 3 | C37: Ecuador | D37: Cuenca -Macas | E37: 2.579074179 | F37: 2.354561794 | G37: Y | H37: Y | I37: D | J37: 2.466817986
B38: 4 | C38: Ecuador | D38: Macuma - Taisha | E38: 2.884048714 | F38: 2.944519362 | G38: Y | H38: Y | I38: D | J38: 2.914284038
B39: 5 | C39: Ecuador | D39: Sucumbios - Orellana | E39: 2.777384168 | F39: 2.754147677 | G39: Y | H39: Y | I39: D | J39: 2.765765922
B40: 10 | C40: Ecuador | D40: Macuma - Taisha | E40: 2.871158112 | F40: 2.819823912 | G40: Y | H40: Y | I40: D | J40: 2.845491012
B41: 22 | C41: Brasil | D41: BR-308 | E41: 2.474824514 | F41: 2.586846176 | G41: Y | H41: Y | I41: D | J41: 2.530835345
B42: 27 | C42: Bolivia | D42: Pumasani - Pelechuco | E42: 2.370247278 | F42: 2.375831675 | G42: Y | H42: Y | I42: D | J42: 2.373039477
B43: 34 | C43: Perú | D43: SANTA MARÍA-SANTA TERESA-MACHU PICCHU | E43: 2.867154103 | F43: 2.642300102 | G43: Y | H43: Y | I43: D | J43: 2.754727102

Sheet Sheet1 (hidden)
